Workbook

Sheet Principal
K8: MISIÓN
D17: ESTADO | K17: VISIÓN
C18: 5 | D18: El valor a la fecha es igual o superior a la meta
C19: 3 | D19: El valor a la fecha es al menos un 50% de la meta
C20: 0 | D20: El valor a la fecha es inferior al 50% de la meta
D22: TENDENCIA
C23: 5 | D23: Variación positiva
C24: 0 | D24: Variación constante
C25: 3 | D25: Variación negativa

Sheet Mapa_Estrategico (hidden)
D17: ESTADO
C18: 5 | D18: El valor a la fecha es igual o superior a la meta
C19: 3 | D19: El valor a la fecha es al menos un 50% de la meta
C20: 0 | D20: El valor a la fecha es inferior al 50% de la meta
D22: TENDENCIA
C23: 5 | D23: Variación positiva
C24: 0 | D24: Variación constante
C25: 3 | D25: Variación negativa

Sheet OBJ_Global (hidden)
D1: 2013-01-22
D2: 2013-01-22
O3: =HLOOKUP($Z$5,Panel_BCI!$S$6:$EP$82,2,FALSE) -> 
N4: Fecha de consulta | O4: =+DAY(Z4) -> 25 | P4: =VLOOKUP(MONTH(Z4),'F02'!B74:C85,2) -> Enero | R4: =YEAR(Z4) -> 2014 | Z4: 25-01-2014
Z5: =+R4&P4&O4 -> 2014Enero25
E6: =+"al: "&TEXT($Z$4,"aaa/dd/mmmm/yyyy") -> al: sáb/25/enero/2014 | N6: =+"al: "&TEXT($Z$4,"aaa/dd/mmmm/yyyy") -> al: sáb/25/enero/2014 | Z6: 2013-10-25
E7: Actual acumulado | F7: Meta Proporcional | G7: Meta periodo | H7: Unidad | I7: Frec. | J7: Estado actual | K7: ? | N7: Actual acumulado | O7: Meta Proporcional | P7: Meta periodo | Q7: Unidad | R7: Frec. | S7: Estado actual | Z7: 2014-01-25
C8: =+Panel_BCI!C8 -> Obtener Rentabilidad Operativa para Sucursal Bancaria | M8: =+Panel_BCI!C32 -> Lograr Satisfacción del cliente | Z8: 41664
B9: 3 | C9: =Panel_BCI!E8 -> ▪ F01 ROI / ROA | E9: =IF(ISERROR(HLOOKUP($Z$5,Panel_BCI!$S$6:$EP$82,B9+2,FALSE))=TRUE,"fds/Fer",HLOOKUP($Z$5,Panel_BCI!$S$6:$EP$82,B9+2,FALSE)) -> fds/Fer | F9: =IF(ISERROR(HLOOKUP($Z$5,Panel_BCI!$S$6:$EP$82,B9,FALSE))=TRUE,"fds/Fer",HLOOKUP($Z$5,Panel_BCI!$S$6:$EP$82,B9,FALSE)) -> fds/Fer | G9: =IF(ISERROR(HLOOKUP($R$4&$P$4&"0",Panel_BCI!$S$6:$EP$82,B9,FALSE)=TRUE),"fds/Fer",HLOOKUP($R$4&$P$4&"0",Panel_BCI!$S$6:$EP$82,B9,FALSE)) -> 0.0151 | H9: =VLOOKUP($C9,Panel_BCI!$N$8:$O$82,2,FALSE) -> % | I9: =VLOOKUP(C9,Panel_BCI!$N$8:$AV$82,4,FALSE) -> Mensual | J9: =IF(F9="fds/Fer","-",IF(E9>=F9,2, IF( (E9/F9)>=0.5,1,0))) -> - | L9: 27 | M9: =Panel_BCI!E32 -> ▪ C01 SNEX Área Comercial (Encuesta de Satisfacción) | N9: =IF(ISERROR(HLOOKUP($Z$5,Panel_BCI!$S$6:$EP$82,L9+2,FALSE))=TRUE,"fds/Fer",HLOOKUP($Z$5,Panel_BCI!$S$6:$EP$82,L9+2,FALSE)) -> fds/Fer | O9: =IF(ISERROR(HLOOKUP($Z$5,Panel_BCI!$S$6:$EP$82,L9,FALSE))=TRUE,"fds/Fer",HLOOKUP($Z$5,Panel_BCI!$S$6:$EP$82,L9,FALSE)) -> fds/Fer | P9: =IF(ISERROR(HLOOKUP($R$4&$P$4&"0",Panel_BCI!$S$6:$EP$82,L9,FALSE)=TRUE),"fds/Fer",HLOOKUP($R$4&$P$4&"0",Panel_BCI!$S$6:$EP$82,L9,FALSE)) -> 0.9 | Q9: =VLOOKUP(M9,Panel_BCI!$N$8:$O$82,2,FALSE) -> % | R9: =VLOOKUP(M9,Panel_BCI!$N$8:$AV$82,4,FALSE) -> Mensual | S9: =IF(O9="fds/Fer","-",IF(N9>=O9,2, IF( (N9/O9)>=0.5,1,0))) -> -
L10: 30 | M10: =Panel_BCI!E36 -> ▪ C02 SNEX Área Operativa (Encuesta de Satisfacción) | N10: =IF(ISERROR(HLOOKUP($Z$5,Panel_BCI!$S$6:$EP$82,L10+2,FALSE))=TRUE,"fds/Fer",HLOOKUP($Z$5,Panel_BCI!$S$6:$EP$82,L10+2,FALSE)) -> fds/Fer | O10: =IF(ISERROR(HLOOKUP($Z$5,Panel_BCI!$S$6:$EP$82,L10,FALSE))=TRUE,"fds/Fer",HLOOKUP($Z$5,Panel_BCI!$S$6:$EP$82,L10,FALSE)) -> fds/Fer | P10: =IF(ISERROR(HLOOKUP($R$4&$P$4&"0",Panel_BCI!$S$6:$EP$82,L10,FALSE)=TRUE),"fds/Fer",HLOOKUP($R$4&$P$4&"0",Panel_BCI!$S$6:$EP$82,L10,FALSE)) -> 0.9 | Q10: =VLOOKUP(M10,Panel_BCI!$N$8:$O$82,2,FALSE) -> % | R10: =VLOOKUP(M10,Panel_BCI!$N$8:$AV$82,4,FALSE) -> Mensual | S10: =IF(O10="fds/Fer","-",IF(N10>=O10,2, IF( (N10/O10)>=0.5,1,0))) -> -
C11: =+Panel_BCI!C20 -> Lograr Crecimiento en las Ventas | M11: =+Panel_BCI!C44 -> Aumentar Cuota de Mercado en Consumo
B12: 6 | C12: =Panel_BCI!E11 -> ▪ F02 Ventas Netas Créditos de Consumo | E12: =IF(ISERROR(HLOOKUP($Z$5,Panel_BCI!$S$6:$EP$82,B12+2,FALSE))=TRUE,"fds/Fer",HLOOKUP($Z$5,Panel_BCI!$S$6:$EP$82,B12+2,FALSE)) -> fds/Fer | F12: =IF(ISERROR(HLOOKUP($Z$5,Panel_BCI!$S$6:$EP$82,B12,FALSE))=TRUE,"fds/Fer",HLOOKUP($Z$5,Panel_BCI!$S$6:$EP$82,B12,FALSE)) -> fds/Fer | G12: =IF(ISERROR(HLOOKUP($R$4&$P$4&"0",Panel_BCI!$S$6:$EP$82,B12,FALSE)=TRUE),"fds/Fer",HLOOKUP($R$4&$P$4&"0",Panel_BCI!$S$6:$EP$82,B12,FALSE)) -> 31.96 | H12: =VLOOKUP(C12,Panel_BCI!$N$8:$O$82,2,FALSE) -> MM$ | I12: =VLOOKUP(C12,Panel_BCI!$N$8:$AV$82,4,FALSE) -> Mensual | J12: =IF(F12="fds/Fer","-",IF(E12>=F12,2, IF( (E12/F12)>=0.5,1,0))) -> - | L12: 39 | M12: =Panel_BCI!E44 -> ▪ C03 Win Rate por Clientes | N12: =IF(ISERROR(HLOOKUP($Z$5,Panel_BCI!$S$6:$EP$82,L12+2,FALSE))=TRUE,"fds/Fer",HLOOKUP($Z$5,Panel_BCI!$S$6:$EP$82,L12+2,FALSE)) -> fds/Fer | O12: =IF(ISERROR(HLOOKUP($Z$5,Panel_BCI!$S$6:$EP$82,L12,FALSE))=TRUE,"fds/Fer",HLOOKUP($Z$5,Panel_BCI!$S$6:$EP$82,L12,FALSE)) -> fds/Fer | P12: =IF(ISERROR(HLOOKUP($R$4&$P$4&"0",Panel_BCI!$S$6:$EP$82,L12,FALSE)=TRUE),"fds/Fer",HLOOKUP($R$4&$P$4&"0",Panel_BCI!$S$6:$EP$82,L12,FALSE)) -> 0.065 | Q12: =VLOOKUP(M12,Panel_BCI!$N$8:$O$82,2,FALSE) -> % | R12: =VLOOKUP(M12,Panel_BCI!$N$8:$AV$82,4,FALSE) -> Mensual | S12: =IF(O12="fds/Fer","-",IF(N12>=O12,2, IF( (N12/O12)>=0.5,1,0))) -> -
B13: 9 | C13: =+Panel_BCI!E14 -> ▪ F03 Ventas Netas Tarjetas de Crédito (TC) | E13: =IF(ISERROR(HLOOKUP($Z$5,Panel_BCI!$S$6:$EP$82,B13+2,FALSE))=TRUE,"fds/Fer",HLOOKUP($Z$5,Panel_BCI!$S$6:$EP$82,B13+2,FALSE)) -> fds/Fer | F13: =IF(ISERROR(HLOOKUP($Z$5,Panel_BCI!$S$6:$EP$82,B13,FALSE))=TRUE,"fds/Fer",HLOOKUP($Z$5,Panel_BCI!$S$6:$EP$82,B13,FALSE)) -> fds/Fer | G13: =IF(ISERROR(HLOOKUP($R$4&$P$4&"0",Panel_BCI!$S$6:$EP$82,B13,FALSE)=TRUE),"fds/Fer",HLOOKUP($R$4&$P$4&"0",Panel_BCI!$S$6:$EP$82,B13,FALSE)) -> 42 | H13: =VLOOKUP(C13,Panel_BCI!$N$8:$O$82,2,FALSE) -> N° | I13: =VLOOKUP(C13,Panel_BCI!$N$8:$AV$82,4,FALSE) -> Mensual | J13: =IF(F13="fds/Fer","-",IF(E13>=F13,2, IF( (E13/F13)>=0.5,1,0))) -> - | L13: 42 | M13: =Panel_BCI!E47 -> ▪ C04 Win Rate por Monto | N13: =IF(ISERROR(HLOOKUP($Z$5,Panel_BCI!$S$6:$EP$82,L13+2,FALSE))=TRUE,"fds/Fer",HLOOKUP($Z$5,Panel_BCI!$S$6:$EP$82,L13+2,FALSE)) -> fds/Fer | O13: =IF(ISERROR(HLOOKUP($Z$5,Panel_BCI!$S$6:$EP$82,L13,FALSE))=TRUE,"fds/Fer",HLOOKUP($Z$5,Panel_BCI!$S$6:$EP$82,L13,FALSE)) -> fds/Fer | P13: =IF(ISERROR(HLOOKUP($R$4&$P$4&"0",Panel_BCI!$S$6:$EP$82,L13,FALSE)=TRUE),"fds/Fer",HLOOKUP($R$4&$P$4&"0",Panel_BCI!$S$6:$EP$82,L13,FALSE)) -> 0.053 | Q13: =VLOOKUP(M13,Panel_BCI!$N$8:$O$82,2,FALSE) -> % | R13: =VLOOKUP(M13,Panel_BCI!$N$8:$AV$82,4,FALSE) -> Mensual | S13: =IF(O13="fds/Fer","-",IF(N13>=O13,2, IF( (N13/O13)>=0.5,1,0))) -> -
B14: 12 | C14: =+Panel_BCI!E17 -> ▪ F04 N° Aperturas de Cuentas Corrientes (CCT) | E14: =IF(ISERROR(HLOOKUP($Z$5,Panel_BCI!$S$6:$EP$82,B14+2,FALSE))=TRUE,"fds/Fer",HLOOKUP($Z$5,Panel_BCI!$S$6:$EP$82,B14+2,FALSE)) -> fds/Fer | F14: =IF(ISERROR(HLOOKUP($Z$5,Panel_BCI!$S$6:$EP$82,B14,FALSE))=TRUE,"fds/Fer",HLOOKUP($Z$5,Panel_BCI!$S$6:$EP$82,B14,FALSE)) -> fds/Fer | G14: =IF(ISERROR(HLOOKUP($R$4&$P$4&"0",Panel_BCI!$S$6:$EP$82,B14,FALSE)=TRUE),"fds/Fer",HLOOKUP($R$4&$P$4&"0",Panel_BCI!$S$6:$EP$82,B14,FALSE)) -> 19 | H14: =VLOOKUP(C14,Panel_BCI!$N$8:$O$82,2,FALSE) -> N° | I14: =VLOOKUP(C14,Panel_BCI!$N$8:$AV$82,4,FALSE) -> Mensual | J14: =IF(F14="fds/Fer","-",IF(E14>=F14,2, IF( (E14/F14)>=0.5,1,0))) -> -
B15: 15 | C15: =+Panel_BCI!E20 -> ▪ F05 Ventas Netas Cred. Hipotecario (CHIP) | E15: =IF(ISERROR(HLOOKUP($Z$5,Panel_BCI!$S$6:$EP$82,B15+2,FALSE))=TRUE,"fds/Fer",HLOOKUP($Z$5,Panel_BCI!$S$6:$EP$82,B15+2,FALSE)) -> fds/Fer | F15: =IF(ISERROR(HLOOKUP($Z$5,Panel_BCI!$S$6:$EP$82,B15,FALSE))=TRUE,"fds/Fer",HLOOKUP($Z$5,Panel_BCI!$S$6:$EP$82,B15,FALSE)) -> fds/Fer | G15: =IF(ISERROR(HLOOKUP($R$4&$P$4&"0",Panel_BCI!$S$6:$EP$82,B15,FALSE)=TRUE),"fds/Fer",HLOOKUP($R$4&$P$4&"0",Panel_BCI!$S$6:$EP$82,B15,FALSE)) -> 238.1 | H15: =VLOOKUP(C15,Panel_BCI!$N$8:$O$82,2,FALSE) -> MM$ | I15: =VLOOKUP(C15,Panel_BCI!$N$8:$AV$82,4,FALSE) -> Mensual | J15: =IF(F15="fds/Fer","-",IF(E15>=F15,2, IF( (E15/F15)>=0.5,1,0))) -> -
C16: =+Panel_BCI!C23 -> Mantener la Cartera de Clientes al Día | M16: =+Panel_BCI!C41 -> Fidelizar actuales CCT
B17: 18 | C17: =Panel_BCI!E23 -> ▪ F06 % de Cartera al Día (CAD) | E17: =IF(ISERROR(HLOOKUP($Z$5,Panel_BCI!$S$6:$EP$82,B17+2,FALSE))=TRUE,"fds/Fer",HLOOKUP($Z$5,Panel_BCI!$S$6:$EP$82,B17+2,FALSE)) -> fds/Fer | F17: =IF(ISERROR(HLOOKUP($Z$5,Panel_BCI!$S$6:$EP$82,B17,FALSE))=TRUE,"fds/Fer",HLOOKUP($Z$5,Panel_BCI!$S$6:$EP$82,B17,FALSE)) -> fds/Fer | G17: =IF(ISERROR(HLOOKUP($R$4&$P$4&"0",Panel_BCI!$S$6:$EP$82,B17,FALSE)=TRUE),"fds/Fer",HLOOKUP($R$4&$P$4&"0",Panel_BCI!$S$6:$EP$82,B17,FALSE)) -> 0.912 | H17: =VLOOKUP(C17,Panel_BCI!$N$8:$O$82,2,FALSE) -> % | I17: =VLOOKUP(C17,Panel_BCI!$N$8:$AV$82,4,FALSE) -> Mensual | J17: =IF(F17="fds/Fer","-",IF(E17>=F17,2, IF( (E17/F17)>=0.5,1,0))) -> - | L17: 36 | M17: =Panel_BCI!E41 -> ▪ C05 N° Cierres Cuentas Corrientes voluntarias | N17: =IF(ISERROR(HLOOKUP($Z$5,Panel_BCI!$S$6:$EP$82,L17+2,FALSE))=TRUE,"fds/Fer",HLOOKUP($Z$5,Panel_BCI!$S$6:$EP$82,L17+2,FALSE)) -> fds/Fer | O17: =IF(ISERROR(HLOOKUP($Z$5,Panel_BCI!$S$6:$EP$82,L17,FALSE))=TRUE,"fds/Fer",HLOOKUP($Z$5,Panel_BCI!$S$6:$EP$82,L17,FALSE)) -> fds/Fer | P17: =IF(ISERROR(HLOOKUP($R$4&$P$4&"0",Panel_BCI!$S$6:$EP$82,L17,FALSE)=TRUE),"fds/Fer",HLOOKUP($R$4&$P$4&"0",Panel_BCI!$S$6:$EP$82,L17,FALSE)) -> 8 | Q17: =VLOOKUP(M17,Panel_BCI!$N$8:$O$82,2,FALSE) -> N° | R17: =VLOOKUP(M17,Panel_BCI!$N$8:$AV$82,4,FALSE) -> Mensual | S17: =IF(O17="fds/Fer","-",(N17/O17)*100) -> -
C18: =+Panel_BCI!C26 -> Incrementar Utilidad por Filiales
B19: 21 | C19: =Panel_BCI!E26 -> ▪ F07 Volumen de Inversiones [FFMM,LAP,DAP] | E19: =IF(ISERROR(HLOOKUP($Z$5,Panel_BCI!$S$6:$EP$82,B19+2,FALSE))=TRUE,"fds/Fer",HLOOKUP($Z$5,Panel_BCI!$S$6:$EP$82,B19+2,FALSE)) -> fds/Fer | F19: =IF(ISERROR(HLOOKUP($Z$5,Panel_BCI!$S$6:$EP$82,B19,FALSE))=TRUE,"fds/Fer",HLOOKUP($Z$5,Panel_BCI!$S$6:$EP$82,B19,FALSE)) -> fds/Fer | G19: =IF(ISERROR(HLOOKUP($R$4&$P$4&"0",Panel_BCI!$S$6:$EP$82,B19,FALSE)=TRUE),"fds/Fer",HLOOKUP($R$4&$P$4&"0",Panel_BCI!$S$6:$EP$82,B19,FALSE)) -> 28619 | H19: =VLOOKUP(C19,Panel_BCI!$N$8:$O$82,2,FALSE) -> MM$ | I19: =VLOOKUP(C19,Panel_BCI!$N$8:$AV$82,4,FALSE) -> Mensual | J19: =IF(F19="fds/Fer","-",IF(E19>=F19,2, IF( (E19/F19)>=0.5,1,0))) -> -
B20: 24 | C20: =+Panel_BCI!N29 -> ▪ F08 Venta Bruta de Seguros (Indiv.+Vinc.) | E20: =IF(ISERROR(HLOOKUP($Z$5,Panel_BCI!$S$6:$EP$82,B20+2,FALSE))=TRUE,"fds/Fer",HLOOKUP($Z$5,Panel_BCI!$S$6:$EP$82,B20+2,FALSE)) -> fds/Fer | F20: =IF(ISERROR(HLOOKUP($Z$5,Panel_BCI!$S$6:$EP$82,B20,FALSE))=TRUE,"fds/Fer",HLOOKUP($Z$5,Panel_BCI!$S$6:$EP$82,B20,FALSE)) -> fds/Fer | G20: =IF(ISERROR(HLOOKUP($R$4&$P$4&"0",Panel_BCI!$S$6:$EP$82,B20,FALSE)=TRUE),"fds/Fer",HLOOKUP($R$4&$P$4&"0",Panel_BCI!$S$6:$EP$82,B20,FALSE)) -> 1013.3 | H20: =VLOOKUP(C20,Panel_BCI!$N$8:$O$82,2,FALSE) -> UF | I20: =VLOOKUP(C20,Panel_BCI!$N$8:$AV$82,4,FALSE) -> Mensual | J20: =IF(F20="fds/Fer","-",IF(E20>=F20,2, IF( (E20/F20)>=0.5,1,0))) -> -
E21: =+"al: "&TEXT($Z$4,"aaa/dd/mmmm/yyyy") -> al: sáb/25/enero/2014 | N21: =+"al: "&TEXT($Z$4,"aaa/dd/mmmm/yyyy") -> al: sáb/25/enero/2014
E22: Actual acumulado | F22: Meta Proporcional | G22: Meta periodo | H22: Unidad | I22: Frec. | J22: Estado actual | N22: Actual acumulado | O22: Meta Proporcional | P22: Meta periodo | Q22: Unidad | R22: Frec. | S22: Estado actual
C23: =+Panel_BCI!C50 -> Realizar Buena Gestión de Hábitos | M23: =+Panel_BCI!C71 -> Fortalecer las competencias laborales de los colaboradores
B24: 45 | C24: =Panel_BCI!E50 -> ▪ PI01 % Cumplimiento de Hábitos Gestionados | E24: =IF(ISERROR(HLOOKUP($Z$5,Panel_BCI!$S$6:$EP$82,B24+2,FALSE))=TRUE,"fds/Fer",HLOOKUP($Z$5,Panel_BCI!$S$6:$EP$82,B24+2,FALSE)) -> fds/Fer | F24: =IF(ISERROR(HLOOKUP($Z$5,Panel_BCI!$S$6:$EP$82,B24,FALSE))=TRUE,"fds/Fer",HLOOKUP($Z$5,Panel_BCI!$S$6:$EP$82,B24,FALSE)) -> fds/Fer | G24: =IF(ISERROR(HLOOKUP($R$4&$P$4&"0",Panel_BCI!$S$6:$EP$82,B24,FALSE)=TRUE),"fds/Fer",HLOOKUP($R$4&$P$4&"0",Panel_BCI!$S$6:$EP$82,B24,FALSE)) -> 0.8 | H24: =VLOOKUP(C24,Panel_BCI!$N$8:$O$82,2,FALSE) -> % | I24: =VLOOKUP(C24,Panel_BCI!$N$8:$AV$82,4,FALSE) -> Semanal | J24: =IF(F24="fds/Fer","-",IF(E24>=F24,2, IF( (E24/F24)>=0.5,1,0))) -> - | L24: 66 | M24: =Panel_BCI!E71 -> ▪ AC01 N° de colaboradores que asisten a cursos de formación profesional | N24: =IF(ISERROR(HLOOKUP($Z$5,Panel_BCI!$S$6:$EP$82,L24+2,FALSE))=TRUE,"fds/Fer",HLOOKUP($Z$5,Panel_BCI!$S$6:$EP$82,L24+2,FALSE)) -> fds/Fer | O24: =IF(ISERROR(HLOOKUP($Z$5,Panel_BCI!$S$6:$EP$82,L24,FALSE))=TRUE,"fds/Fer",HLOOKUP($Z$5,Panel_BCI!$S$6:$EP$82,L24,FALSE)) -> fds/Fer | P24: =IF(ISERROR(HLOOKUP($R$4&$P$4&"0",Panel_BCI!$S$6:$EP$82,L24,FALSE)=TRUE),"fds/Fer",HLOOKUP($R$4&$P$4&"0",Panel_BCI!$S$6:$EP$82,L24,FALSE)) -> 3 | Q24: =VLOOKUP(M24,Panel_BCI!$N$8:$O$82,2,FALSE) -> N° | R24: =VLOOKUP(M24,Panel_BCI!$N$8:$AV$82,4,FALSE) -> Semestral | S24: =IF(O24="fds/Fer","-",IF(N24>=O24,2, IF( (N24/O24)>=0.5,1,0))) -> -
B25: 48 | C25: =Panel_BCI!E53 -> ▪ PI02 % de Hábitos Gestionados en campaña | E25: =IF(ISERROR(HLOOKUP($Z$5,Panel_BCI!$S$6:$EP$82,B25+2,FALSE))=TRUE,"fds/Fer",HLOOKUP($Z$5,Panel_BCI!$S$6:$EP$82,B25+2,FALSE)) -> fds/Fer | F25: =IF(ISERROR(HLOOKUP($Z$5,Panel_BCI!$S$6:$EP$82,B25,FALSE))=TRUE,"fds/Fer",HLOOKUP($Z$5,Panel_BCI!$S$6:$EP$82,B25,FALSE)) -> fds/Fer | G25: =IF(ISERROR(HLOOKUP($R$4&$P$4&"0",Panel_BCI!$S$6:$EP$82,B25,FALSE)=TRUE),"fds/Fer",HLOOKUP($R$4&$P$4&"0",Panel_BCI!$S$6:$EP$82,B25,FALSE)) -> 0.8 | H25: =VLOOKUP(C25,Panel_BCI!$N$8:$O$82,2,FALSE) -> % | I25: =VLOOKUP(C25,Panel_BCI!$N$8:$AV$82,4,FALSE) -> Semanal | J25: =IF(F25="fds/Fer","-",IF(E25>=F25,2, IF( (E25/F25)>=0.5,1,0))) -> -
C26: =+Panel_BCI!C56 -> Responder a tiempo solicitudes de clientes | M26: =+Panel_BCI!C74 -> Fomentar la participación en la mejora continua,Innovación y creatividad.
B27: 51 | C27: =Panel_BCI!E56 -> ▪ PI03 Eventos Gestionados | E27: =IF(ISERROR(HLOOKUP($Z$5,Panel_BCI!$S$6:$EP$82,B27+2,FALSE))=TRUE,"fds/Fer",HLOOKUP($Z$5,Panel_BCI!$S$6:$EP$82,B27+2,FALSE)) -> fds/Fer | F27: =IF(ISERROR(HLOOKUP($Z$5,Panel_BCI!$S$6:$EP$82,B27,FALSE))=TRUE,"fds/Fer",HLOOKUP($Z$5,Panel_BCI!$S$6:$EP$82,B27,FALSE)) -> fds/Fer | G27: =IF(ISERROR(HLOOKUP($R$4&$P$4&"0",Panel_BCI!$S$6:$EP$82,B27,FALSE)=TRUE),"fds/Fer",HLOOKUP($R$4&$P$4&"0",Panel_BCI!$S$6:$EP$82,B27,FALSE)) -> 1 | H27: =VLOOKUP(C27,Panel_BCI!$N$8:$O$82,2,FALSE) -> % | I27: =VLOOKUP(C27,Panel_BCI!$N$8:$AV$82,4,FALSE) -> Semanal | J27: =IF(F27="fds/Fer","-",IF(E27>=F27,2, IF( (E27/F27)>=0.5,1,0))) -> - | L27: 69 | M27: =Panel_BCI!E74 -> ▪ AC02 N° Ideas presentadas [concurso] | N27: =IF(ISERROR(HLOOKUP($Z$5,Panel_BCI!$S$6:$EP$82,L27+2,FALSE))=TRUE,"fds/Fer",HLOOKUP($Z$5,Panel_BCI!$S$6:$EP$82,L27+2,FALSE)) -> fds/Fer | O27: =IF(ISERROR(HLOOKUP($Z$5,Panel_BCI!$S$6:$EP$82,L27,FALSE))=TRUE,"fds/Fer",HLOOKUP($Z$5,Panel_BCI!$S$6:$EP$82,L27,FALSE)) -> fds/Fer | P27: =IF(ISERROR(HLOOKUP($R$4&$P$4&"0",Panel_BCI!$S$6:$EP$82,L27,FALSE)=TRUE),"fds/Fer",HLOOKUP($R$4&$P$4&"0",Panel_BCI!$S$6:$EP$82,L27,FALSE)) -> 8 | Q27: =VLOOKUP(M27,Panel_BCI!$N$8:$O$82,2,FALSE) -> N° | R27: =VLOOKUP(M27,Panel_BCI!$N$8:$AV$82,4,FALSE) -> Semestral | S27: =IF(O27="fds/Fer","-",IF(N27>=O27,2, IF( (N27/O27)>=0.5,1,0))) -> -
C28: =+Panel_BCI!C59 -> Generar Tubo de Negocios | M28: =+Panel_BCI!C77 -> Mantener un buen clima laboral
B29: 54 | C29: =Panel_BCI!E59 -> ▪ PI04 N° Operaciones Enviadas (SUC) | E29: =IF(ISERROR(HLOOKUP($Z$5,Panel_BCI!$S$6:$EP$82,B29+2,FALSE))=TRUE,"fds/Fer",HLOOKUP($Z$5,Panel_BCI!$S$6:$EP$82,B29+2,FALSE)) -> fds/Fer | F29: =IF(ISERROR(HLOOKUP($Z$5,Panel_BCI!$S$6:$EP$82,B29,FALSE))=TRUE,"fds/Fer",HLOOKUP($Z$5,Panel_BCI!$S$6:$EP$82,B29,FALSE)) -> fds/Fer | G29: =IF(ISERROR(HLOOKUP($R$4&$P$4&"0",Panel_BCI!$S$6:$EP$82,B29,FALSE)=TRUE),"fds/Fer",HLOOKUP($R$4&$P$4&"0",Panel_BCI!$S$6:$EP$82,B29,FALSE)) -> 160 | H29: =VLOOKUP(C29,Panel_BCI!$N$8:$O$82,2,FALSE) -> N° | I29: =VLOOKUP(C29,Panel_BCI!$N$8:$AV$82,4,FALSE) -> Mensual | J29: =IF(F29="fds/Fer","-",IF(E29>=F29,2, IF( (E29/F29)>=0.5,1,0))) -> - | L29: 72 | M29: =Panel_BCI!E77 -> ▪ AC03 % de satisfacción del clima laboral | N29: =IF(ISERROR(HLOOKUP($Z$5,Panel_BCI!$S$6:$EP$82,L29+2,FALSE))=TRUE,"fds/Fer",HLOOKUP($Z$5,Panel_BCI!$S$6:$EP$82,L29+2,FALSE)) -> fds/Fer | O29: =IF(ISERROR(HLOOKUP($Z$5,Panel_BCI!$S$6:$EP$82,L29,FALSE))=TRUE,"fds/Fer",HLOOKUP($Z$5,Panel_BCI!$S$6:$EP$82,L29,FALSE)) -> fds/Fer | P29: =IF(ISERROR(HLOOKUP($R$4&$P$4&"0",Panel_BCI!$S$6:$EP$82,L29,FALSE)=TRUE),"fds/Fer",HLOOKUP($R$4&$P$4&"0",Panel_BCI!$S$6:$EP$82,L29,FALSE)) -> 0.9 | Q29: =VLOOKUP(M29,Panel_BCI!$N$8:$O$82,2,FALSE) -> % | R29: =VLOOKUP(M29,Panel_BCI!$N$8:$AV$82,4,FALSE) -> Anual | S29: =IF(O29="fds/Fer","-",IF(N29>=O29,2, IF( (N29/O29)>=0.5,1,0))) -> -
B30: 57 | C30: =Panel_BCI!E62 -> ▪ PI05 Operaciones aprobadas (SUC) | E30: =IF(OR(E29="fds/Fer",E29=0),"n.a",IF(ISERROR(HLOOKUP($Z$5,Panel_BCI!$S$6:$EP$82,B30+2,FALSE))=TRUE,"fds/Fer",HLOOKUP($Z$5,Panel_BCI!$S$6:$EP$82,B30+2,FALSE))/E29) -> n.a | F30: =IF(ISERROR(HLOOKUP($Z$5,Panel_BCI!$S$6:$EP$82,B30,FALSE))=TRUE,"fds/Fer",HLOOKUP($Z$5,Panel_BCI!$S$6:$EP$82,B30,FALSE)) -> fds/Fer | G30: =IF(ISERROR(HLOOKUP($R$4&$P$4&"0",Panel_BCI!$S$6:$EP$82,B30,FALSE)=TRUE),"fds/Fer",HLOOKUP($R$4&$P$4&"0",Panel_BCI!$S$6:$EP$82,B30,FALSE)) -> 0.7 | H30: =VLOOKUP(C30,Panel_BCI!$N$8:$O$82,2,FALSE) -> % | I30: =VLOOKUP(C30,Panel_BCI!$N$8:$AV$82,4,FALSE) -> Mensual | J30: =IF(F30="fds/Fer","-",IF(E30>=F30,2, IF( (E30/F30)>=0.5,1,0))) -> -
C31: =+Panel_BCI!C65 -> Efectuar Control de especies | M31: =+Panel_BCI!C80 -> Verificar que los colaboradores están alineados con la estrategia
B32: 60 | C32: =Panel_BCI!E65 -> ▪ PI06 N° Arqueo Físico | E32: =IF(ISERROR(HLOOKUP($Z$5,Panel_BCI!$S$6:$EP$82,B32+2,FALSE))=TRUE,"fds/Fer",HLOOKUP($Z$5,Panel_BCI!$S$6:$EP$82,B32+2,FALSE)) -> fds/Fer | F32: =IF(ISERROR(HLOOKUP($Z$5,Panel_BCI!$S$6:$EP$82,B32,FALSE))=TRUE,"fds/Fer",HLOOKUP($Z$5,Panel_BCI!$S$6:$EP$82,B32,FALSE)) -> fds/Fer | G32: =IF(ISERROR(HLOOKUP($R$4&$P$4&"0",Panel_BCI!$S$6:$EP$82,B32,FALSE)=TRUE),"fds/Fer",HLOOKUP($R$4&$P$4&"0",Panel_BCI!$S$6:$EP$82,B32,FALSE)) -> 3 | H32: =VLOOKUP(C32,Panel_BCI!$N$8:$O$82,2,FALSE) -> N° | I32: =VLOOKUP(C32,Panel_BCI!$N$8:$AV$82,4,FALSE) -> Mensual | J32: =IF(F32="fds/Fer","-",IF(E32>=F32,2, IF( (E32/F32)>=0.5,1,0))) -> - | L32: 75 | M32: =Panel_BCI!E80 -> ▪ AC04 % Resultados Encuesta de Ejecución | N32: =IF(ISERROR(HLOOKUP($Z$5,Panel_BCI!$S$6:$EP$82,L32+2,FALSE))=TRUE,"fds/Fer",HLOOKUP($Z$5,Panel_BCI!$S$6:$EP$82,L32+2,FALSE)) -> fds/Fer | O32: =IF(ISERROR(HLOOKUP($Z$5,Panel_BCI!$S$6:$EP$82,L32,FALSE))=TRUE,"fds/Fer",HLOOKUP($Z$5,Panel_BCI!$S$6:$EP$82,L32,FALSE)) -> fds/Fer | P32: =IF(ISERROR(HLOOKUP($R$4&$P$4&"0",Panel_BCI!$S$6:$EP$82,L32,FALSE)=TRUE),"fds/Fer",HLOOKUP($R$4&$P$4&"0",Panel_BCI!$S$6:$EP$82,L32,FALSE)) -> 0.7 | Q32: =VLOOKUP(M32,Panel_BCI!$N$8:$O$82,2,FALSE) -> % | R32: =VLOOKUP(M32,Panel_BCI!$N$8:$AV$82,4,FALSE) -> Anual | S32: =IF(O32="fds/Fer","-",IF(N32>=O32,2, IF( (N32/O32)>=0.5,1,0))) -> -
B33: 63 | C33: =Panel_BCI!E68 -> ▪ PI07 Diferencia de Caja | E33: =IF(ISERROR(HLOOKUP($Z$5,Panel_BCI!$S$6:$EP$82,B33+2,FALSE))=TRUE,"fds/Fer",HLOOKUP($Z$5,Panel_BCI!$S$6:$EP$82,B33+2,FALSE)) -> fds/Fer | F33: =IF(ISERROR(HLOOKUP($Z$5,Panel_BCI!$S$6:$EP$82,B33,FALSE))=TRUE,"fds/Fer",HLOOKUP($Z$5,Panel_BCI!$S$6:$EP$82,B33,FALSE)) -> fds/Fer | G33: =IF(ISERROR(HLOOKUP($R$4&$P$4&"0",Panel_BCI!$S$6:$EP$82,B33,FALSE)=TRUE),"fds/Fer",HLOOKUP($R$4&$P$4&"0",Panel_BCI!$S$6:$EP$82,B33,FALSE)) -> 20000 | H33: =VLOOKUP(C33,Panel_BCI!$N$8:$O$82,2,FALSE) -> $ | I33: =VLOOKUP(C33,Panel_BCI!$N$8:$AV$82,4,FALSE) -> Mensual | J33: =IF(E33="fds/Fer","-",(E33/F33)*100) -> -

Sheet Detalle_Objetivos (hidden)
A1: =LEN(L7) -> 39
T3: Periodo
T4: Noviembre | V4: 2013 | AK4: ▪ F01 ROI / ROA | AL4: 3
AK5: ▪ F02 Ventas Netas Créditos de Consumo | AL5: 6
AK6: ▪ F03 Ventas Netas Tarjetas de Crédito (TC) | AL6: 9
L7: [ F ] Lograr Crecimiento en las Ventas | AD7: =+V4&T4&"0" -> 2013Noviembre0 | AE7: =VLOOKUP(T4,AC19:AI30,7,FALSE) -> 2013OCTUBRE0 | AK7: ▪ F04 N° Aperturas de Cuentas Corrientes (CCT) | AL7: 12
AD8: =DAY(EOMONTH(DATE(V4,2,1),0)) -> 28 | AK8: ▪ F05 Ventas Netas Cred. Hipotecario (CHIP) | AL8: 15
K9: ="PERSPECTIVA "&VLOOKUP(MID($L$7,8,80),Panel_BCI!C8:K82,9,FALSE) -> PERSPECTIVA FINANCIERA | AK9: ▪ F06 % de Cartera al Día (CAD) | AL9: 18
K10: Indicadores po Objetivo Estratégico | O10: Frecuencia | P10: Estado con respecto a la Meta | R10: Tendencia con respecto al mes anteior | S10: Valor Actual del Mes | T10: Valor Meta | U10: Unidad | V10: Peso % | W10: Responsable | AD10: =VLOOKUP($T$4,$AC$18:$AH$30,6,FALSE) -> 2013OCTUBRE31 | AE10: =VLOOKUP($T$4,$AC$18:$AH$30,5,FALSE) -> 2013NOVIEMBRE30 | AK10: ▪ F07 Volumen de Inversiones [FFMM,LAP,DAP] | AL10: 21
AC11: Meta | AD11: Mes Anterior | AE11: Mes Actual | AK11: ▪ F08 Venta Bruta de Seguros (Indiv.+Vinc.) | AL11: 24
K12: =VLOOKUP(MID($L$7,8,80),Panel_BCI!C8:K82,3,FALSE) -> ▪ F02 Ventas Netas Créditos de Consumo | O12: =IF(K12="","",VLOOKUP($K12,Panel_BCI!$N$8:$EP$82,4,FALSE)) -> Mensual | P12: =IF(AE12>=AC12,2,IF((AE12/AC12)>=0.5,1,0)) -> 1 | Q12: =IF(K12="","",IF(AC12=0,"",+AE12/AC12)) -> 0.6618342263 | R12: =+AF12 -> -0.1891891892 | S12: =TEXT(IF(ISERROR(HLOOKUP($AD$7,Panel_BCI!$S$6:$EP$82,VLOOKUP(K12,$AK$4:$AN$27,2,FALSE)+2,FALSE)=TRUE),"",HLOOKUP($AD$7,Panel_BCI!$S$6:$EP$82,VLOOKUP(K12,$AK$4:$AN$27,2,FALSE)+2,FALSE)),IF(U12="%","0,00%","###.0")) -> 21 | T12: =TEXT(IF(ISERROR(HLOOKUP($AD$7,Panel_BCI!$S$6:$EP$82,VLOOKUP(K12,$AK$4:$AN$27,2,FALSE),FALSE)=TRUE),"",HLOOKUP($AD$7,Panel_BCI!$S$6:$EP$82,VLOOKUP(K12,$AK$4:$AN$27,2,FALSE),FALSE)),IF(U12="%","0,00%",IF(U12="N°","###.0","###.0,0"))) -> 31,7 | U12: =VLOOKUP($K12,Panel_BCI!$N$8:$EP$82,2,FALSE) -> MM$ | V12: =VLOOKUP(K12,Panel_BCI!E8:K82,3,FALSE) -> 37.5 | W12: =VLOOKUP(K12,Panel_BCI!E8:K82,6,FALSE) -> Ejecutivos Comerciales | AC12: =HLOOKUP($AD$7,Panel_BCI!$S$6:$EP$82,VLOOKUP(K12,$AK$4:$AN$27,2,FALSE),FALSE) -> 31.73 | AD12: =IF(ISERROR(HLOOKUP($AE$7,Panel_BCI!$S$6:$EP$82,VLOOKUP(K12,$AK$4:$AN$27,2,FALSE)+2,FALSE)=TRUE),"",HLOOKUP($AE$7,Panel_BCI!$S$6:$EP$82,VLOOKUP(K12,$AK$4:$AN$27,2,FALSE)+2,FALSE)) -> 25.9 | AE12: =VALUE(S12) -> 21 | AF12: =IF(AD12=0,1,AE12/AD12-1) -> -0.1891891892 | AK12: ▪ C01 SNEX Área Comercial (Encuesta de Satisfacción) | AL12: 27
K13: =IF(VLOOKUP(MID($L$7,8,80),Panel_BCI!$C$8:$K$82,2,FALSE)>=2,HLOOKUP(Detalle_Objetivos!$K$12,Panel_BCI!$C$86:$J$89,2,FALSE),"") -> ▪ F03 Ventas Netas Tarjetas de Crédito (TC) | O13: =IF(K13="","",VLOOKUP($K13,Panel_BCI!$N$8:$EP$82,4,FALSE)) -> Mensual | P13: =IF(K13="","",IF(AE13>=AC13,2,IF((AE13/AC13)>=0.5,1,0))) -> 2 | Q13: =IF(K13="","",IF(AC13=0,"",+AE13/AC13)) -> 1.925 | R13: =IF(K13="","",+AF13) -> -0.09411764706 | S13: =TEXT(IF(ISERROR(HLOOKUP($AD$7,Panel_BCI!$S$6:$EP$82,VLOOKUP(K13,$AK$4:$AN$27,2,FALSE)+2,FALSE)=TRUE),"",HLOOKUP($AD$7,Panel_BCI!$S$6:$EP$82,VLOOKUP(K13,$AK$4:$AN$27,2,FALSE)+2,FALSE)),IF(U13="%","0,00%","###.0")) -> 77 | T13: =TEXT(IF(ISERROR(HLOOKUP($AD$7,Panel_BCI!$S$6:$EP$82,VLOOKUP(K13,$AK$4:$AN$27,2,FALSE),FALSE)=TRUE),"",HLOOKUP($AD$7,Panel_BCI!$S$6:$EP$82,VLOOKUP(K13,$AK$4:$AN$27,2,FALSE),FALSE)),IF(U13="%","0,00%",IF(U13="N°","###.0","###.0,0"))) -> 40 | U13: =IF(K13="","",VLOOKUP($K13,Panel_BCI!$N$8:$EP$82,2,FALSE)) -> N° | V13: =IF(K13="","",VLOOKUP(K13,Panel_BCI!E9:K83,3,FALSE)) -> 25 | W13: =IF(K13="","",VLOOKUP(K13,Panel_BCI!E9:K83,6,FALSE)) -> Ejecutivos Comerciales | AC13: =HLOOKUP($AD$7,Panel_BCI!$S$6:$EP$82,VLOOKUP(K13,$AK$4:$AN$27,2,FALSE),FALSE) -> 40 | AD13: =IF(ISERROR(HLOOKUP($AE$7,Panel_BCI!$S$6:$EP$82,VLOOKUP(K13,$AK$4:$AN$27,2,FALSE)+2,FALSE)=TRUE),"",HLOOKUP($AE$7,Panel_BCI!$S$6:$EP$82,VLOOKUP(K13,$AK$4:$AN$27,2,FALSE)+2,FALSE)) -> 85 | AE13: =VALUE(S13) -> 77 | AF13: =IF(AD13=0,1,AE13/AD13-1) -> -0.09411764706 | AK13: ▪ C02 SNEX Área Operativa (Encuesta de Satisfacción) | AL13: 30
K14: =IF(VLOOKUP(MID($L$7,8,80),Panel_BCI!$C$8:$K$82,2,FALSE)>=3,HLOOKUP(Detalle_Objetivos!$K$12,Panel_BCI!$C$86:$J$89,3,FALSE),"") -> ▪ F04 N° Aperturas de Cuentas Corrientes (CCT) | O14: =IF(K14="","",VLOOKUP($K14,Panel_BCI!$N$8:$EP$82,4,FALSE)) -> Mensual | P14: =IF(K14="","",IF(AE14>=AC14,2,IF((AE14/AC14)>=0.5,1,0))) -> 1 | Q14: =IF(K14="","",IF(AC14=0,"",+AE14/AC14)) -> 0.7368421053 | R14: =IF(K14="","",+AF14) -> -0.5333333333 | S14: =TEXT(IF(ISERROR(HLOOKUP($AD$7,Panel_BCI!$S$6:$EP$82,VLOOKUP(K14,$AK$4:$AN$27,2,FALSE)+2,FALSE)=TRUE),"",HLOOKUP($AD$7,Panel_BCI!$S$6:$EP$82,VLOOKUP(K14,$AK$4:$AN$27,2,FALSE)+2,FALSE)),IF(U14="%","0,00%","###.0")) -> 14 | T14: =TEXT(IF(ISERROR(HLOOKUP($AD$7,Panel_BCI!$S$6:$EP$82,VLOOKUP(K14,$AK$4:$AN$27,2,FALSE),FALSE)=TRUE),"",HLOOKUP($AD$7,Panel_BCI!$S$6:$EP$82,VLOOKUP(K14,$AK$4:$AN$27,2,FALSE),FALSE)),IF(U14="%","0,00%",IF(U14="N°","###.0","###.0,0"))) -> 19 | U14: =IF(K14="","",VLOOKUP($K14,Panel_BCI!$N$8:$EP$82,2,FALSE)) -> N° | V14: =IF(K14="","",VLOOKUP(K14,Panel_BCI!E10:K84,3,FALSE)) -> 25 | W14: =IF(K14="","",VLOOKUP(K14,Panel_BCI!E10:K84,6,FALSE)) -> Ejecutivos Comerciales | AC14: =HLOOKUP($AD$7,Panel_BCI!$S$6:$EP$82,VLOOKUP(K14,$AK$4:$AN$27,2,FALSE),FALSE) -> 19 | AD14: =IF(ISERROR(HLOOKUP($AE$7,Panel_BCI!$S$6:$EP$82,VLOOKUP(K14,$AK$4:$AN$27,2,FALSE)+2,FALSE)=TRUE),"",HLOOKUP($AE$7,Panel_BCI!$S$6:$EP$82,VLOOKUP(K14,$AK$4:$AN$27,2,FALSE)+2,FALSE)) -> 30 | AE14: =VALUE(S14) -> 14 | AF14: =IF(AD14=0,1,AE14/AD14-1) -> -0.5333333333 | AK14: ▪ C05 N° Cierres Cuentas Corrientes voluntarias | AL14: 36
K15: =IF(VLOOKUP(MID($L$7,8,80),Panel_BCI!$C$8:$K$82,2,FALSE)>=4,HLOOKUP(Detalle_Objetivos!$K$12,Panel_BCI!$C$86:$J$89,4,FALSE),"") -> ▪ F05 Ventas Netas Cred. Hipotecario (CHIP) | O15: =IF(K15="","",VLOOKUP($K15,Panel_BCI!$N$8:$EP$82,4,FALSE)) -> Mensual | P15: =IF(K15="","",IF(AE15>=AC15,2,IF((AE15/AC15)>=0.5,1,0))) -> 1 | Q15: =IF(K15="","",IF(AC15=0,"",+AE15/AC15)) -> 0.5033840948 | R15: =IF(K15="","",+AF15) -> -0.5777146913 | S15: =TEXT(IF(ISERROR(HLOOKUP($AD$7,Panel_BCI!$S$6:$EP$82,VLOOKUP(K15,$AK$4:$AN$27,2,FALSE)+2,FALSE)=TRUE),"",HLOOKUP($AD$7,Panel_BCI!$S$6:$EP$82,VLOOKUP(K15,$AK$4:$AN$27,2,FALSE)+2,FALSE)),IF(U15="%","0,00%","###.0")) -> 119 | T15: =TEXT(IF(ISERROR(HLOOKUP($AD$7,Panel_BCI!$S$6:$EP$82,VLOOKUP(K15,$AK$4:$AN$27,2,FALSE),FALSE)=TRUE),"",HLOOKUP($AD$7,Panel_BCI!$S$6:$EP$82,VLOOKUP(K15,$AK$4:$AN$27,2,FALSE),FALSE)),IF(U15="%","0,00%",IF(U15="N°","###.0","###.0,0"))) -> 236,4 | U15: =IF(K15="","",VLOOKUP($K15,Panel_BCI!$N$8:$EP$82,2,FALSE)) -> MM$ | V15: =IF(K15="","",VLOOKUP(K15,Panel_BCI!E11:K85,3,FALSE)) -> 12.5 | W15: =IF(K15="","",VLOOKUP(K15,Panel_BCI!E11:K85,6,FALSE)) -> Ejecutivos Comerciales | AC15: =HLOOKUP($AD$7,Panel_BCI!$S$6:$EP$82,VLOOKUP(K15,$AK$4:$AN$27,2,FALSE),FALSE) -> 236.4 | AD15: =IF(ISERROR(HLOOKUP($AE$7,Panel_BCI!$S$6:$EP$82,VLOOKUP(K15,$AK$4:$AN$27,2,FALSE)+2,FALSE)=TRUE),"",HLOOKUP($AE$7,Panel_BCI!$S$6:$EP$82,VLOOKUP(K15,$AK$4:$AN$27,2,FALSE)+2,FALSE)) -> 281.8 | AE15: =VALUE(S15) -> 119 | AF15: =IF(AD15=0,1,AE15/AD15-1) -> -0.5777146913 | AK15: ▪ C03 Win Rate por Clientes | AL15: 39
AK16: ▪ C04 Win Rate por Monto | AL16: 42
D17: ESTADO | P17: ▪ Ventas Netas Tarjetas de Crédito (TC) | U17: ▪ N° Cuentas Corrientes Aperturadas | AK17: ▪ PI01 % Cumplimiento de Hábitos Gestionados | AL17: 45
C18: 5 | D18: El valor a la fecha es igual o superior a la meta | K18: =+'F02'!A40 -> Octubre | O18: =+K18 -> Octubre | T18: =+O18 -> Octubre | AG18: MES ACTUAL | AH18: MES ANTERIOR | AI18: MES ANTERIOR | AK18: ▪ PI02 % de Hábitos Gestionados en campaña | AL18: 48
C19: 3 | D19: El valor a la fecha es al menos un 50% de la meta | K19: =+'F02'!A39 -> Noviembre | O19: =+K19 -> Noviembre | T19: =+O19 -> Noviembre | AC19: ENERO | AD19: 31 | AE19: DICIEMBRE | AF19: 31 | AG19: =+$V$4&AC19&AD19 -> 2013ENERO31 | AH19: =($V$4-1)&AE19&AF19 -> 2012DICIEMBRE31 | AI19: =($V$4-1)&AE19&"0" -> 2012DICIEMBRE0 | AK19: ▪ PI03 Eventos Gestionados | AL19: 51
C20: 0 | D20: El valor a la fecha es inferior al 50% de la meta | AC20: FEBRERO | AD20: =IF($AD$8=28,28,29) -> 28 | AE20: ENERO | AF20: 31 | AG20: =+$V$4&AC20&AD20 -> 2013FEBRERO28 | AH20: =($V$4)&AE20&AF20 -> 2013ENERO31 | AI20: =($V$4)&AE20&"0" -> 2013ENERO0 | AK20: ▪ PI04 N° Operaciones Enviadas (SUC) | AL20: 54
AC21: MARZO | AD21: 31 | AE21: FEBRERO | AF21: =+AD20 -> 28 | AG21: 2013MARZO31 | AH21: =($V$4)&AE21&AF21 -> 2013FEBRERO28 | AI21: =($V$4)&AE21&"0" -> 2013FEBRERO0 | AK21: ▪ PI05 Operaciones aprobadas (SUC) | AL21: 57
D22: TENDENCIA | AC22: ABRIL | AD22: 30 | AE22: MARZO | AF22: 31 | AG22: 2013ABRIL30 | AH22: 2013MARZO31 | AI22: 2013MARZO0 | AK22: ▪ PI06 N° Arqueo Físico | AL22: 60
C23: 5 | D23: Variación positiva | AC23: MAYO | AD23: 31 | AE23: ABRIL | AF23: 30 | AG23: 2013MAYO31 | AH23: 2013ABRIL30 | AI23: 2013ABRIL0 | AK23: ▪ PI07 Diferencia de Caja | AL23: 63
C24: 0 | D24: Variación constante | AC24: JUNIO | AD24: 30 | AE24: MAYO | AF24: 31 | AG24: 2013JUNIO30 | AH24: 2013MAYO31 | AI24: 2013MAYO0 | AK24: ▪ AC01 N° de colaboradores que asisten a cursos de formación profesional | AL24: 66
C25: 3 | D25: Variación negativa | AC25: JULIO | AD25: 31 | AE25: JUNIO | AF25: 30 | AG25: 2013JULIO31 | AH25: 2013JUNIO30 | AI25: 2013JUNIO0 | AK25: ▪ AC02 N° Ideas presentadas [concurso] | AL25: 69
AC26: AGOSTO | AD26: 31 | AE26: JULIO | AF26: 31 | AG26: 2013AGOSTO31 | AH26: 2013JULIO31 | AI26: 2013JULIO0 | AK26: ▪ AC03 % de satisfacción del clima laboral | AL26: 72
AC27: SEPTIEMBRE | AD27: 30 | AE27: AGOSTO | AF27: 31 | AG27: 2013SEPTIEMBRE30 | AH27: 2013AGOSTO31 | AI27: 2013AGOSTO0 | AK27: ▪ AC04 % Resultados Encuesta de Ejecución | AL27: 75
AC28: OCTUBRE | AD28: 31 | AE28: SEPTIEMBRE | AF28: 30 | AG28: 2013OCTUBRE31 | AH28: 2013SEPTIEMBRE30 | AI28: 2013SEPTIEMBRE0
AC29: NOVIEMBRE | AD29: 30 | AE29: OCTUBRE | AF29: 31 | AG29: 2013NOVIEMBRE30 | AH29: 2013OCTUBRE31 | AI29: 2013OCTUBRE0
AC30: DICIEMBRE | AD30: 31 | AE30: NOVIEMBRE | AF30: 30 | AG30: 2013DICIEMBRE31 | AH30: 2013NOVIEMBRE30 | AI30: 2013NOVIEMBRE0

Sheet Panel_BCI (hidden)
R1: NO BORRAR ---> | T1: =IF(OR(T5="F",T5="FD"),"",+T2&T3) -> 2013OCTUBRE | U1: =IF(OR(U5="F",U5="FD"),"",+U2&U3) -> 2013OCTUBRE | V1: =IF(OR(V5="F",V5="FD"),"",+V2&V3) -> 2013OCTUBRE | W1: =IF(OR(W5="F",W5="FD"),"",+W2&W3) -> 2013OCTUBRE | X1: =IF(OR(X5="F",X5="FD"),"",+X2&X3) ->  | Z1: 2013OCTUBRE | AA1: 2013OCTUBRE | AB1: 2013OCTUBRE | AC1: 2013OCTUBRE | AD1: 2013OCTUBRE | AG1: 2013OCTUBRE | AH1: =IF(OR(AH5="F",AH5="FD"),"",+AH2&AH3) -> 2013OCTUBRE | AI1: 2013OCTUBRE | AJ1: 2013OCTUBRE | AK1: 2013OCTUBRE | AN1: 2013OCTUBRE | AO1: 2013OCTUBRE | AP1: 2013OCTUBRE | AQ1: 2013OCTUBRE | AR1: 2013OCTUBRE | AU1: 2013OCTUBRE | AV1: 2013OCTUBRE | AW1: =IF(OR(AW5="F",AW5="FD"),"",+AW2&AW3) -> 2013OCTUBRE | AX1: =IF(OR(AX5="F",AX5="FD"),"",+AX2&AX3) ->  | AZ1: =IF(OR(AZ5="F",AZ5="FD"),"",+AZ2&AZ3) ->  | BA1: =IF(OR(BA5="F",BA5="FD"),"",+BA2&BA3) ->  | BB1: =IF(OR(BB5="F",BB5="FD"),"",+BB2&BB3) ->  | BC1: =IF(OR(BC5="F",BC5="FD"),"",+BC2&BC3) -> 2013NOVIEMBRE | BD1: =IF(OR(BD5="F",BD5="FD"),"",+BD2&BD3) -> 2013NOVIEMBRE | BE1: 2013NOVIEMBRE | BF1: 2013NOVIEMBRE | BG1: 2013NOVIEMBRE | BJ1: 2013NOVIEMBRE | BK1: 2013NOVIEMBRE | BL1: 2013NOVIEMBRE | BM1: 2013NOVIEMBRE | BN1: =IF(OR(BN5="F",BN5="FD"),"",+BN2&BN3) -> 2013NOVIEMBRE | BO1: =IF(OR(BO5="F",BO5="FD"),"",+BO2&BO3) ->  | BQ1: 2013NOVIEMBRE | BR1: 2013NOVIEMBRE | BS1: 2013NOVIEMBRE | BT1: 2013NOVIEMBRE | BU1: 2013NOVIEMBRE | BX1: 2013NOVIEMBRE | BY1: 2013NOVIEMBRE | BZ1: 2013NOVIEMBRE | CA1: 2013NOVIEMBRE | CB1: 2013NOVIEMBRE | CC1: =IF(OR(CC5="F",CC5="FD"),"",+CC2&CC3) ->  | CE1: =IF(OR(CE5="F",CE5="FD"),"",+CE2&CE3) ->  | CF1: =IF(OR(CF5="F",CF5="FD"),"",+CF2&CF3) -> 2013DICIEMBRE | CG1: 2013DICIEMBRE | CH1: 2013DICIEMBRE | CI1: 2013DICIEMBRE | CJ1: 2013DICIEMBRE | CM1: 2013DICIEMBRE | CN1: =IF(OR(CN5="F",CN5="FD"),"",+CN2&CN3) -> 2013DICIEMBRE | CO1: 2013DICIEMBRE | CP1: 2013DICIEMBRE | CQ1: 2013DICIEMBRE | CT1: 2013DICIEMBRE | CU1: 2013DICIEMBRE | CV1: 2013DICIEMBRE | CW1: 2013DICIEMBRE | CX1: 2013DICIEMBRE | DA1: 2013DICIEMBRE | DB1: 2013DICIEMBRE | DD1: 2013DICIEMBRE | DE1: 2013DICIEMBRE | DH1: 2013DICIEMBRE | DI1: 2013DICIEMBRE | DK1: =IF(OR(DK5="F",DK5="FD"),"",+DK2&DK3) ->  | DL1: 2014ENERO | DM1: 2014ENERO | DP1: 2014ENERO | DQ1: 2014ENERO | DR1: 2014ENERO | DS1: 2014ENERO | DT1: 2014ENERO | DW1: 2014ENERO | DX1: 2014ENERO | DY1: 2014ENERO | DZ1: 2014ENERO | EA1: 2014ENERO | ED1: 2014ENERO | EE1: 2014ENERO | EF1: 2014ENERO | EG1: 2014ENERO | EH1: 2014ENERO | EK1: 2014ENERO | EL1: 2014ENERO | EM1: 2014ENERO | EN1: 2014ENERO | EO1: 2014ENERO
R2: NO BORRAR ---> | S2: 2013 | T2: =+S2 -> 2013 | U2: 2013 | V2: 2013 | W2: =+V2 -> 2013 | X2: 2013 | Y2: 2013 | Z2: 2013 | AA2: 2013 | AB2: 2013 | AC2: 2013 | AD2: 2013 | AE2: 2013 | AF2: 2013 | AG2: 2013 | AH2: 2013 | AI2: 2013 | AJ2: 2013 | AK2: 2013 | AL2: 2013 | AM2: 2013 | AN2: 2013 | AO2: 2013 | AP2: 2013 | AQ2: 2013 | AR2: 2013 | AS2: 2013 | AT2: 2013 | AU2: 2013 | AV2: 2013 | AW2: 2013 | AX2: 2013 | AY2: 2013 | AZ2: =+AY2 -> 2013 | BA2: 2013 | BB2: 2013 | BC2: 2013 | BD2: 2013 | BE2: 2013 | BF2: 2013 | BG2: 2013 | BH2: 2013 | BI2: 2013 | BJ2: 2013 | BK2: 2013 | BL2: 2013 | BM2: 2013 | BN2: 2013 | BO2: 2013 | BP2: 2013 | BQ2: =+BN2 -> 2013 | BR2: =+BQ2 -> 2013 | BS2: 2013 | BT2: 2013 | BU2: 2013 | BV2: 2013 | BW2: 2013 | BX2: =+BU2 -> 2013 | BY2: =+BX2 -> 2013 | BZ2: 2013 | CA2: 2013 | CB2: 2013 | CC2: 2013 | CD2: 2013 | CE2: =+CD2 -> 2013 | CF2: 2013 | CG2: 2013 | CH2: 2013 | CI2: 2013 | CJ2: 2013 | CK2: 2013 | CL2: 2013 | CM2: 2013 | CN2: 2013 | CO2: 2013 | CP2: 2013 | CQ2: 2013 | CR2: 2013 | CS2: 2013 | CT2: 2013 | CU2: 2013 | CV2: =+CS2 -> 2013 | CW2: =+CV2 -> 2013 | CX2: 2013 | CY2: 2013 | CZ2: 2013 | DA2: 2013 | DB2: 2013 | DC2: =+CZ2 -> 2013 | DD2: =+DC2 -> 2013 | DE2: 2013 | DF2: 2013 | DG2: 2013 | DH2: 2013 | DI2: =+DG2 -> 2013 | DJ2: 2014 | DK2: =+DJ2 -> 2014 | DL2: 2014 | DM2: 2014 | DN2: 2014 | DO2: 2014 | DP2: 2014 | DQ2: 2014 | DR2: 2014 | DS2: 2014 | DT2: 2014 | DU2: 2014 | DV2: 2014 | DW2: 2014 | DX2: 2014 | DY2: 2014 | DZ2: 2014 | EA2: 2014 | EB2: =+DY2 -> 2014 | EC2: =+EB2 -> 2014 | ED2: 2014 | EE2: 2014 | EF2: 2014 | EG2: 2014 | EH2: 2014 | EI2: =+EF2 -> 2014 | EJ2: =+EI2 -> 2014 | EK2: 2014 | EL2: 2014 | EM2: 2014 | EN2: 2014 | EO2: =+EM2 -> 2014
E3: 1 | F3: 2 | G3: 3 | H3: 4 | I3: 5 | J3: 6 | K3: 7 | R3: NO BORRAR ---> | S3: OCTUBRE | T3: OCTUBRE | U3: OCTUBRE | V3: OCTUBRE | W3: =+V3 -> OCTUBRE | X3: =+W3 -> OCTUBRE | Y3: OCTUBRE | Z3: OCTUBRE | AA3: OCTUBRE | AB3: =+AA3 -> OCTUBRE | AC3: =+AB3 -> OCTUBRE | AD3: =+AC3 -> OCTUBRE | AE3: OCTUBRE | AF3: OCTUBRE | AG3: OCTUBRE | AH3: OCTUBRE | AI3: =+AH3 -> OCTUBRE | AJ3: =+AI3 -> OCTUBRE | AK3: =+AH3 -> OCTUBRE | AL3: OCTUBRE | AM3: OCTUBRE | AN3: OCTUBRE | AO3: OCTUBRE | AP3: =+AO3 -> OCTUBRE | AQ3: =+AP3 -> OCTUBRE | AR3: =+AO3 -> OCTUBRE | AS3: =+AR3 -> OCTUBRE | AT3: OCTUBRE | AU3: OCTUBRE | AV3: OCTUBRE | AW3: =+AV3 -> OCTUBRE | AX3: =+AW3 -> OCTUBRE | AY3: NOVIEMBRE | AZ3: =+AY3 -> NOVIEMBRE | BA3: NOVIEMBRE | BB3: NOVIEMBRE | BC3: NOVIEMBRE | BD3: NOVIEMBRE | BE3: NOVIEMBRE | BF3: NOVIEMBRE | BG3: NOVIEMBRE | BH3: NOVIEMBRE | BI3: NOVIEMBRE | BJ3: NOVIEMBRE | BK3: NOVIEMBRE | BL3: NOVIEMBRE | BM3: NOVIEMBRE | BN3: NOVIEMBRE | BO3: NOVIEMBRE | BP3: NOVIEMBRE | BQ3: =+BN3 -> NOVIEMBRE | BR3: NOVIEMBRE | BS3: NOVIEMBRE | BT3: NOVIEMBRE | BU3: NOVIEMBRE | BV3: NOVIEMBRE | BW3: NOVIEMBRE | BX3: =+BU3 -> NOVIEMBRE | BY3: NOVIEMBRE | BZ3: NOVIEMBRE | CA3: NOVIEMBRE | CB3: NOVIEMBRE | CC3: NOVIEMBRE | CD3: DICIEMBRE | CE3: =+CD3 -> DICIEMBRE | CF3: DICIEMBRE | CG3: DICIEMBRE | CH3: DICIEMBRE | CI3: DICIEMBRE | CJ3: DICIEMBRE | CK3: DICIEMBRE | CL3: DICIEMBRE | CM3: DICIEMBRE | CN3: DICIEMBRE | CO3: DICIEMBRE | CP3: DICIEMBRE | CQ3: DICIEMBRE | CR3: DICIEMBRE | CS3: DICIEMBRE | CT3: DICIEMBRE | CU3: DICIEMBRE | CV3: =+CS3 -> DICIEMBRE | CW3: DICIEMBRE | CX3: DICIEMBRE | CY3: DICIEMBRE | CZ3: DICIEMBRE | DA3: DICIEMBRE | DB3: DICIEMBRE | DC3: =+CZ3 -> DICIEMBRE | DD3: DICIEMBRE | DE3: DICIEMBRE | DF3: DICIEMBRE | DG3: DICIEMBRE | DH3: DICIEMBRE | DI3: =+DG3 -> DICIEMBRE | DJ3: ENERO | DK3: =+DJ3 -> ENERO | DL3: ENERO | DM3: ENERO | DN3: ENERO | DO3: ENERO | DP3: ENERO | DQ3: ENERO | DR3: ENERO | DS3: ENERO | DT3: ENERO | DU3: ENERO | DV3: ENERO | DW3: ENERO | DX3: ENERO | DY3: ENERO | DZ3: ENERO | EA3: ENERO | EB3: =+DY3 -> ENERO | EC3: ENERO | ED3: ENERO | EE3: ENERO | EF3: ENERO | EG3: ENERO | EH3: ENERO | EI3: =+EF3 -> ENERO | EJ3: ENERO | EK3: ENERO | EL3: ENERO | EM3: ENERO | EN3: ENERO | EO3: =+EM3 -> ENERO
R4: NO BORRAR ---> | S4: 0 | T4: 1 | U4: =+T4+1 -> 2 | V4: =+U4+1 -> 3 | W4: =+V4+1 -> 4 | X4: =+W4+1 -> 5 | Y4: =+X4+1 -> 6 | Z4: 7 | AA4: 8 | AB4: 9 | AC4: 10 | AD4: 11 | AE4: 12 | AF4: 13 | AG4: 14 | AH4: 15 | AI4: 16 | AJ4: 17 | AK4: 18 | AL4: =+AK4+1 -> 19 | AM4: 20 | AN4: 21 | AO4: 22 | AP4: 23 | AQ4: 24 | AR4: =+AO4+3 -> 25 | AS4: =+AR4+1 -> 26 | AT4: 27 | AU4: 28 | AV4: 29 | AW4: 30 | AX4: 31 | AY4: 0 | AZ4: 1 | BA4: =+AZ4+1 -> 2 | BB4: 3 | BC4: 4 | BD4: 5 | BE4: 6 | BF4: 7 | BG4: 8 | BH4: 9 | BI4: 10 | BJ4: 11 | BK4: 12 | BL4: 13 | BM4: 14 | BN4: 15 | BO4: 16 | BP4: 17 | BQ4: 18 | BR4: 19 | BS4: 20 | BT4: 21 | BU4: 22 | BV4: 23 | BW4: 24 | BX4: =+BU4+3 -> 25 | BY4: =+BX4+1 -> 26 | BZ4: =+BY4+1 -> 27 | CA4: =+BZ4+1 -> 28 | CB4: =+CA4+1 -> 29 | CC4: =+CB4+1 -> 30 | CD4: 0 | CE4: 1 | CF4: =+CE4+1 -> 2 | CG4: 3 | CH4: 4 | CI4: 5 | CJ4: 6 | CK4: 7 | CL4: 8 | CM4: 9 | CN4: 10 | CO4: 11 | CP4: 12 | CQ4: 13 | CR4: 14 | CS4: 15 | CT4: 16 | CU4: 17 | CV4: 18 | CW4: 19 | CX4: 20 | CY4: 21 | CZ4: 22 | DA4: 23 | DB4: 24 | DC4: =+CZ4+3 -> 25 | DD4: =+DC4+1 -> 26 | DE4: 27 | DF4: 28 | DG4: 29 | DH4: 30 | DI4: 31 | DJ4: 0 | DK4: 1 | DL4: =+DK4+1 -> 2 | DM4: 3 | DN4: 4 | DO4: 5 | DP4: 6 | DQ4: 7 | DR4: 8 | DS4: 9 | DT4: 10 | DU4: 11 | DV4: 12 | DW4: 13 | DX4: 14 | DY4: 15 | DZ4: 16 | EA4: 17 | EB4: 18 | EC4: 19 | ED4: 20 | EE4: 21 | EF4: 22 | EG4: 23 | EH4: 24 | EI4: =+EF4+3 -> 25 | EJ4: =+EI4+1 -> 26 | EK4: 27 | EL4: 28 | EM4: 29 | EN4: 30 | EO4: 31
M5: Filas AUXILIARES | R5: NO BORRAR ---> | X5: FD | Y5: FD | AE5: FD | AF5: FD | AL5: FD | AM5: FD | AS5: FD | AT5: FD | AX5: F | AZ5: F | BA5: FD | BB5: FD | BH5: FD | BI5: FD | BO5: FD | BP5: FD | BV5: FD | BW5: FD | CC5: FD | CE5: FD | CK5: FD | CL5: FD | CR5: FD | CS5: FD | CY5: FD | CZ5: FD | DC5: F | DF5: FD | DG5: FD | DK5: F | DN5: FD | DO5: FD | DU5: FD | DV5: FD | EB5: FD | EC5: FD | EI5: FD | EJ5: FD
C6: Objetivo Estratégico | D6: N_INDICADORES | E6: INDICADOR | F6: FRECUENCIA | G6: % intraObjetivo | H6: META | I6: UNIDAD | J6: RESPONSABLE | K6: Perspectiva | M6: 1 | N6: 1 | O6: 2 | P6: 3 | Q6: 4 | R6: 5 | S6: =+S2&S3&S4 -> 2013OCTUBRE0 | T6: =IF(OR(T5="F",T5="FD"),"",+T2&T3&T4) -> 2013OCTUBRE1 | U6: =IF(OR(U5="F",U5="FD"),"",+U2&U3&U4) -> 2013OCTUBRE2 | V6: 2013OCTUBRE3 | W6: 2013OCTUBRE4 | Z6: 2013OCTUBRE7 | AA6: =IF(OR(AA5="F",AA5="FD"),"",+AA2&AA3&AA4) -> 2013OCTUBRE8 | AB6: 2013OCTUBRE9 | AC6: 2013OCTUBRE10 | AD6: 2013OCTUBRE11 | AG6: 2013OCTUBRE14 | AH6: 2013OCTUBRE15 | AI6: 2013OCTUBRE16 | AJ6: 2013OCTUBRE17 | AK6: 2013OCTUBRE18 | AN6: 2013OCTUBRE21 | AO6: 2013OCTUBRE22 | AP6: 2013OCTUBRE23 | AQ6: 2013OCTUBRE24 | AR6: 2013OCTUBRE25 | AU6: 2013OCTUBRE28 | AV6: 2013OCTUBRE29 | AW6: 2013OCTUBRE30 | AY6: =+AY2&AY3&AY4 -> 2013NOVIEMBRE0 | AZ6: =IF(OR(AZ5="F",AZ5="FD"),"",+AZ2&AZ3&AZ4) ->  | BA6: =IF(OR(BA5="F",BA5="FD"),"",+BA2&BA3&BA4) ->  | BC6: 2013NOVIEMBRE4 | BD6: 2013NOVIEMBRE5 | BE6: 2013NOVIEMBRE6 | BF6: 2013NOVIEMBRE7 | BG6: 2013NOVIEMBRE8 | BJ6: 2013NOVIEMBRE11 | BK6: 2013NOVIEMBRE12 | BL6: 2013NOVIEMBRE13 | BM6: 2013NOVIEMBRE14 | BN6: 2013NOVIEMBRE15 | BQ6: 2013NOVIEMBRE18 | BR6: 2013NOVIEMBRE19 | BS6: 2013NOVIEMBRE20 | BT6: 2013NOVIEMBRE21 | BU6: 2013NOVIEMBRE22 | BX6: 2013NOVIEMBRE25 | BY6: 2013NOVIEMBRE26 | BZ6: 2013NOVIEMBRE27 | CA6: 2013NOVIEMBRE28 | CB6: 2013NOVIEMBRE29 | CD6: =+CD2&CD3&CD4 -> 2013DICIEMBRE0 | CE6: =IF(OR(CE5="F",CE5="FD"),"",+CE2&CE3&CE4) ->  | CF6: =IF(OR(CF5="F",CF5="FD"),"",+CF2&CF3&CF4) -> 2013DICIEMBRE2 | CG6: 2013DICIEMBRE3 | CH6: 2013DICIEMBRE4 | CI6: 2013DICIEMBRE5 | CJ6: 2013DICIEMBRE6 | CM6: 2013DICIEMBRE9 | CN6: 2013DICIEMBRE10 | CO6: 2013DICIEMBRE11 | CP6: 2013DICIEMBRE12 | CQ6: 2013DICIEMBRE13 | CT6: 2013DICIEMBRE16 | CU6: 2013DICIEMBRE17 | CV6: 2013DICIEMBRE18 | CW6: 2013DICIEMBRE19 | CX6: 2013DICIEMBRE20 | DA6: 2013DICIEMBRE23 | DB6: 2013DICIEMBRE24 | DD6: 2013DICIEMBRE26 | DE6: 2013DICIEMBRE27 | DH6: =IF(OR(DH5="F",DH5="FD"),"",+DH2&DH3&DH4) -> 2013DICIEMBRE30 | DI6: =IF(OR(DI5="F",DI5="FD"),"",+DI2&DI3&DI4) -> 2013DICIEMBRE31 | DJ6: =+DJ2&DJ3&DJ4 -> 2014ENERO0 | DK6: =IF(OR(DK5="F",DK5="FD"),"",+DK2&DK3&DK4) ->  | DL6: =IF(OR(DL5="F",DL5="FD"),"",+DL2&DL3&DL4) -> 2014ENERO2 | DM6: 2014ENERO3 | DP6: 2014ENERO6 | DQ6: 2014ENERO7 | DR6: 2014ENERO8 | DS6: 2014ENERO9 | DT6: 2014ENERO10 | DW6: 2014ENERO13 | DX6: 2014ENERO14 | DY6: 2014ENERO15 | DZ6: 2014ENERO16 | EA6: 2014ENERO17 | ED6: 2014ENERO20 | EE6: 2014ENERO21 | EF6: 2014ENERO22 | EG6: 2014ENERO23 | EH6: 2014ENERO24 | EK6: 2014ENERO27 | EL6: 2014ENERO28 | EM6: 2014ENERO29 | EN6: 2014ENERO30 | EO6: 2014ENERO31
M7: 2 | N7: SEMANAS
B8: 1 | C8: Obtener Rentabilidad Operativa para Sucursal Bancaria | D8: 1 | E8: ▪ F01 ROI / ROA | F8: Mensual | G8: 100 | H8: 1.51 | I8: % | J8: JOF | K8: FINANCIERA | M8: 3 | N8: =+E8 -> ▪ F01 ROI / ROA | O8: =+I8 -> % | P8: META | Q8: =+F8 -> Mensual | R8: =+N8&P8&Q8 -> ▪ F01 ROI / ROAMETAMensual | S8: =0.0151 -> 0.0151 | T8: =IF(OR(T$5="F",T$5="FD"),0,$S8) -> 0.0151 | U8: =IF(OR(U$5="F",U$5="FD"),0,$S8) -> 0.0151 | V8: 0.0151 | W8: 0.0151 | X8: =IF(OR(X$5="F",X$5="FD"),0,$S8) -> 0 | Y8: 0 | Z8: 0.0151 | AA8: 0.0151 | AB8: 0.0151 | AC8: 0.0151 | AD8: 0.0151 | AE8: 0 | AF8: 0 | AG8: 0.0151 | AH8: 0.0151 | AI8: 0.0151 | AJ8: 0.0151 | AK8: 0.0151 | AL8: 0 | AM8: 0 | AN8: 0.0151 | AO8: 0.0151 | AP8: 0.0151 | AQ8: 0.0151 | AR8: 0.0151 | AS8: 0 | AT8: 0 | AU8: 0.0151 | AV8: 0.0151 | AW8: 0.0151 | AX8: 0 | AY8: =0.0151 -> 0.0151 | AZ8: =IF(OR(AZ$5="F",AZ$5="FD"),0,$S8) -> 0 | BA8: =IF(OR(BA$5="F",BA$5="FD"),0,$S8) -> 0 | BB8: 0 | BC8: 0.0151 | BD8: =IF(OR(BD$5="F",BD$5="FD"),0,$S8) -> 0.0151 | BE8: 0.0151 | BF8: 0.0151 | BG8: 0.0151 | BH8: 0 | BI8: 0 | BJ8: 0.0151 | BK8: 0.0151 | BL8: 0.0151 | BM8: 0.0151 | BN8: 0.0151 | BO8: 0 | BP8: 0 | BQ8: 0.0151 | BR8: 0.0151 | BS8: 0.0151 | BT8: 0.0151 | BU8: 0.0151 | BV8: 0 | BW8: 0 | BX8: 0.0151 | BY8: 0.0151 | BZ8: 0.0151 | CA8: 0.0151 | CB8: 0.0151 | CC8: 0 | CD8: =0.0151 -> 0.0151 | CE8: =IF(OR(CE$5="F",CE$5="FD"),0,$S8) -> 0 | CF8: =IF(OR(CF$5="F",CF$5="FD"),0,$S8) -> 0.0151 | CG8: 0.0151 | CH8: 0.0151 | CI8: =IF(OR(CI$5="F",CI$5="FD"),0,$S8) -> 0.0151 | CJ8: 0.0151 | CK8: 0 | CL8: 0 | CM8: 0.0151 | CN8: 0.0151 | CO8: 0.0151 | CP8: 0.0151 | CQ8: 0.0151 | CR8: 0 | CS8: 0 | CT8: 0.0151 | CU8: 0.0151 | CV8: 0.0151 | CW8: 0.0151 | CX8: 0.0151 | CY8: 0 | CZ8: 0 | DA8: 0.0151 | DB8: 0.0151 | DC8: 0 | DD8: 0.0151 | DE8: 0.0151 | DF8: 0 | DG8: 0 | DH8: 0.0151 | DI8: 0.0151 | DJ8: =0.0151 -> 0.0151 | DK8: =IF(OR(DK$5="F",DK$5="FD"),0,$S8) -> 0 | DL8: =IF(OR(DL$5="F",DL$5="FD"),0,$S8) -> 0.0151 | DM8: 0.0151 | DN8: 0 | DO8: =IF(OR(DO$5="F",DO$5="FD"),0,$S8) -> 0 | DP8: 0.0151 | DQ8: 0.0151 | DR8: 0.0151 | DS8: 0.0151 | DT8: 0.0151 | DU8: 0 | DV8: 0 | DW8: 0.0151 | DX8: 0.0151 | DY8: 0.0151 | DZ8: 0.0151 | EA8: 0.0151 | EB8: 0 | EC8: 0 | ED8: 0.0151 | EE8: 0.0151 | EF8: 0.0151 | EG8: 0.0151 | EH8: 0.0151 | EI8: 0 | EJ8: 0 | EK8: 0.0151 | EL8: 0.0151 | EM8: 0.0151 | EN8: 0.0151 | EO8: 0.0151
E9: =+E8 -> ▪ F01 ROI / ROA | M9: 4 | N9: =+E9 -> ▪ F01 ROI / ROA | P9: ACTUAL | Q9: =+Q8 -> Mensual | R9: ▪ F01 ROI / ROAACTUALMensual | S9: =COUNTIF($S$1:$EO$1,S$2&S$3) -> 22 | AW9: 0.0149 | AY9: =COUNTIF($S$1:$EO$1,AY$2&AY$3) -> 20 | CB9: 0.015 | CD9: =COUNTIF($S$1:$EO$1,CD$2&CD$3) -> 21 | DI9: 0.0148 | DJ9: =COUNTIF($S$1:$EO$1,DJ$2&DJ$3) -> 22 | EO9: 0.0145
E10: =+E9 -> ▪ F01 ROI / ROA | M10: 5 | N10: ▪ F01 ROI / ROA | P10: ACUM | Q10: =+Q9 -> Mensual | R10: ▪ F01 ROI / ROAACUMMensual | S10: =SUM(T9:AX9) -> 0.0149 | T10: =+T9 -> 0 | U10: =+U9 -> 0 | V10: 0 | W10: 0 | X10: 0 | Y10: 0 | Z10: 0 | AA10: 0 | AB10: 0 | AC10: 0 | AD10: 0 | AE10: 0 | AF10: 0 | AG10: 0 | AH10: 0 | AI10: 0 | AJ10: 0 | AK10: 0 | AL10: 0 | AM10: 0 | AN10: 0 | AO10: 0 | AP10: 0 | AQ10: 0 | AR10: 0 | AS10: 0 | AT10: 0 | AU10: 0 | AV10: 0 | AW10: 0.0149 | AX10: 0 | AY10: =SUM(AZ9:CC9) -> 0.015 | AZ10: =+AZ9 -> 0 | BA10: =+BA9 -> 0 | BB10: 0 | BC10: 0 | BD10: 0 | BE10: 0 | BF10: 0 | BG10: 0 | BH10: 0 | BI10: 0 | BJ10: 0 | BK10: 0 | BL10: 0 | BM10: 0 | BN10: 0 | BO10: 0 | BP10: 0 | BQ10: 0 | BR10: 0 | BS10: 0 | BT10: 0 | BU10: 0 | BV10: 0 | BW10: 0 | BX10: 0 | BY10: 0 | BZ10: 0 | CA10: 0 | CB10: 0.015 | CC10: 0 | CD10: =AVERAGE(CE9:DI9) -> 0.0148 | CE10: =+CE9 -> 0 | CF10: =+CF9 -> 0 | CG10: 0 | CH10: 0 | CI10: 0 | CJ10: 0 | CK10: 0 | CL10: 0 | CM10: 0 | CN10: 0 | CO10: 0 | CP10: 0 | CQ10: 0 | CR10: 0 | CS10: 0 | CT10: 0 | CU10: 0 | CV10: 0 | CW10: 0 | CX10: 0 | CY10: 0 | CZ10: 0 | DA10: 0 | DB10: 0 | DC10: 0 | DD10: 0 | DE10: 0 | DF10: 0 | DG10: 0 | DH10: =+DH9 -> 0 | DI10: =+DI9 -> 0.0148 | DK10: =+DK9 -> 0 | DL10: =+DL9 -> 0 | DM10: 0 | DN10: 0 | DO10: 0 | DP10: 0 | DQ10: 0 | DR10: 0 | DS10: 0 | DT10: 0 | DU10: 0 | DV10: 0 | DW10: 0 | DX10: 0 | DY10: 0 | DZ10: 0 | EA10: 0 | EB10: 0 | EC10: 0 | ED10: 0 | EE10: 0 | EF10: 0 | EG10: 0 | EH10: 0 | EI10: 0 | EJ10: 0 | EK10: 0 | EL10: 0 | EM10: 0 | EN10: 0 | EO10: 0.0145
B11: 2 | C11: Lograr Crecimiento en las Ventas | D11: 4 | E11: ▪ F02 Ventas Netas Créditos de Consumo | F11: Mensual | G11: 37.5 | H11: 30.8 | I11: MM$ | J11: Ejecutivos Comerciales | K11: FINANCIERA | M11: 6 | N11: ▪ F02 Ventas Netas Créditos de Consumo | O11: =+I11 -> MM$ | P11: META | Q11: =+F11 -> Mensual | R11: ▪ F02 Ventas Netas Créditos de ConsumoMETAMensual | S11: 28.96 | T11: =IF(OR(T$5="F",T$5="FD"),0,ROUND($S11/$S12,5)) -> 1.31636 | U11: =IF(OR(U$5="F",U$5="FD"),T11,ROUND($S11/$S12,5)+T11) -> 2.63272 | V11: =IF(OR(V$5="F",V$5="FD"),U11,ROUND($S11/$S12,5)+U11) -> 3.94908 | W11: 5.26544 | X11: 5.26544 | Y11: 5.26544 | Z11: 6.5818 | AA11: 7.89816 | AB11: 9.21452 | AC11: 10.53088 | AD11: 11.84724 | AE11: 11.84724 | AF11: 11.84724 | AG11: 13.1636 | AH11: 14.47996 | AI11: 15.79632 | AJ11: 17.11268 | AK11: 18.42904 | AL11: 18.42904 | AM11: 18.42904 | AN11: 19.7454 | AO11: 21.06176 | AP11: 22.37812 | AQ11: 23.69448 | AR11: 25.01084 | AS11: 25.01084 | AT11: 25.01084 | AU11: 26.3272 | AV11: 27.64356 | AW11: =IF(OR(AW$5="F",AW$5="FD"),AV11,ROUND($S11/$S12,5)+AV11) -> 28.95992 | AX11: =IF(OR(AX$5="F",AX$5="FD"),AW11,ROUND($S11/$S12,5)+AW11) -> 28.95992 | AY11: 31.73 | AZ11: =IF(OR(AZ$5="F",AZ$5="FD"),0,ROUND($AY11/$AY12,3)) -> 0 | BA11: =IF(OR(BA$5="F",BA$5="FD"),AZ11,ROUND($AY11/$AY12,3)+AZ11) -> 0 | BB11: =IF(OR(BB$5="F",BB$5="FD"),BA11,ROUND($AY11/$AY12,3)+BA11) -> 0 | BC11: 1.587 | BD11: 3.174 | BE11: 4.761 | BF11: 6.348 | BG11: 7.935 | BH11: 7.935 | BI11: =IF(OR(BI$5="F",BI$5="FD"),BH11,ROUND($AY11/$AY12,3)+BH11) -> 7.935 | BJ11: 9.522 | BK11: 11.109 | BL11: 12.696 | BM11: 14.283 | BN11: 15.87 | BO11: 15.87 | BP11: 15.87 | BQ11: 17.457 | BR11: 19.044 | BS11: 20.631 | BT11: 22.218 | BU11: 23.805 | BV11: 23.805 | BW11: 23.805 | BX11: 25.392 | BY11: 26.979 | BZ11: 28.566 | CA11: 30.153 | CB11: 31.74 | CC11: 31.74 | CD11: 31.96 | CE11: =IF(OR(CE$5="F",CE$5="FD"),0,ROUND($CD11/$CD12,3)) -> 0 | CF11: =IF(OR(CF$5="F",CF$5="FD"),CE11,ROUND($CD11/$CD12,3)+CE11) -> 1.522 | CG11: 3.044 | CH11: 4.566 | CI11: 6.088 | CJ11: 7.61 | CK11: 7.61 | CL11: 7.61 | CM11: 9.132 | CN11: 10.654 | CO11: 12.176 | CP11: 13.698 | CQ11: 15.22 | CR11: 15.22 | CS11: 15.22 | CT11: 16.742 | CU11: 18.264 | CV11: 19.786 | CW11: 21.308 | CX11: 22.83 | CY11: 22.83 | CZ11: 22.83 | DA11: 24.352 | DB11: 25.874 | DC11: 25.874 | DD11: 27.396 | DE11: 28.918 | DF11: 28.918 | DG11: 28.918 | DH11: 30.44 | DI11: 31.962 | DJ11: 31.96 | DK11: =IF(OR(DK$5="F",DK$5="FD"),0,ROUND($CD11/$CD12,3)) -> 0 | DL11: =IF(OR(DL$5="F",DL$5="FD"),DK11,ROUND($CD11/$CD12,3)+DK11) -> 1.522 | DM11: 3.044 | DN11: 3.044 | DO11: 3.044 | DP11: 4.566 | DQ11: 6.088 | DR11: 7.61 | DS11: 9.132 | DT11: 10.654 | DU11: 10.654 | DV11: 10.654 | DW11: 12.176 | DX11: 13.698 | DY11: 15.22 | DZ11: 16.742 | EA11: 18.264 | EB11: 18.264 | EC11: 18.264 | ED11: 19.786 | EE11: 21.308 | EF11: 22.83 | EG11: 24.352 | EH11: 25.874 | EI11: 25.874 | EJ11: 25.874 | EK11: 27.396 | EL11: 28.918 | EM11: 30.44 | EN11: 31.962 | EO11: 33.484
E12: =+E11 -> ▪ F02 Ventas Netas Créditos de Consumo | M12: 7 | N12: ▪ F02 Ventas Netas Créditos de Consumo | P12: ACTUAL | Q12: =+Q11 -> Mensual | R12: ▪ F02 Ventas Netas Créditos de ConsumoACTUALMensual | S12: =+S9 -> 22 | T12: 1.1 | U12: 0.3 | V12: 1 | W12: 1 | Z12: 0.7 | AA12: 2 | AB12: 2 | AC12: 2 | AD12: 1.1 | AG12: 1 | AH12: 1.3 | AI12: 0.6 | AJ12: 0.3 | AK12: 3 | AN12: 1.2 | AO12: 2 | AP12: 0.7 | AQ12: 0.2 | AR12: 1.4 | AU12: 0.5 | AV12: 1.3 | AW12: 1.2 | AY12: =+AY9 -> 20 | BC12: 1.6 | BD12: 1.5 | BE12: 1.3 | BF12: 0.7 | BG12: 2 | BJ12: 1.1 | BK12: 1.2 | BL12: 2 | BM12: 1 | BN12: 1.3 | BQ12: 3 | BR12: 0.6 | BS12: 0.3 | BT12: 1.2 | BU12: 2 | CD12: =+CD9 -> 21 | DJ12: =+DJ9 -> 22
E13: =+E12 -> ▪ F02 Ventas Netas Créditos de Consumo | M13: 8 | N13: ▪ F02 Ventas Netas Créditos de Consumo | P13: ACUM | Q13: =+Q12 -> Mensual | R13: ▪ F02 Ventas Netas Créditos de ConsumoACUMMensual | S13: =SUM(T12:AX12) -> 25.9 | T13: =+T12 -> 1.1 | U13: =+T13+U12 -> 1.4 | V13: 2.4 | W13: 3.4 | X13: 3.4 | Y13: 3.4 | Z13: 4.1 | AA13: 6.1 | AB13: 8.1 | AC13: 10.1 | AD13: 11.2 | AE13: 11.2 | AF13: 11.2 | AG13: 12.2 | AH13: 13.5 | AI13: 14.1 | AJ13: 14.4 | AK13: 17.4 | AL13: 17.4 | AM13: 17.4 | AN13: 18.6 | AO13: 20.6 | AP13: 21.3 | AQ13: 21.5 | AR13: 22.9 | AS13: 22.9 | AT13: 22.9 | AU13: 23.4 | AV13: 24.7 | AW13: 25.9 | AX13: 25.9 | AY13: =SUM(AZ12:CC12) -> 20.8 | AZ13: =+AZ12 -> 0 | BA13: =+AZ13+BA12 -> 0 | BB13: 0 | BC13: 1.6 | BD13: 3.1 | BE13: 4.4 | BF13: 5.1 | BG13: 7.1 | BH13: 7.1 | BI13: 7.1 | BJ13: 8.2 | BK13: 9.4 | BL13: 11.4 | BM13: 12.4 | BN13: 13.7 | BO13: 13.7 | BP13: 13.7 | BQ13: 16.7 | BR13: 17.3 | BS13: 17.6 | BT13: 18.8 | BU13: 20.8 | BV13: 20.8 | BW13: 20.8 | BX13: 20.8 | BY13: 20.8 | BZ13: 20.8 | CA13: 20.8 | CB13: 20.8 | CC13: 20.8 | CE13: =+CE12 -> 0 | CF13: =+CE13+CF12 -> 0 | CG13: 0 | CH13: 0 | CI13: 0 | CJ13: 0 | CK13: 0 | CL13: 0 | CM13: 0 | CN13: 0 | CO13: 0 | CP13: 0 | CQ13: 0 | CR13: 0 | CS13: 0 | CT13: 0 | CU13: 0 | CV13: 0 | CW13: 0 | CX13: 0 | CY13: 0 | CZ13: 0 | DA13: 0 | DB13: 0 | DC13: 0 | DD13: 0 | DE13: 0 | DF13: 0 | DG13: 0 | DH13: 0 | DI13: 0 | DK13: =+DK12 -> 0 | DL13: =+DK13+DL12 -> 0 | DM13: 0 | DN13: 0 | DO13: 0 | DP13: 0 | DQ13: 0 | DR13: 0 | DS13: 0 | DT13: 0 | DU13: 0 | DV13: 0 | DW13: 0 | DX13: 0 | DY13: 0 | DZ13: 0 | EA13: 0 | EB13: 0 | EC13: 0 | ED13: 0 | EE13: 0 | EF13: 0 | EG13: 0 | EH13: 0 | EI13: 0 | EJ13: 0 | EK13: 0 | EL13: 0 | EM13: 0 | EN13: 0 | EO13: 0
B14: 3 | C14: Lograr Crecimiento en las Ventas | E14: ▪ F03 Ventas Netas Tarjetas de Crédito (TC) | F14: Mensual | G14: 25 | H14: 40 | I14: N° | J14: Ejecutivos Comerciales | K14: FINANCIERA | M14: 9 | N14: ▪ F03 Ventas Netas Tarjetas de Crédito (TC) | O14: =+I14 -> N° | P14: META | Q14: =+F14 -> Mensual | R14: ▪ F03 Ventas Netas Tarjetas de Crédito (TC)METAMensual | S14: 36 | T14: =IF(OR(T$5="F",T$5="FD"),0,ROUND($S14/$S15,3)) -> 1.636 | U14: =IF(OR(U$5="F",U$5="FD"),T14,ROUND($S14/$S15,3)+T14) -> 3.272 | V14: =IF(OR(V$5="F",V$5="FD"),U14,ROUND($S14/$S15,3)+U14) -> 4.908 | W14: 6.544 | X14: 6.544 | Y14: 6.544 | Z14: 8.18 | AA14: 9.816 | AB14: 11.452 | AC14: 13.088 | AD14: 14.724 | AE14: 14.724 | AF14: 14.724 | AG14: 16.36 | AH14: 17.996 | AI14: 19.632 | AJ14: 21.268 | AK14: 22.904 | AL14: 22.904 | AM14: 22.904 | AN14: 24.54 | AO14: 26.176 | AP14: 27.812 | AQ14: 29.448 | AR14: 31.084 | AS14: 31.084 | AT14: 31.084 | AU14: 32.72 | AV14: 34.356 | AW14: 35.992 | AX14: 35.992 | AY14: 40 | AZ14: =IF(OR(AZ$5="F",AZ$5="FD"),0,ROUND($AY14/$AY15,3)) -> 0 | BA14: =IF(OR(BA$5="F",BA$5="FD"),AZ14,ROUND($AY14/$AY15,3)+AZ14) -> 0 | BB14: 0 | BC14: 2 | BD14: 4 | BE14: 6 | BF14: 8 | BG14: 10 | BH14: 10 | BI14: 10 | BJ14: 12 | BK14: 14 | BL14: 16 | BM14: 18 | BN14: 20 | BO14: 20 | BP14: 20 | BQ14: 22 | BR14: 24 | BS14: 26 | BT14: 28 | BU14: 30 | BV14: 30 | BW14: 30 | BX14: 32 | BY14: 34 | BZ14: 36 | CA14: 38 | CB14: 40 | CC14: 40 | CD14: 42 | CE14: =IF(OR(CE$5="F",CE$5="FD"),0,ROUND($CD14/$CD15,3)) -> 0 | CF14: =IF(OR(CF$5="F",CF$5="FD"),CE14,ROUND($CD14/$CD15,3)+CE14) -> 2 | CG14: 4 | CH14: 6 | CI14: 8 | CJ14: 10 | CK14: 10 | CL14: 10 | CM14: 12 | CN14: 14 | CO14: 16 | CP14: 18 | CQ14: 20 | CR14: 20 | CS14: 20 | CT14: 22 | CU14: 24 | CV14: 26 | CW14: 28 | CX14: 30 | CY14: 30 | CZ14: 30 | DA14: 32 | DB14: 34 | DC14: 34 | DD14: 36 | DE14: 38 | DF14: 38 | DG14: 38 | DH14: 40 | DI14: 42 | DJ14: 42 | DK14: =IF(OR(DK$5="F",DK$5="FD"),0,ROUND($CD14/$CD15,3)) -> 0 | DL14: =IF(OR(DL$5="F",DL$5="FD"),DK14,ROUND($CD14/$CD15,3)+DK14) -> 2 | DM14: 4 | DN14: 4 | DO14: 4 | DP14: 6 | DQ14: 8 | DR14: 10 | DS14: 12 | DT14: 14 | DU14: 14 | DV14: 14 | DW14: 16 | DX14: 18 | DY14: 20 | DZ14: 22 | EA14: 24 | EB14: 24 | EC14: 24 | ED14: 26 | EE14: 28 | EF14: 30 | EG14: 32 | EH14: 34 | EI14: 34 | EJ14: 34 | EK14: 36 | EL14: 38 | EM14: 40 | EN14: 42 | EO14: 44
E15: =+E14 -> ▪ F03 Ventas Netas Tarjetas de Crédito (TC) | M15: 10 | N15: ▪ F03 Ventas Netas Tarjetas de Crédito (TC) | P15: ACTUAL | Q15: =+Q14 -> Mensual | R15: ▪ F03 Ventas Netas Tarjetas de Crédito (TC)ACTUALMensual | S15: =+S9 -> 22 | T15: 2 | U15: 4 | V15: 2 | W15: 3 | Z15: 6 | AA15: 4 | AB15: 2 | AC15: 6 | AD15: 4 | AG15: 4 | AH15: 3 | AI15: 6 | AJ15: 2 | AK15: 6 | AN15: 8 | AO15: 3 | AP15: 2 | AQ15: 5 | AR15: 2 | AU15: 4 | AV15: 2 | AW15: 5 | AY15: =+AY9 -> 20 | BC15: 3 | BD15: 4 | BE15: 6 | BF15: 7 | BG15: 4 | BJ15: 4 | BK15: 6 | BL15: 3 | BM15: 5 | BN15: 3 | BQ15: 6 | BR15: 5 | BS15: 7 | BT15: 8 | BU15: 6 | CD15: =+CD9 -> 21 | DJ15: =+DJ9 -> 22
E16: =+E15 -> ▪ F03 Ventas Netas Tarjetas de Crédito (TC) | M16: 11 | N16: ▪ F03 Ventas Netas Tarjetas de Crédito (TC) | P16: ACUM | Q16: =+Q15 -> Mensual | R16: ▪ F03 Ventas Netas Tarjetas de Crédito (TC)ACUMMensual | S16: =SUM(T15:AX15) -> 85 | T16: =+T15 -> 2 | U16: =+T16+U15 -> 6 | V16: 8 | W16: 11 | X16: 11 | Y16: 11 | Z16: 17 | AA16: 21 | AB16: 23 | AC16: 29 | AD16: 33 | AE16: 33 | AF16: 33 | AG16: 37 | AH16: 40 | AI16: 46 | AJ16: 48 | AK16: 54 | AL16: 54 | AM16: 54 | AN16: 62 | AO16: 65 | AP16: 67 | AQ16: 72 | AR16: 74 | AS16: 74 | AT16: 74 | AU16: 78 | AV16: 80 | AW16: 85 | AX16: 85 | AY16: =SUM(AZ15:CC15) -> 77 | AZ16: =+AZ15 -> 0 | BA16: =+AZ16+BA15 -> 0 | BB16: 0 | BC16: 3 | BD16: 7 | BE16: 13 | BF16: 20 | BG16: 24 | BH16: 24 | BI16: 24 | BJ16: 28 | BK16: 34 | BL16: 37 | BM16: 42 | BN16: 45 | BO16: 45 | BP16: 45 | BQ16: 51 | BR16: 56 | BS16: 63 | BT16: 71 | BU16: 77 | BV16: 77 | BW16: 77 | BX16: 77 | BY16: 77 | BZ16: 77 | CA16: 77 | CB16: 77 | CC16: 77 | CE16: =+CE15 -> 0 | CF16: =+CE16+CF15 -> 0 | CG16: 0 | CH16: 0 | CI16: 0 | CJ16: 0 | CK16: 0 | CL16: 0 | CM16: 0 | CN16: 0 | CO16: 0 | CP16: 0 | CQ16: 0 | CR16: 0 | CS16: 0 | CT16: 0 | CU16: 0 | CV16: 0 | CW16: 0 | CX16: 0 | CY16: 0 | CZ16: 0 | DA16: 0 | DB16: 0 | DC16: 0 | DD16: 0 | DE16: 0 | DF16: 0 | DG16: 0 | DH16: 0 | DI16: 0 | DK16: =+DK15 -> 0 | DL16: =+DK16+DL15 -> 0 | DM16: 0 | DN16: 0 | DO16: 0 | DP16: 0 | DQ16: 0 | DR16: 0 | DS16: 0 | DT16: 0 | DU16: 0 | DV16: 0 | DW16: 0 | DX16: 0 | DY16: 0 | DZ16: 0 | EA16: 0 | EB16: 0 | EC16: 0 | ED16: 0 | EE16: 0 | EF16: 0 | EG16: 0 | EH16: 0 | EI16: 0 | EJ16: 0 | EK16: 0 | EL16: 0 | EM16: 0 | EN16: 0 | EO16: 0
B17: 4 | C17: Lograr Crecimiento en las Ventas | E17: ▪ F04 N° Aperturas de Cuentas Corrientes (CCT) | F17: Mensual | G17: 25 | H17: 58 | I17: N° | J17: Ejecutivos Comerciales | K17: CLIENTE | M17: 12 | N17: ▪ F04 N° Aperturas de Cuentas Corrientes (CCT) | O17: =+I17 -> N° | P17: META | Q17: =+F17 -> Mensual | R17: ▪ F04 N° Aperturas de Cuentas Corrientes (CCT)METAMensual | S17: 20 | T17: =IF(OR(T$5="F",T$5="FD"),0,ROUND($S17/$S18,4)) -> 0.9091 | U17: =IF(OR(U$5="F",U$5="FD"),T17,ROUND($S17/$S18,4)+T17) -> 1.8182 | V17: =IF(OR(V$5="F",V$5="FD"),U17,ROUND($S17/$S18,4)+U17) -> 2.7273 | W17: 3.6364 | X17: 3.6364 | Y17: 3.6364 | Z17: 4.5455 | AA17: 5.4546 | AB17: 6.3637 | AC17: 7.2728 | AD17: 8.1819 | AE17: 8.1819 | AF17: 8.1819 | AG17: 9.091 | AH17: 10.0001 | AI17: 10.9092 | AJ17: 11.8183 | AK17: 12.7274 | AL17: 12.7274 | AM17: 12.7274 | AN17: 13.6365 | AO17: 14.5456 | AP17: 15.4547 | AQ17: 16.3638 | AR17: 17.2729 | AS17: 17.2729 | AT17: 17.2729 | AU17: 18.182 | AV17: 19.0911 | AW17: 20.0002 | AX17: 20.0002 | AY17: 19 | AZ17: =IF(OR(AZ$5="F",AZ$5="FD"),0,ROUND($AY17/$AY18,4)) -> 0 | BA17: =IF(OR(BA$5="F",BA$5="FD"),AZ17,ROUND($AY17/$AY18,4)+AZ17) -> 0 | BB17: 0 | BC17: 0.95 | BD17: 1.9 | BE17: 2.85 | BF17: 3.8 | BG17: 4.75 | BH17: 4.75 | BI17: 4.75 | BJ17: 5.7 | BK17: 6.65 | BL17: 7.6 | BM17: 8.55 | BN17: 9.5 | BO17: 9.5 | BP17: 9.5 | BQ17: 10.45 | BR17: 11.4 | BS17: 12.35 | BT17: 13.3 | BU17: 14.25 | BV17: 14.25 | BW17: 14.25 | BX17: 15.2 | BY17: 16.15 | BZ17: 17.1 | CA17: 18.05 | CB17: 19 | CC17: 19 | CD17: 19 | CE17: =IF(OR(CE$5="F",CE$5="FD"),0,ROUND($CD17/$CD18,4)) -> 0 | CF17: =IF(OR(CF$5="F",CF$5="FD"),CE17,ROUND($CD17/$CD18,4)+CE17) -> 0.9048 | CG17: 1.8096 | CH17: 2.7144 | CI17: 3.6192 | CJ17: 4.524 | CK17: 4.524 | CL17: 4.524 | CM17: 5.4288 | CN17: 6.3336 | CO17: 7.2384 | CP17: 8.1432 | CQ17: 9.048 | CR17: 9.048 | CS17: 9.048 | CT17: 9.9528 | CU17: 10.8576 | CV17: 11.7624 | CW17: 12.6672 | CX17: 13.572 | CY17: 13.572 | CZ17: 13.572 | DA17: 14.4768 | DB17: 15.3816 | DC17: 15.3816 | DD17: 16.2864 | DE17: 17.1912 | DF17: 17.1912 | DG17: 17.1912 | DH17: 18.096 | DI17: 19.0008 | DJ17: 19 | DK17: =IF(OR(DK$5="F",DK$5="FD"),0,ROUND($CD17/$CD18,4)) -> 0 | DL17: =IF(OR(DL$5="F",DL$5="FD"),DK17,ROUND($CD17/$CD18,4)+DK17) -> 0.9048 | DM17: 1.8096 | DN17: 1.8096 | DO17: 1.8096 | DP17: 2.7144 | DQ17: 3.6192 | DR17: 4.524 | DS17: 5.4288 | DT17: 6.3336 | DU17: 6.3336 | DV17: 6.3336 | DW17: 7.2384 | DX17: 8.1432 | DY17: 9.048 | DZ17: 9.9528 | EA17: 10.8576 | EB17: 10.8576 | EC17: 10.8576 | ED17: 11.7624 | EE17: 12.6672 | EF17: 13.572 | EG17: 14.4768 | EH17: 15.3816 | EI17: 15.3816 | EJ17: 15.3816 | EK17: 16.2864 | EL17: 17.1912 | EM17: 18.096 | EN17: 19.0008 | EO17: 19.9056
E18: =+E17 -> ▪ F04 N° Aperturas de Cuentas Corrientes (CCT) | M18: 13 | N18: ▪ F04 N° Aperturas de Cuentas Corrientes (CCT) | P18: ACTUAL | Q18: =+Q17 -> Mensual | R18: ▪ F04 N° Aperturas de Cuentas Corrientes (CCT)ACTUALMensual | S18: =+S9 -> 22 | T18: 2 | U18: 2 | V18: 1 | W18: 1 | Z18: 2 | AA18: 1 | AB18: 3 | AC18: 1 | AD18: 2 | AG18: 0 | AH18: 2 | AI18: 1 | AJ18: 3 | AK18: 1 | AN18: 2 | AO18: 0 | AP18: 2 | AQ18: 0 | AR18: 1 | AU18: 1 | AV18: 0 | AW18: 2 | AY18: =+AY9 -> 20 | BC18: 0 | BD18: 2 | BE18: 1 | BF18: 1 | BG18: 1 | BJ18: 1 | BK18: 2 | BL18: 0 | BM18: 0 | BN18: 1 | BQ18: 1 | BR18: 0 | BS18: 2 | BT18: 2 | BU18: 0 | CD18: =+CD9 -> 21 | DJ18: =+DJ9 -> 22
E19: =+E18 -> ▪ F04 N° Aperturas de Cuentas Corrientes (CCT) | M19: 14 | N19: ▪ F04 N° Aperturas de Cuentas Corrientes (CCT) | P19: ACUM | Q19: =+Q18 -> Mensual | R19: ▪ F04 N° Aperturas de Cuentas Corrientes (CCT)ACUMMensual | S19: =SUM(T18:AX18) -> 30 | T19: =+T18 -> 2 | U19: =+T19+U18 -> 4 | V19: 5 | W19: 6 | X19: 6 | Y19: 6 | Z19: 8 | AA19: 9 | AB19: 12 | AC19: 13 | AD19: 15 | AE19: 15 | AF19: 15 | AG19: 15 | AH19: 17 | AI19: 18 | AJ19: 21 | AK19: 22 | AL19: 22 | AM19: 22 | AN19: 24 | AO19: 24 | AP19: 26 | AQ19: 26 | AR19: 27 | AS19: 27 | AT19: 27 | AU19: 28 | AV19: 28 | AW19: 30 | AX19: =+AV19+AX18 -> 28 | AY19: =SUM(AZ18:CC18) -> 14 | AZ19: =+AZ18 -> 0 | BA19: =+AZ19+BA18 -> 0 | BB19: 0 | BC19: 0 | BD19: 2 | BE19: 3 | BF19: 4 | BG19: 5 | BH19: 5 | BI19: 5 | BJ19: 6 | BK19: 8 | BL19: 8 | BM19: 8 | BN19: 9 | BO19: 9 | BP19: 9 | BQ19: 10 | BR19: 10 | BS19: 12 | BT19: 14 | BU19: 14 | BV19: 14 | BW19: 14 | BX19: 14 | BY19: 14 | BZ19: 14 | CA19: 14 | CB19: 14 | CC19: 14 | CE19: =+CE18 -> 0 | CF19: =+CE19+CF18 -> 0 | CG19: 0 | CH19: 0 | CI19: 0 | CJ19: 0 | CK19: 0 | CL19: 0 | CM19: 0 | CN19: 0 | CO19: 0 | CP19: 0 | CQ19: 0 | CR19: 0 | CS19: 0 | CT19: 0 | CU19: 0 | CV19: 0 | CW19: 0 | CX19: 0 | CY19: 0 | CZ19: 0 | DA19: 0 | DB19: 0 | DC19: 0 | DD19: 0 | DE19: 0 | DF19: 0 | DG19: 0 | DH19: 0 | DI19: 0 | DK19: =+DK18 -> 0 | DL19: =+DK19+DL18 -> 0 | DM19: 0 | DN19: 0 | DO19: 0 | DP19: 0 | DQ19: 0 | DR19: 0 | DS19: 0 | DT19: 0 | DU19: 0 | DV19: 0 | DW19: 0 | DX19: 0 | DY19: 0 | DZ19: 0 | EA19: 0 | EB19: 0 | EC19: 0 | ED19: 0 | EE19: 0 | EF19: 0 | EG19: 0 | EH19: 0 | EI19: 0 | EJ19: 0 | EK19: 0 | EL19: 0 | EM19: 0 | EN19: 0 | EO19: 0
B20: 5 | C20: Lograr Crecimiento en las Ventas | E20: ▪ F05 Ventas Netas Cred. Hipotecario (CHIP) | F20: Mensual | G20: 12.5 | H20: 230 | I20: MM$ | J20: Ejecutivos Comerciales | K20: FINANCIERA | M20: 15 | N20: ▪ F05 Ventas Netas Cred. Hipotecario (CHIP) | O20: =+I20 -> MM$ | P20: META | Q20: =+F20 -> Mensual | R20: ▪ F05 Ventas Netas Cred. Hipotecario (CHIP)METAMensual | S20: 215.8 | T20: =IF(OR(T$5="F",T$5="FD"),0,ROUND($S20/$S21,3)) -> 9.809 | U20: =IF(OR(U$5="F",U$5="FD"),T20,ROUND($S20/$S21,3)+T20) -> 19.618 | V20: =IF(OR(V$5="F",V$5="FD"),U20,ROUND($S20/$S21,3)+U20) -> 29.427 | W20: 39.236 | X20: 39.236 | Y20: 39.236 | Z20: 49.045 | AA20: 58.854 | AB20: 68.663 | AC20: 78.472 | AD20: 88.281 | AE20: 88.281 | AF20: 88.281 | AG20: 98.09 | AH20: 107.899 | AI20: 117.708 | AJ20: 127.517 | AK20: 137.326 | AL20: 137.326 | AM20: 137.326 | AN20: 147.135 | AO20: 156.944 | AP20: 166.753 | AQ20: 176.562 | AR20: 186.371 | AS20: 186.371 | AT20: 186.371 | AU20: 196.18 | AV20: 205.989 | AW20: 215.798 | AX20: 215.798 | AY20: 236.4 | AZ20: =IF(OR(AZ$5="F",AZ$5="FD"),0,ROUND($AY20/$AY21,3)) -> 0 | BA20: =IF(OR(BA$5="F",BA$5="FD"),AZ20,ROUND($AY20/$AY21,3)+AZ20) -> 0 | BB20: 0 | BC20: 11.82 | BD20: 23.64 | BE20: 35.46 | BF20: 47.28 | BG20: 59.1 | BH20: 59.1 | BI20: 59.1 | BJ20: 70.92 | BK20: 82.74 | BL20: 94.56 | BM20: 106.38 | BN20: 118.2 | BO20: 118.2 | BP20: 118.2 | BQ20: 130.02 | BR20: 141.84 | BS20: 153.66 | BT20: 165.48 | BU20: 177.3 | BV20: 177.3 | BW20: 177.3 | BX20: 189.12 | BY20: 200.94 | BZ20: 212.76 | CA20: 224.58 | CB20: 236.4 | CC20: 236.4 | CD20: 238.1 | CE20: =IF(OR(CE$5="F",CE$5="FD"),0,ROUND($CD20/$CD21,3)) -> 0 | CF20: =IF(OR(CF$5="F",CF$5="FD"),CE20,ROUND($CD20/$CD21,3)+CE20) -> 11.338 | CG20: 22.676 | CH20: 34.014 | CI20: 45.352 | CJ20: 56.69 | CK20: 56.69 | CL20: 56.69 | CM20: 68.028 | CN20: 79.366 | CO20: 90.704 | CP20: 102.042 | CQ20: 113.38 | CR20: 113.38 | CS20: 113.38 | CT20: 124.718 | CU20: 136.056 | CV20: 147.394 | CW20: 158.732 | CX20: 170.07 | CY20: 170.07 | CZ20: 170.07 | DA20: 181.408 | DB20: 192.746 | DC20: 192.746 | DD20: 204.084 | DE20: 215.422 | DF20: 215.422 | DG20: 215.422 | DH20: 226.76 | DI20: 238.098 | DJ20: 238.1 | DK20: =IF(OR(DK$5="F",DK$5="FD"),0,ROUND($CD20/$CD21,3)) -> 0 | DL20: =IF(OR(DL$5="F",DL$5="FD"),DK20,ROUND($CD20/$CD21,3)+DK20) -> 11.338 | DM20: 22.676 | DN20: 22.676 | DO20: 22.676 | DP20: 34.014 | DQ20: 45.352 | DR20: 56.69 | DS20: 68.028 | DT20: 79.366 | DU20: 79.366 | DV20: 79.366 | DW20: 90.704 | DX20: 102.042 | DY20: 113.38 | DZ20: 124.718 | EA20: 136.056 | EB20: 136.056 | EC20: 136.056 | ED20: 147.394 | EE20: 158.732 | EF20: 170.07 | EG20: 181.408 | EH20: 192.746 | EI20: 192.746 | EJ20: 192.746 | EK20: 204.084 | EL20: 215.422 | EM20: 226.76 | EN20: 238.098 | EO20: 249.436
E21: =+E20 -> ▪ F05 Ventas Netas Cred. Hipotecario (CHIP) | M21: 16 | N21: ▪ F05 Ventas Netas Cred. Hipotecario (CHIP) | P21: ACTUAL | Q21: =+Q20 -> Mensual | R21: ▪ F05 Ventas Netas Cred. Hipotecario (CHIP)ACTUALMensual | S21: =+S12 -> 22 | T21: 0 | U21: 0 | V21: 0 | W21: 0 | Z21: 0 | AA21: 0 | AB21: 22 | AC21: 16 | AD21: 28 | AG21: 18 | AH21: 43 | AI21: 0 | AJ21: 0 | AK21: 0 | AN21: 0 | AO21: 35.6 | AP21: 60 | AQ21: 0 | AR21: 0 | AU21: 0 | AV21: 45.2 | AW21: 14 | AY21: =+AY12 -> 20 | BC21: 0 | BD21: 11 | BE21: 8 | BF21: 0 | BG21: 0 | BJ21: 6 | BK21: 0 | BL21: 6.2 | BM21: 18 | BN21: 43 | BQ21: 0 | BR21: 0 | BS21: 0 | BT21: 0 | BU21: 27 | CD21: =+CD12 -> 21 | DJ21: =+DJ12 -> 22
E22: =+E21 -> ▪ F05 Ventas Netas Cred. Hipotecario (CHIP) | M22: 17 | N22: ▪ F05 Ventas Netas Cred. Hipotecario (CHIP) | P22: ACUM | Q22: =+Q21 -> Mensual | R22: ▪ F05 Ventas Netas Cred. Hipotecario (CHIP)ACUMMensual | S22: =SUM(T21:AX21) -> 281.8 | T22: =+T21 -> 0 | U22: =+T22+U21 -> 0 | V22: 0 | W22: 0 | X22: 0 | Y22: 0 | Z22: 0 | AA22: 0 | AB22: 22 | AC22: 38 | AD22: 66 | AE22: 66 | AF22: 66 | AG22: 84 | AH22: 127 | AI22: 127 | AJ22: 127 | AK22: 127 | AL22: 127 | AM22: 127 | AN22: 127 | AO22: 162.6 | AP22: 222.6 | AQ22: 222.6 | AR22: 222.6 | AS22: 222.6 | AT22: 222.6 | AU22: 222.6 | AV22: 267.8 | AW22: 281.8 | AX22: 281.8 | AY22: =SUM(AZ21:CC21) -> 119.2 | AZ22: =+AZ21 -> 0 | BA22: =+AZ22+BA21 -> 0 | BB22: 0 | BC22: 0 | BD22: 11 | BE22: 19 | BF22: 19 | BG22: 19 | BH22: 19 | BI22: 19 | BJ22: 25 | BK22: 25 | BL22: 31.2 | BM22: 49.2 | BN22: 92.2 | BO22: 92.2 | BP22: 92.2 | BQ22: 92.2 | BR22: 92.2 | BS22: 92.2 | BT22: 92.2 | BU22: 119.2 | BV22: 119.2 | BW22: 119.2 | BX22: 119.2 | BY22: 119.2 | BZ22: 119.2 | CA22: 119.2 | CB22: 119.2 | CC22: 119.2 | CE22: =+CE21 -> 0 | CF22: =+CE22+CF21 -> 0 | CG22: 0 | CH22: 0 | CI22: 0 | CJ22: 0 | CK22: 0 | CL22: 0 | CM22: 0 | CN22: 0 | CO22: 0 | CP22: 0 | CQ22: 0 | CR22: 0 | CS22: 0 | CT22: 0 | CU22: 0 | CV22: 0 | CW22: 0 | CX22: 0 | CY22: 0 | CZ22: 0 | DA22: 0 | DB22: 0 | DC22: 0 | DD22: 0 | DE22: 0 | DF22: 0 | DG22: 0 | DH22: 0 | DI22: 0 | DK22: =+DK21 -> 0 | DL22: =+DK22+DL21 -> 0 | DM22: 0 | DN22: 0 | DO22: 0 | DP22: 0 | DQ22: 0 | DR22: 0 | DS22: 0 | DT22: 0 | DU22: 0 | DV22: 0 | DW22: 0 | DX22: 0 | DY22: 0 | DZ22: 0 | EA22: 0 | EB22: 0 | EC22: 0 | ED22: 0 | EE22: 0 | EF22: 0 | EG22: 0 | EH22: 0 | EI22: 0 | EJ22: 0 | EK22: 0 | EL22: 0 | EM22: 0 | EN22: 0 | EO22: 0
B23: 6 | C23: Mantener la Cartera de Clientes al Día | D23: 1 | E23: ▪ F06 % de Cartera al Día (CAD) | F23: Mensual | G23: 100 | H23: 91,2 | I23: % | J23: Ejecutivos Comerciales | K23: FINANCIERA | M23: 18 | N23: ▪ F06 % de Cartera al Día (CAD) | O23: =+I23 -> % | P23: META | Q23: =+F23 -> Mensual | R23: ▪ F06 % de Cartera al Día (CAD)METAMensual | S23: =0.912 -> 0.912 | T23: =IF(OR(T$5="F",T$5="FD"),0,$S23) -> 0.912 | U23: =IF(OR(U$5="F",U$5="FD"),0,$S23) -> 0.912 | V23: 0.912 | W23: 0.912 | X23: =IF(OR(X$5="F",X$5="FD"),0,$S23) -> 0 | Y23: 0 | Z23: 0.912 | AA23: 0.912 | AB23: 0.912 | AC23: 0.912 | AD23: 0.912 | AE23: 0 | AF23: 0 | AG23: 0.912 | AH23: 0.912 | AI23: 0.912 | AJ23: 0.912 | AK23: 0.912 | AL23: 0 | AM23: 0 | AN23: 0.912 | AO23: 0.912 | AP23: 0.912 | AQ23: 0.912 | AR23: 0.912 | AS23: 0 | AT23: 0 | AU23: 0.912 | AV23: 0.912 | AW23: 0.912 | AX23: 0 | AY23: =0.912 -> 0.912 | AZ23: =IF(OR(AZ$5="F",AZ$5="FD"),0,$AY23) -> 0 | BA23: 0 | BB23: 0 | BC23: 0.912 | BD23: 0.912 | BE23: 0.912 | BF23: 0.912 | BG23: 0.912 | BH23: 0 | BI23: 0 | BJ23: 0.912 | BK23: 0.912 | BL23: 0.912 | BM23: 0.912 | BN23: 0.912 | BO23: 0 | BP23: 0 | BQ23: 0.912 | BR23: 0.912 | BS23: 0.912 | BT23: 0.912 | BU23: 0.912 | BV23: 0 | BW23: 0 | BX23: 0.912 | BY23: 0.912 | BZ23: 0.912 | CA23: 0.912 | CB23: 0.912 | CC23: 0 | CD23: =0.912 -> 0.912 | CE23: =IF(OR(CE$5="F",CE$5="FD"),0,$CD23) -> 0 | CF23: 0.912 | CG23: 0.912 | CH23: 0.912 | CI23: 0.912 | CJ23: 0.912 | CK23: 0 | CL23: 0 | CM23: 0.912 | CN23: 0.912 | CO23: 0.912 | CP23: 0.912 | CQ23: 0.912 | CR23: 0 | CS23: 0 | CT23: 0.912 | CU23: 0.912 | CV23: 0.912 | CW23: 0.912 | CX23: 0.912 | CY23: 0 | CZ23: 0 | DA23: 0.912 | DB23: 0.912 | DC23: 0 | DD23: 0.912 | DE23: 0.912 | DF23: 0 | DG23: 0 | DH23: 0.912 | DI23: 0.912 | DJ23: =0.912 -> 0.912 | DK23: =IF(OR(DK$5="F",DK$5="FD"),0,$CD23) -> 0 | DL23: 0.912 | DM23: 0.912 | DN23: 0 | DO23: 0 | DP23: 0.912 | DQ23: 0.912 | DR23: 0.912 | DS23: 0.912 | DT23: 0.912 | DU23: 0 | DV23: 0 | DW23: 0.912 | DX23: 0.912 | DY23: 0.912 | DZ23: 0.912 | EA23: 0.912 | EB23: 0 | EC23: 0 | ED23: 0.912 | EE23: 0.912 | EF23: 0.912 | EG23: 0.912 | EH23: 0.912 | EI23: 0 | EJ23: 0 | EK23: 0.912 | EL23: 0.912 | EM23: 0.912 | EN23: 0.912 | EO23: 0.912
E24: =+E23 -> ▪ F06 % de Cartera al Día (CAD) | M24: 19 | N24: ▪ F06 % de Cartera al Día (CAD) | P24: ACTUAL | Q24: =+Q23 -> Mensual | R24: ▪ F06 % de Cartera al Día (CAD)ACTUALMensual | S24: =+S21 -> 22 | T24: 0.852 | U24: 0.842 | V24: 0.87 | W24: 0.796 | Z24: 0.923 | AA24: 0.838 | AB24: 0.835 | AC24: 0.852 | AD24: 0.854 | AG24: 0.878 | AH24: 0.762 | AI24: 0.894 | AJ24: 0.873 | AK24: 0.93 | AN24: 0.772 | AO24: 0.897 | AP24: 0.769 | AQ24: 0.89 | AR24: 0.829 | AU24: 0.875 | AV24: 0.866 | AW24: 0.884 | AY24: =+AY21 -> 20 | BC24: 0.796 | BD24: 0.846 | BE24: 0.9 | BF24: 0.923 | BG24: 0.838 | BJ24: 0.93 | BK24: 0.894 | BL24: 0.873 | BM24: 0.876 | BN24: 0.789 | BQ24: 0.93 | BR24: 0.9 | BS24: 0.885 | BT24: 0.772 | BU24: 0.897 | CD24: =+CD21 -> 21 | DJ24: =+DJ21 -> 22
E25: =+E24 -> ▪ F06 % de Cartera al Día (CAD) | M25: 20 | N25: ▪ F06 % de Cartera al Día (CAD) | P25: ACUM | Q25: =+Q24 -> Mensual | R25: ▪ F06 % de Cartera al Día (CAD)ACUMMensual | S25: =AVERAGE(T24:AX24) -> 0.8536818182 | T25: =+T24 -> 0.852 | U25: =+U24 -> 0.842 | V25: 0.87 | W25: 0.796 | X25: 0 | Y25: 0 | Z25: 0.923 | AA25: 0.838 | AB25: 0.835 | AC25: 0.852 | AD25: 0.854 | AE25: 0 | AF25: 0 | AG25: 0.878 | AH25: 0.762 | AI25: 0.894 | AJ25: 0.873 | AK25: 0.93 | AL25: 0 | AM25: 0 | AN25: 0.772 | AO25: 0.897 | AP25: 0.769 | AQ25: 0.89 | AR25: 0.829 | AS25: 0 | AT25: 0 | AU25: 0.875 | AV25: 0.866 | AW25: 0.884 | AX25: 0 | AY25: =AVERAGE(AZ24:CC24) -> 0.8699333333 | AZ25: =+AZ24 -> 0 | BA25: =+BA24 -> 0 | BB25: 0 | BC25: 0.796 | BD25: 0.846 | BE25: 0.9 | BF25: 0.923 | BG25: 0.838 | BH25: 0 | BI25: 0 | BJ25: 0.93 | BK25: 0.894 | BL25: 0.873 | BM25: 0.876 | BN25: 0.789 | BO25: 0 | BP25: 0 | BQ25: 0.93 | BR25: 0.9 | BS25: 0.885 | BT25: 0.772 | BU25: 0.897 | BV25: 0 | BW25: 0 | BX25: 0 | BY25: 0 | BZ25: 0 | CA25: 0 | CB25: 0 | CC25: 0 | CE25: =+CE24 -> 0 | CF25: =+CF24 -> 0 | CG25: 0 | CH25: 0 | CI25: 0 | CJ25: 0 | CK25: 0 | CL25: 0 | CM25: 0 | CN25: 0 | CO25: 0 | CP25: 0 | CQ25: 0 | CR25: 0 | CS25: 0 | CT25: 0 | CU25: 0 | CV25: 0 | CW25: 0 | CX25: 0 | CY25: 0 | CZ25: 0 | DA25: 0 | DB25: 0 | DC25: 0 | DD25: 0 | DE25: 0 | DF25: 0 | DG25: 0 | DH25: =+DH24 -> 0 | DI25: =+DI24 -> 0 | DK25: =+DK24 -> 0 | DL25: =+DL24 -> 0 | DM25: 0 | DN25: 0 | DO25: 0 | DP25: 0 | DQ25: 0 | DR25: 0 | DS25: 0 | DT25: 0 | DU25: 0 | DV25: 0 | DW25: 0 | DX25: 0 | DY25: 0 | DZ25: 0 | EA25: 0 | EB25: 0 | EC25: 0 | ED25: 0 | EE25: 0 | EF25: 0 | EG25: 0 | EH25: 0 | EI25: 0 | EJ25: 0 | EK25: 0 | EL25: 0 | EM25: 0 | EN25: 0 | EO25: 0
B26: 7 | C26: Incrementar Utilidad por Filiales | D26: 2 | E26: ▪ F07 Volumen de Inversiones [FFMM,LAP,DAP] | F26: Mensual | G26: 60 | H26: 120 | I26: MM$ | J26: Ejecutivos Inversiones | K26: FINANCIERA | M26: 21 | N26: ▪ F07 Volumen de Inversiones [FFMM,LAP,DAP] | O26: =+I26 -> MM$ | P26: META | Q26: =+F26 -> Mensual | R26: ▪ F07 Volumen de Inversiones [FFMM,LAP,DAP]METAMensual | S26: 27558 | T26: =IF(OR(T$5="F",T$5="FD"),0,ROUND($S26/$S27,3)) -> 1252.636 | U26: =IF(OR(U$5="F",U$5="FD"),T26,ROUND($S26/$S27,3)+T26) -> 2505.272 | V26: 3757.908 | W26: 5010.544 | X26: 5010.544 | Y26: 5010.544 | Z26: 6263.18 | AA26: 7515.816 | AB26: 8768.452 | AC26: 10021.088 | AD26: 11273.724 | AE26: 11273.724 | AF26: 11273.724 | AG26: 12526.36 | AH26: 13778.996 | AI26: 15031.632 | AJ26: 16284.268 | AK26: 17536.904 | AL26: 17536.904 | AM26: 17536.904 | AN26: 18789.54 | AO26: 20042.176 | AP26: 21294.812 | AQ26: 22547.448 | AR26: 23800.084 | AS26: 23800.084 | AT26: 23800.084 | AU26: 25052.72 | AV26: 26305.356 | AW26: 27557.992 | AX26: 27557.992 | AY26: 28089 | AZ26: =IF(OR(AZ$5="F",AZ$5="FD"),0,ROUND($AY26/$AY27,3)) -> 0 | BA26: =IF(OR(BA$5="F",BA$5="FD"),AZ26,ROUND($AY26/$AY27,3)+AZ26) -> 0 | BB26: 0 | BC26: 1404.45 | BD26: 2808.9 | BE26: 4213.35 | BF26: 5617.8 | BG26: 7022.25 | BH26: 7022.25 | BI26: 7022.25 | BJ26: 8426.7 | BK26: 9831.15 | BL26: 11235.6 | BM26: 12640.05 | BN26: 14044.5 | BO26: 14044.5 | BP26: 14044.5 | BQ26: 15448.95 | BR26: 16853.4 | BS26: 18257.85 | BT26: 19662.3 | BU26: 21066.75 | BV26: 21066.75 | BW26: 21066.75 | BX26: 22471.2 | BY26: 23875.65 | BZ26: 25280.1 | CA26: 26684.55 | CB26: 28089 | CC26: 28089 | CD26: 28619 | CE26: =IF(OR(CE$5="F",CE$5="FD"),0,ROUND($CD26/$CD27,3)) -> 0 | CF26: =IF(OR(CF$5="F",CF$5="FD"),CE26,ROUND($CD26/$CD27,3)+CE26) -> 1362.81 | CG26: 2725.62 | CH26: 4088.43 | CI26: 5451.24 | CJ26: 6814.05 | CK26: 6814.05 | CL26: 6814.05 | CM26: 8176.86 | CN26: 9539.67 | CO26: 10902.48 | CP26: 12265.29 | CQ26: 13628.1 | CR26: 13628.1 | CS26: 13628.1 | CT26: 14990.91 | CU26: 16353.72 | CV26: 17716.53 | CW26: 19079.34 | CX26: 20442.15 | CY26: 20442.15 | CZ26: 20442.15 | DA26: 21804.96 | DB26: 23167.77 | DC26: 23167.77 | DD26: 24530.58 | DE26: 25893.39 | DF26: 25893.39 | DG26: 25893.39 | DH26: 27256.2 | DI26: 28619.01 | DJ26: 28619 | DK26: =IF(OR(DK$5="F",DK$5="FD"),0,ROUND($CD26/$CD27,3)) -> 0 | DL26: =IF(OR(DL$5="F",DL$5="FD"),DK26,ROUND($CD26/$CD27,3)+DK26) -> 1362.81 | DM26: 2725.62 | DN26: 2725.62 | DO26: 2725.62 | DP26: 4088.43 | DQ26: 5451.24 | DR26: 6814.05 | DS26: 8176.86 | DT26: 9539.67 | DU26: 9539.67 | DV26: 9539.67 | DW26: 10902.48 | DX26: 12265.29 | DY26: 13628.1 | DZ26: 14990.91 | EA26: 16353.72 | EB26: 16353.72 | EC26: 16353.72 | ED26: 17716.53 | EE26: 19079.34 | EF26: 20442.15 | EG26: 21804.96 | EH26: 23167.77 | EI26: 23167.77 | EJ26: 23167.77 | EK26: 24530.58 | EL26: 25893.39 | EM26: 27256.2 | EN26: 28619.01 | EO26: 29981.82
E27: =+E26 -> ▪ F07 Volumen de Inversiones [FFMM,LAP,DAP] | M27: 22 | N27: ▪ F07 Volumen de Inversiones [FFMM,LAP,DAP] | P27: ACTUAL | Q27: =+Q26 -> Mensual | R27: ▪ F07 Volumen de Inversiones [FFMM,LAP,DAP]ACTUALMensual | S27: =+S9 -> 22 | T27: 798.1 | U27: 788.4 | V27: 667.6 | W27: 1840 | Z27: 1094 | AA27: 1013.9 | AB27: 632.6 | AC27: 1875.6 | AD27: 911.8 | AG27: 1210.3 | AH27: 1417.1 | AI27: 1872.7 | AJ27: 1031 | AK27: 1143 | AN27: 1955.7 | AO27: 1265.6 | AP27: 1974 | AQ27: 1406.2 | AR27: 1221.1 | AU27: 1755.3 | AV27: 1119 | AW27: 1325.3 | AY27: =+AY9 -> 20 | BC27: 1902 | BD27: 1568 | BE27: 1813 | BF27: 1817 | BG27: 1811 | BJ27: 1929 | BK27: 1677 | BL27: 1732 | BM27: 1650 | BN27: 1737 | BQ27: 1921 | BR27: 1708 | BS27: 1732 | BT27: 1915 | BU27: 2559 | CD27: =+CD9 -> 21 | DJ27: =+DJ9 -> 22
E28: =+E27 -> ▪ F07 Volumen de Inversiones [FFMM,LAP,DAP] | M28: 23 | N28: ▪ F07 Volumen de Inversiones [FFMM,LAP,DAP] | P28: ACUM | Q28: =+Q27 -> Mensual | R28: ▪ F07 Volumen de Inversiones [FFMM,LAP,DAP]ACUMMensual | S28: =SUM(T27:AX27) -> 28318.3 | T28: =+T27 -> 798.1 | U28: =+T28+U27 -> 1586.5 | V28: 2254.1 | W28: 4094.1 | X28: 4094.1 | Y28: 4094.1 | Z28: 5188.1 | AA28: 6202 | AB28: 6834.6 | AC28: 8710.2 | AD28: 9622 | AE28: 9622 | AF28: 9622 | AG28: 10832.3 | AH28: 12249.4 | AI28: 14122.1 | AJ28: 15153.1 | AK28: 16296.1 | AL28: 16296.1 | AM28: 16296.1 | AN28: 18251.8 | AO28: 19517.4 | AP28: 21491.4 | AQ28: 22897.6 | AR28: 24118.7 | AS28: 24118.7 | AT28: 24118.7 | AU28: 25874 | AV28: 26993 | AW28: 28318.3 | AX28: 28318.3 | AY28: =SUM(AZ27:CC27) -> 27471 | AZ28: =+AZ27 -> 0 | BA28: =+AZ28+BA27 -> 0 | BB28: 0 | BC28: 1902 | BD28: 3470 | BE28: 5283 | BF28: 7100 | BG28: 8911 | BH28: 8911 | BI28: 8911 | BJ28: 10840 | BK28: 12517 | BL28: 14249 | BM28: 15899 | BN28: 17636 | BO28: 17636 | BP28: 17636 | BQ28: 19557 | BR28: 21265 | BS28: 22997 | BT28: 24912 | BU28: 27471 | BV28: 27471 | BW28: 27471 | BX28: 27471 | BY28: 27471 | BZ28: 27471 | CA28: 27471 | CB28: 27471 | CC28: 27471 | CE28: =+CE27 -> 0 | CF28: =+CE28+CF27 -> 0 | CG28: 0 | CH28: 0 | CI28: 0 | CJ28: 0 | CK28: 0 | CL28: 0 | CM28: 0 | CN28: 0 | CO28: 0 | CP28: 0 | CQ28: 0 | CR28: 0 | CS28: 0 | CT28: 0 | CU28: 0 | CV28: 0 | CW28: 0 | CX28: 0 | CY28: 0 | CZ28: 0 | DA28: 0 | DB28: 0 | DC28: 0 | DD28: 0 | DE28: 0 | DF28: 0 | DG28: 0 | DH28: 0 | DI28: 0 | DK28: =+DK27 -> 0 | DL28: =+DK28+DL27 -> 0 | DM28: 0 | DN28: 0 | DO28: 0 | DP28: 0 | DQ28: 0 | DR28: 0 | DS28: 0 | DT28: 0 | DU28: 0 | DV28: 0 | DW28: 0 | DX28: 0 | DY28: 0 | DZ28: 0 | EA28: 0 | EB28: 0 | EC28: 0 | ED28: 0 | EE28: 0 | EF28: 0 | EG28: 0 | EH28: 0 | EI28: 0 | EJ28: 0 | EK28: 0 | EL28: 0 | EM28: 0 | EN28: 0 | EO28: 0
B29: 8 | C29: Incrementar Utilidad por Filiales | E29: ▪ F08 Venta Bruta de Seguros (Indiv.+Vinc.) | F29: Mensual | G29: 40 | H29: 3040 | I29: UF | J29: Colaboradores | K29: FINANCIERA | M29: 24 | N29: =+E29 -> ▪ F08 Venta Bruta de Seguros (Indiv.+Vinc.) | O29: =+I29 -> UF | P29: META | Q29: =+F29 -> Mensual | R29: =+N29&P29&Q29 -> ▪ F08 Venta Bruta de Seguros (Indiv.+Vinc.)METAMensual | S29: 1013.3 | T29: =IF(OR(T$5="F",T$5="FD"),0,ROUND($S29/$S30,3)) -> 46.059 | V29: =IF(OR(V$5="F",V$5="FD"),U29,ROUND($S29/$S30,3)+U29) -> 46.059 | W29: 92.118 | X29: 92.118 | Y29: 92.118 | Z29: 138.177 | AA29: 184.236 | AB29: 230.295 | AC29: 276.354 | AD29: 322.413 | AE29: 322.413 | AF29: 322.413 | AG29: 368.472 | AH29: 414.531 | AI29: 460.59 | AJ29: 506.649 | AK29: 552.708 | AL29: 552.708 | AM29: 552.708 | AN29: 598.767 | AO29: 644.826 | AP29: 690.885 | AQ29: 736.944 | AR29: 783.003 | AS29: 783.003 | AT29: 783.003 | AU29: 829.062 | AV29: 875.121 | AW29: 921.18 | AX29: 921.18 | AY29: 1013.3 | AZ29: =IF(OR(AZ$5="F",AZ$5="FD"),0,ROUND($AY29/$AY30,3)) -> 0 | BA29: =IF(OR(BA$5="F",BA$5="FD"),AZ29,ROUND($AY29/$AY30,3)+AZ29) -> 0 | BB29: 0 | BC29: 50.665 | BD29: 101.33 | BE29: 151.995 | BF29: 202.66 | BG29: 253.325 | BH29: 253.325 | BI29: 253.325 | BJ29: 303.99 | BK29: 354.655 | BL29: 405.32 | BM29: 455.985 | BN29: 506.65 | BO29: 506.65 | BP29: 506.65 | BQ29: 557.315 | BR29: 607.98 | BS29: 658.645 | BT29: 709.31 | BU29: 759.975 | BV29: 759.975 | BW29: 759.975 | BX29: 810.64 | BY29: 861.305 | BZ29: 911.97 | CA29: 962.635 | CB29: 1013.3 | CC29: 1013.3 | CD29: 1013.3 | CE29: =IF(OR(CE$5="F",CE$5="FD"),0,ROUND($CD29/$CD30,3)) -> 0 | CF29: =IF(OR(CF$5="F",CF$5="FD"),CE29,ROUND($CD29/$CD30,3)+CE29) -> 48.252 | CG29: 96.504 | CH29: 144.756 | CI29: 193.008 | CJ29: 241.26 | CK29: 241.26 | CL29: 241.26 | CM29: 289.512 | CN29: 337.764 | CO29: 386.016 | CP29: 434.268 | CQ29: 482.52 | CR29: 482.52 | CS29: 482.52 | CT29: 530.772 | CU29: 579.024 | CV29: 627.276 | CW29: 675.528 | CX29: 723.78 | CY29: 723.78 | CZ29: 723.78 | DA29: 772.032 | DB29: 820.284 | DC29: 820.284 | DD29: 868.536 | DE29: 916.788 | DF29: 916.788 | DG29: 916.788 | DH29: 965.04 | DI29: 1013.292 | DJ29: 1013.3 | DK29: =IF(OR(DK$5="F",DK$5="FD"),0,ROUND($CD29/$CD30,3)) -> 0 | DL29: =IF(OR(DL$5="F",DL$5="FD"),DK29,ROUND($CD29/$CD30,3)+DK29) -> 48.252 | DM29: 96.504 | DN29: 96.504 | DO29: 96.504 | DP29: 144.756 | DQ29: 193.008 | DR29: 241.26 | DS29: 289.512 | DT29: 337.764 | DU29: 337.764 | DV29: 337.764 | DW29: 386.016 | DX29: 434.268 | DY29: 482.52 | DZ29: 530.772 | EA29: 579.024 | EB29: 579.024 | EC29: 579.024 | ED29: 627.276 | EE29: 675.528 | EF29: 723.78 | EG29: 772.032 | EH29: 820.284 | EI29: 820.284 | EJ29: 820.284 | EK29: 868.536 | EL29: 916.788 | EM29: 965.04 | EN29: 1013.292 | EO29: 1061.544
E30: =+E29 -> ▪ F08 Venta Bruta de Seguros (Indiv.+Vinc.) | M30: 25 | N30: =+E30 -> ▪ F08 Venta Bruta de Seguros (Indiv.+Vinc.) | P30: ACTUAL | Q30: =+Q29 -> Mensual | R30: =+N30&P30&Q30 -> ▪ F08 Venta Bruta de Seguros (Indiv.+Vinc.)ACTUALMensual | S30: =+S9 -> 22 | T30: 42 | U30: 43 | V30: 39 | W30: 47 | Z30: 52 | AA30: 38 | AB30: 49 | AC30: 41 | AD30: 50 | AG30: 40 | AH30: 49 | AI30: 44 | AJ30: 40 | AK30: 41 | AN30: 38 | AO30: 38 | AP30: 46 | AQ30: 51 | AR30: 43 | AU30: 51 | AV30: 46 | AW30: 38 | AX30: =RANDBETWEEN(38,52) -> 44 | AY30: =+AY9 -> 20 | BC30: =RANDBETWEEN(38,52) -> 45 | BD30: 43 | BE30: 50 | BF30: 48 | BG30: 46 | BJ30: 38 | BK30: 51 | BL30: 46 | BM30: 41 | BN30: 47 | BQ30: 38 | BR30: 38 | BS30: 46 | BT30: 41 | BU30: 44 | CD30: =+CD9 -> 21 | DJ30: =+DJ9 -> 22
E31: =+E30 -> ▪ F08 Venta Bruta de Seguros (Indiv.+Vinc.) | M31: 26 | N31: =+E31 -> ▪ F08 Venta Bruta de Seguros (Indiv.+Vinc.) | P31: ACUM | Q31: =+Q30 -> Mensual | R31: =+N31&P31&Q31 -> ▪ F08 Venta Bruta de Seguros (Indiv.+Vinc.)ACUMMensual | S31: =SUM(T30:AX30) -> 1010 | T31: =+T30 -> 42 | U31: =+T31+U30 -> 85 | V31: 124 | W31: 171 | X31: 171 | Y31: 171 | Z31: 223 | AA31: 261 | AB31: 310 | AC31: 351 | AD31: 401 | AE31: 401 | AF31: 401 | AG31: 441 | AH31: 490 | AI31: 534 | AJ31: 574 | AK31: 615 | AL31: 615 | AM31: 615 | AN31: 653 | AO31: 691 | AP31: 737 | AQ31: 788 | AR31: 831 | AS31: 831 | AT31: 831 | AU31: 882 | AV31: 928 | AW31: 966 | AX31: 1010 | AY31: =SUM(AZ30:CC30) -> 662 | AZ31: =+AZ30 -> 0 | BA31: =+AZ31+BA30 -> 0 | BB31: 0 | BC31: 45 | BD31: 88 | BE31: 138 | BF31: 186 | BG31: 232 | BH31: 232 | BI31: 232 | BJ31: 270 | BK31: 321 | BL31: 367 | BM31: 408 | BN31: 455 | BO31: 455 | BP31: 455 | BQ31: 493 | BR31: 531 | BS31: 577 | BT31: 618 | BU31: 662 | BV31: 662 | BW31: 662 | BX31: 662 | BY31: 662 | BZ31: 662 | CA31: 662 | CB31: 662 | CC31: 662 | CE31: =+CE30 -> 0 | CF31: =+CE31+CF30 -> 0 | CG31: 0 | CH31: 0 | CI31: 0 | CJ31: 0 | CK31: 0 | CL31: 0 | CM31: 0 | CN31: 0 | CO31: 0 | CP31: 0 | CQ31: 0 | CR31: 0 | CS31: 0 | CT31: 0 | CU31: 0 | CV31: 0 | CW31: 0 | CX31: 0 | CY31: 0 | CZ31: 0 | DA31: 0 | DB31: 0 | DC31: 0 | DD31: 0 | DE31: 0 | DF31: 0 | DG31: 0 | DH31: 0 | DI31: 0 | DK31: =+DK30 -> 0 | DL31: =+DK31+DL30 -> 0 | DM31: 0 | DN31: 0 | DO31: 0 | DP31: 0 | DQ31: 0 | DR31: 0 | DS31: 0 | DT31: 0 | DU31: 0 | DV31: 0 | DW31: 0 | DX31: 0 | DY31: 0 | DZ31: 0 | EA31: 0 | EB31: 0 | EC31: 0 | ED31: 0 | EE31: 0 | EF31: 0 | EG31: 0 | EH31: 0 | EI31: 0 | EJ31: 0 | EK31: 0 | EL31: 0 | EM31: 0 | EN31: 0 | EO31: 0
B32: 9 | C32: Lograr Satisfacción del cliente | D32: 2 | E32: ▪ C01 SNEX Área Comercial (Encuesta de Satisfacción) | F32: Mensual | G32: 100 | H32: 90 | I32: % | J32: Ejecutivos Comerciales y de Inversiones | K32: CLIENTE | M32: 27 | N32: ▪ C01 SNEX Área Comercial (Encuesta de Satisfacción) | O32: =+I32 -> % | P32: META | Q32: =+F32 -> Mensual | R32: ▪ C01 SNEX Área Comercial (Encuesta de Satisfacción)METAMensual | S32: 0.9 | T32: =IF(OR(T$5="F",T$5="FD"),0,$S32) -> 0.9 | U32: =IF(OR(U$5="F",U$5="FD"),0,$S32) -> 0.9 | V32: 0.9 | W32: 0.9 | X32: =IF(OR(X$5="F",X$5="FD"),0,$S32) -> 0 | Y32: 0 | Z32: 0.9 | AA32: 0.9 | AB32: 0.9 | AC32: 0.9 | AD32: 0.9 | AE32: 0 | AF32: 0 | AG32: 0.9 | AH32: 0.9 | AI32: 0.9 | AJ32: 0.9 | AK32: 0.9 | AL32: 0 | AM32: 0 | AN32: 0.9 | AO32: 0.9 | AP32: 0.9 | AQ32: 0.9 | AR32: 0.9 | AS32: 0 | AT32: 0 | AU32: 0.9 | AV32: 0.9 | AW32: 0.9 | AX32: 0 | AY32: 0.9 | AZ32: =IF(OR(AZ$5="F",AZ$5="FD"),0,$AY32) -> 0 | BA32: 0 | BB32: 0 | BC32: 0.9 | BD32: 0.9 | BE32: 0.9 | BF32: 0.9 | BG32: 0.9 | BH32: 0 | BI32: 0 | BJ32: 0.9 | BK32: 0.9 | BL32: 0.9 | BM32: 0.9 | BN32: 0.9 | BO32: 0 | BP32: 0 | BQ32: 0.9 | BR32: 0.9 | BS32: 0.9 | BT32: 0.9 | BU32: 0.9 | BV32: 0 | BW32: 0 | BX32: 0.9 | BY32: 0.9 | BZ32: 0.9 | CA32: 0.9 | CB32: 0.9 | CC32: 0 | CD32: 0.9 | CE32: =IF(OR(CE$5="F",CE$5="FD"),0,$CD32) -> 0 | CF32: 0.9 | CG32: 0.9 | CH32: 0.9 | CI32: 0.9 | CJ32: 0.9 | CK32: 0 | CL32: 0 | CM32: 0.9 | CN32: 0.9 | CO32: 0.9 | CP32: 0.9 | CQ32: 0.9 | CR32: 0 | CS32: 0 | CT32: 0.9 | CU32: 0.9 | CV32: 0.9 | CW32: 0.9 | CX32: 0.9 | CY32: 0 | CZ32: 0 | DA32: 0.9 | DB32: 0.9 | DC32: 0 | DD32: 0.9 | DE32: 0.9 | DF32: 0 | DG32: 0 | DH32: 0.9 | DI32: 0.9 | DJ32: 0.9 | DK32: =IF(OR(DK$5="F",DK$5="FD"),0,$CD32) -> 0 | DL32: 0.9 | DM32: 0.9 | DN32: 0 | DO32: 0 | DP32: 0.9 | DQ32: 0.9 | DR32: 0.9 | DS32: 0.9 | DT32: 0.9 | DU32: 0 | DV32: 0 | DW32: 0.9 | DX32: 0.9 | DY32: 0.9 | DZ32: 0.9 | EA32: 0.9 | EB32: 0 | EC32: 0 | ED32: 0.9 | EE32: 0.9 | EF32: 0.9 | EG32: 0.9 | EH32: 0.9 | EI32: 0 | EJ32: 0 | EK32: 0.9 | EL32: 0.9 | EM32: 0.9 | EN32: 0.9 | EO32: 0.9
E33: =+E32 -> ▪ C01 SNEX Área Comercial (Encuesta de Satisfacción) | M33: 28 | N33: ▪ C01 SNEX Área Comercial (Encuesta de Satisfacción) | P33: ACTUAL | Q33: =+Q32 -> Mensual | R33: ▪ C01 SNEX Área Comercial (Encuesta de Satisfacción)ACTUALMensual | S33: =+S9 -> 22 | T33: 0.852 | U33: 0.842 | V33: 0.87 | W33: 0.796 | Z33: 0.923 | AA33: 0.838 | AB33: 0.835 | AC33: 0.852 | AD33: 0.854 | AG33: 0.878 | AH33: 0.762 | AI33: 0.894 | AJ33: 0.873 | AK33: 0.93 | AN33: 0.772 | AO33: 0.897 | AP33: 0.769 | AQ33: 0.89 | AR33: 0.829 | AU33: 0.875 | AV33: 0.866 | AW33: 0.884 | AY33: =+AY9 -> 20 | BC33: 0.796 | BD33: 0.835 | BE33: 0.852 | BF33: 0.923 | BG33: 0.838 | BJ33: 0.854 | BK33: 0.894 | BL33: 0.873 | BM33: 0.878 | BN33: 0.762 | BQ33: 0.93 | BR33: 0.829 | BS33: 0.875 | BT33: 0.772 | BU33: 0.897 | CD33: =+CD9 -> 21 | DJ33: =+DJ9 -> 22
E34: =+E33 -> ▪ C01 SNEX Área Comercial (Encuesta de Satisfacción) | M34: 29 | N34: ▪ C01 SNEX Área Comercial (Encuesta de Satisfacción) | P34: ACUM | Q34: =+Q33 -> Mensual | R34: ▪ C01 SNEX Área Comercial (Encuesta de Satisfacción)ACUMMensual | S34: =AVERAGE(T33:AX33) -> 0.8536818182 | T34: =+T33 -> 0.852 | U34: =+U33 -> 0.842 | V34: 0.87 | W34: 0.796 | X34: 0 | Y34: 0 | Z34: 0.923 | AA34: 0.838 | AB34: 0.835 | AC34: 0.852 | AD34: 0.854 | AE34: 0 | AF34: 0 | AG34: 0.878 | AH34: 0.762 | AI34: 0.894 | AJ34: 0.873 | AK34: 0.93 | AL34: 0 | AM34: 0 | AN34: 0.772 | AO34: 0.897 | AP34: 0.769 | AQ34: 0.89 | AR34: 0.829 | AS34: 0 | AT34: 0 | AU34: 0.875 | AV34: 0.866 | AW34: 0.884 | AX34: 0 | AY34: =AVERAGE(AZ33:CC33) -> 0.8538666667 | AZ34: =+AZ33 -> 0 | BA34: =+BA33 -> 0 | BB34: 0 | BC34: 0.796 | BD34: 0.835 | BE34: 0.852 | BF34: 0.923 | BG34: 0.838 | BH34: 0 | BI34: 0 | BJ34: 0.854 | BK34: 0.894 | BL34: 0.873 | BM34: 0.878 | BN34: 0.762 | BO34: 0 | BP34: 0 | BQ34: 0.93 | BR34: 0.829 | BS34: 0.875 | BT34: 0.772 | BU34: 0.897 | BV34: 0 | BW34: 0 | BX34: 0 | BY34: 0 | BZ34: 0 | CA34: 0 | CB34: 0 | CC34: 0 | CE34: =+CE33 -> 0 | CF34: =+CF33 -> 0 | CG34: 0 | CH34: 0 | CI34: 0 | CJ34: 0 | CK34: 0 | CL34: 0 | CM34: 0 | CN34: 0 | CO34: 0 | CP34: 0 | CQ34: 0 | CR34: 0 | CS34: 0 | CT34: 0 | CU34: 0 | CV34: 0 | CW34: 0 | CX34: 0 | CY34: 0 | CZ34: 0 | DA34: 0 | DB34: 0 | DC34: 0 | DD34: 0 | DE34: 0 | DF34: 0 | DG34: 0 | DH34: =+DH33 -> 0 | DI34: =+DI33 -> 0 | DK34: =+DK33 -> 0 | DL34: =+DL33 -> 0 | DM34: 0 | DN34: 0 | DO34: 0 | DP34: 0 | DQ34: 0 | DR34: 0 | DS34: 0 | DT34: 0 | DU34: 0 | DV34: 0 | DW34: 0 | DX34: 0 | DY34: 0 | DZ34: 0 | EA34: 0 | EB34: 0 | EC34: 0 | ED34: 0 | EE34: 0 | EF34: 0 | EG34: 0 | EH34: 0 | EI34: 0 | EJ34: 0 | EK34: 0 | EL34: 0 | EM34: 0 | EN34: 0 | EO34: 0
B35: 10 | C35: Lograr Satisfacción del cliente | E35: ▪ C02 SNEX Área Operativa (Encuesta de Satisfacción) | F35: Mensual | G35: 100 | H35: 90 | I35: % | J35: Ejecutivos Comerciales y de Inversiones | K35: CLIENTE | M35: 30 | N35: ▪ C02 SNEX Área Operativa (Encuesta de Satisfacción) | O35: =+I35 -> % | P35: META | Q35: =+F35 -> Mensual | R35: ▪ C02 SNEX Área Operativa (Encuesta de Satisfacción)METAMensual | S35: 0.9 | T35: =IF(OR(T$5="F",T$5="FD"),0,$S35) -> 0.9 | U35: =IF(OR(U$5="F",U$5="FD"),0,$S35) -> 0.9 | V35: 0.9 | W35: 0.9 | X35: =IF(OR(X$5="F",X$5="FD"),0,$S35) -> 0 | Y35: 0 | Z35: 0.9 | AA35: 0.9 | AB35: 0.9 | AC35: 0.9 | AD35: 0.9 | AE35: 0 | AF35: 0 | AG35: 0.9 | AH35: 0.9 | AI35: 0.9 | AJ35: 0.9 | AK35: 0.9 | AL35: 0 | AM35: 0 | AN35: 0.9 | AO35: 0.9 | AP35: 0.9 | AQ35: 0.9 | AR35: 0.9 | AS35: 0 | AT35: 0 | AU35: 0.9 | AV35: 0.9 | AW35: 0.9 | AX35: 0 | AY35: 0.9 | AZ35: =IF(OR(AZ$5="F",AZ$5="FD"),0,$AY35) -> 0 | BA35: 0 | BB35: 0 | BC35: 0.9 | BD35: 0.9 | BE35: 0.9 | BF35: 0.9 | BG35: 0.9 | BH35: 0 | BI35: 0 | BJ35: 0.9 | BK35: 0.9 | BL35: 0.9 | BM35: 0.9 | BN35: 0.9 | BO35: 0 | BP35: 0 | BQ35: 0.9 | BR35: 0.9 | BS35: 0.9 | BT35: 0.9 | BU35: 0.9 | BV35: 0 | BW35: 0 | BX35: 0.9 | BY35: 0.9 | BZ35: 0.9 | CA35: 0.9 | CB35: 0.9 | CC35: 0 | CD35: 0.9 | CE35: =IF(OR(CE$5="F",CE$5="FD"),0,$CD35) -> 0 | CF35: 0.9 | CG35: 0.9 | CH35: 0.9 | CI35: 0.9 | CJ35: 0.9 | CK35: 0 | CL35: 0 | CM35: 0.9 | CN35: 0.9 | CO35: 0.9 | CP35: 0.9 | CQ35: 0.9 | CR35: 0 | CS35: 0 | CT35: 0.9 | CU35: 0.9 | CV35: 0.9 | CW35: 0.9 | CX35: 0.9 | CY35: 0 | CZ35: 0 | DA35: 0.9 | DB35: 0.9 | DC35: 0 | DD35: 0.9 | DE35: 0.9 | DF35: 0 | DG35: 0 | DH35: 0.9 | DI35: 0.9 | DJ35: 0.9 | DK35: =IF(OR(DK$5="F",DK$5="FD"),0,$CD35) -> 0 | DL35: 0.9 | DM35: 0.9 | DN35: 0 | DO35: 0 | DP35: 0.9 | DQ35: 0.9 | DR35: 0.9 | DS35: 0.9 | DT35: 0.9 | DU35: 0 | DV35: 0 | DW35: 0.9 | DX35: 0.9 | DY35: 0.9 | DZ35: 0.9 | EA35: 0.9 | EB35: 0 | EC35: 0 | ED35: 0.9 | EE35: 0.9 | EF35: 0.9 | EG35: 0.9 | EH35: 0.9 | EI35: 0 | EJ35: 0 | EK35: 0.9 | EL35: 0.9 | EM35: 0.9 | EN35: 0.9 | EO35: 0.9
E36: =+E35 -> ▪ C02 SNEX Área Operativa (Encuesta de Satisfacción) | M36: 31 | N36: ▪ C02 SNEX Área Operativa (Encuesta de Satisfacción) | P36: ACTUAL | Q36: =+Q35 -> Mensual | R36: ▪ C02 SNEX Área Operativa (Encuesta de Satisfacción)ACTUALMensual | S36: =+S9 -> 22 | T36: 0.852 | U36: 0.842 | V36: 0.91 | W36: 0.796 | Z36: 1 | AA36: 0.838 | AB36: 0.835 | AC36: 1 | AD36: 0.854 | AG36: 0.878 | AH36: 0.762 | AI36: 0.894 | AJ36: 0.873 | AK36: 0.93 | AN36: 0.772 | AO36: 0.897 | AP36: 0.769 | AQ36: 0.89 | AR36: 0.829 | AU36: 0.875 | AV36: 0.866 | AW36: 0.884 | AY36: =+AY9 -> 20 | BC36: 0.796 | BD36: 0.835 | BE36: 1 | BF36: 1 | BG36: 0.838 | BJ36: 0.854 | BK36: 0.894 | BL36: 0.873 | BM36: 0.878 | BN36: 0.762 | BQ36: 0.93 | BT36: 0.772 | BU36: 0.897 | BX36: 0.829 | CA36: 0.875 | CB36: 0.866 | CC36: 0.884 | CD36: =+CD9 -> 21 | DJ36: =+DJ9 -> 22
E37: =+E36 -> ▪ C02 SNEX Área Operativa (Encuesta de Satisfacción) | M37: 32 | N37: ▪ C02 SNEX Área Operativa (Encuesta de Satisfacción) | P37: ACUM | Q37: =+Q36 -> Mensual | R37: ▪ C02 SNEX Área Operativa (Encuesta de Satisfacción)ACUMMensual | S37: =AVERAGE(T36:AX36) -> 0.8657272727 | T37: =+T36 -> 0.852 | U37: =+U36 -> 0.842 | V37: 0.91 | W37: 0.796 | X37: 0 | Y37: 0 | Z37: 1 | AA37: 0.838 | AB37: 0.835 | AC37: 1 | AD37: 0.854 | AE37: 0 | AF37: 0 | AG37: 0.878 | AH37: 0.762 | AI37: 0.894 | AJ37: 0.873 | AK37: 0.93 | AL37: 0 | AM37: 0 | AN37: 0.772 | AO37: 0.897 | AP37: 0.769 | AQ37: 0.89 | AR37: 0.829 | AS37: 0 | AT37: 0 | AU37: 0.875 | AV37: 0.866 | AW37: 0.884 | AX37: 0 | AY37: =AVERAGE(AZ36:CC36) -> 0.8695882353 | AZ37: =+AZ36 -> 0 | BA37: =+BA36 -> 0 | BB37: 0 | BC37: 0.796 | BD37: 0.835 | BE37: 1 | BF37: 1 | BG37: 0.838 | BH37: 0 | BI37: 0 | BJ37: 0.854 | BK37: 0.894 | BL37: 0.873 | BM37: 0.878 | BN37: 0.762 | BO37: 0 | BP37: 0 | BQ37: 0.93 | BR37: 0 | BS37: 0 | BT37: 0.772 | BU37: 0.897 | BV37: 0 | BW37: 0 | BX37: 0.829 | BY37: 0 | BZ37: 0 | CA37: 0.875 | CB37: 0.866 | CC37: 0.884 | CE37: =+CE36 -> 0 | CF37: =+CF36 -> 0 | CG37: 0 | CH37: 0 | CI37: 0 | CJ37: 0 | CK37: 0 | CL37: 0 | CM37: 0 | CN37: 0 | CO37: 0 | CP37: 0 | CQ37: 0 | CR37: 0 | CS37: 0 | CT37: 0 | CU37: 0 | CV37: 0 | CW37: 0 | CX37: 0 | CY37: 0 | CZ37: 0 | DA37: 0 | DB37: 0 | DC37: 0 | DD37: 0 | DE37: 0 | DF37: 0 | DG37: 0 | DH37: =+DH36 -> 0 | DI37: =+DI36 -> 0 | DK37: =+DK36 -> 0 | DL37: =+DL36 -> 0 | DM37: 0 | DN37: 0 | DO37: 0 | DP37: 0 | DQ37: 0 | DR37: 0 | DS37: 0 | DT37: 0 | DU37: 0 | DV37: 0 | DW37: 0 | DX37: 0 | DY37: 0 | DZ37: 0 | EA37: 0 | EB37: 0 | EC37: 0 | ED37: 0 | EE37: 0 | EF37: 0 | EG37: 0 | EH37: 0 | EI37: 0 | EJ37: 0 | EK37: 0 | EL37: 0 | EM37: 0 | EN37: 0 | EO37: 0
B38: 11 | C38: xxxx | D38: 1 | E38: ▪ xxx | F38: Mensual | G38: 100 | H38: 58 | I38: N° | J38: Ejecutivos Comerciales | K38: CLIENTE | M38: 33 | N38: ▪ xxx | O38: =+I38 -> N° | P38: META | Q38: =+F38 -> Mensual | R38: ▪ xxxMETAMensual
E39: ▪ xxx | M39: 34 | N39: ▪ xxx | P39: ACTUAL | Q39: =+Q38 -> Mensual | R39: ▪ xxxACTUALMensual
E40: ▪ xxx | M40: 35 | N40: ▪ xxx | P40: ACUM | Q40: =+Q39 -> Mensual | R40: =+N40&P40&Q40 -> ▪ xxxACUMMensual
B41: 12 | C41: Fidelizar actuales CCT | D41: 1 | E41: ▪ C05 N° Cierres Cuentas Corrientes voluntarias | F41: Mensual | G41: 100 | H41: 15 | I41: N° | J41: JOF | K41: CLIENTE | M41: 36 | N41: ▪ C05 N° Cierres Cuentas Corrientes voluntarias | O41: =+I41 -> N° | P41: META | Q41: =+F41 -> Mensual | R41: ▪ C05 N° Cierres Cuentas Corrientes voluntariasMETAMensual | S41: 8 | T41: =IF(OR(T$5="F",T$5="FD"),0,ROUND($S41/$S42,4)) -> 0.3636 | U41: =IF(OR(U$5="F",U$5="FD"),T41,ROUND($S41/$S42,4)+T41) -> 0.7272 | V41: 1.0908 | W41: 1.4544 | X41: 1.4544 | Y41: 1.4544 | Z41: 1.818 | AA41: 2.1816 | AB41: 2.5452 | AC41: 2.9088 | AD41: 3.2724 | AE41: 3.2724 | AF41: 3.2724 | AG41: 3.636 | AH41: 3.9996 | AI41: 4.3632 | AJ41: 4.7268 | AK41: 5.0904 | AL41: 5.0904 | AM41: 5.0904 | AN41: 5.454 | AO41: 5.8176 | AP41: 6.1812 | AQ41: 6.5448 | AR41: 6.9084 | AS41: 6.9084 | AT41: 6.9084 | AU41: 7.272 | AV41: 7.6356 | AW41: 7.9992 | AX41: 7.9992 | AY41: 7 | AZ41: =IF(OR(AZ$5="F",AZ$5="FD"),0,ROUND($AY41/$AY42,4)) -> 0 | BA41: =IF(OR(BA$5="F",BA$5="FD"),AZ41,ROUND($AY41/$AY42,4)+AZ41) -> 0 | BB41: 0 | BC41: 0.35 | BD41: 0.7 | BE41: 1.05 | BF41: 1.4 | BG41: 1.75 | BH41: 1.75 | BI41: 1.75 | BJ41: 2.1 | BK41: 2.45 | BL41: 2.8 | BM41: 3.15 | BN41: 3.5 | BO41: 3.5 | BP41: 3.5 | BQ41: 3.85 | BR41: 4.2 | BS41: 4.55 | BT41: 4.9 | BU41: 5.25 | BV41: 5.25 | BW41: 5.25 | BX41: 5.6 | BY41: 5.95 | BZ41: 6.3 | CA41: 6.65 | CB41: 7 | CC41: 7 | CD41: 8 | CE41: =IF(OR(CE$5="F",CE$5="FD"),0,ROUND($CD41/$CD42,4)) -> 0 | CF41: =IF(OR(CF$5="F",CF$5="FD"),CE41,ROUND($CD41/$CD42,4)+CE41) -> 0.381 | CG41: 0.762 | CH41: 1.143 | CI41: 1.524 | CJ41: 1.905 | CK41: 1.905 | CL41: 1.905 | CM41: 2.286 | CN41: 2.667 | CO41: 3.048 | CP41: 3.429 | CQ41: 3.81 | CR41: 3.81 | CS41: 3.81 | CT41: 4.191 | CU41: 4.572 | CV41: 4.953 | CW41: 5.334 | CX41: 5.715 | CY41: 5.715 | CZ41: 5.715 | DA41: 6.096 | DB41: 6.477 | DC41: 6.477 | DD41: 6.858 | DE41: 7.239 | DF41: 7.239 | DG41: 7.239 | DH41: 7.62 | DI41: 8.001 | DJ41: 8 | DK41: =IF(OR(DK$5="F",DK$5="FD"),0,ROUND($CD41/$CD42,4)) -> 0 | DL41: =IF(OR(DL$5="F",DL$5="FD"),DK41,ROUND($CD41/$CD42,4)+DK41) -> 0.381 | DM41: 0.762 | DN41: 0.762 | DO41: 0.762 | DP41: 1.143 | DQ41: 1.524 | DR41: 1.905 | DS41: 2.286 | DT41: 2.667 | DU41: 2.667 | DV41: 2.667 | DW41: 3.048 | DX41: 3.429 | DY41: 3.81 | DZ41: 4.191 | EA41: 4.572 | EB41: 4.572 | EC41: 4.572 | ED41: 4.953 | EE41: 5.334 | EF41: 5.715 | EG41: 6.096 | EH41: 6.477 | EI41: 6.477 | EJ41: 6.477 | EK41: 6.858 | EL41: 7.239 | EM41: 7.62 | EN41: 8.001 | EO41: 8.382
E42: =+E41 -> ▪ C05 N° Cierres Cuentas Corrientes voluntarias | M42: 37 | N42: ▪ C05 N° Cierres Cuentas Corrientes voluntarias | P42: ACTUAL | Q42: =+Q41 -> Mensual | R42: ▪ C05 N° Cierres Cuentas Corrientes voluntariasACTUALMensual | S42: =+S9 -> 22 | T42: 0 | U42: 1 | V42: 1 | W42: 1 | Z42: 0 | AA42: 0 | AB42: 1 | AC42: 1 | AD42: 1 | AG42: 0 | AH42: 0 | AI42: 1 | AJ42: 0 | AK42: 1 | AN42: 1 | AO42: 0 | AP42: 1 | AQ42: 0 | AR42: 0 | AU42: 1 | AV42: 0 | AW42: 0 | AY42: =+AY9 -> 20 | BC42: 1 | BD42: 1 | BE42: 1 | BF42: 0 | BG42: 0 | BJ42: 1 | BK42: 0 | BL42: 0 | BM42: 0 | BN42: 0 | BQ42: 0 | BR42: 1 | BS42: 1 | BT42: 0 | BU42: 0 | BW42: 0 | CD42: =+CD9 -> 21 | DJ42: =+DJ9 -> 22
E43: =+E42 -> ▪ C05 N° Cierres Cuentas Corrientes voluntarias | M43: 38 | N43: ▪ C05 N° Cierres Cuentas Corrientes voluntarias | P43: ACUM | Q43: =+Q42 -> Mensual | R43: ▪ C05 N° Cierres Cuentas Corrientes voluntariasACUMMensual | S43: =SUM(T42:AX42) -> 11 | T43: =+T42 -> 0 | U43: =+T43+U42 -> 1 | V43: 2 | W43: 3 | X43: 3 | Y43: 3 | Z43: 3 | AA43: 3 | AB43: 4 | AC43: 5 | AD43: 6 | AE43: 6 | AF43: 6 | AG43: 6 | AH43: 6 | AI43: 7 | AJ43: 7 | AK43: 8 | AL43: 8 | AM43: 8 | AN43: 9 | AO43: 9 | AP43: 10 | AQ43: 10 | AR43: 10 | AS43: 10 | AT43: 10 | AU43: 11 | AV43: 11 | AW43: 11 | AX43: =+AV43+AX42 -> 11 | AY43: =SUM(AZ42:CC42) -> 6 | AZ43: =+AZ42 -> 0 | BA43: =+AZ43+BA42 -> 0 | BB43: 0 | BC43: 1 | BD43: 2 | BE43: 3 | BF43: 3 | BG43: 3 | BH43: 3 | BI43: 3 | BJ43: 4 | BK43: 4 | BL43: 4 | BM43: 4 | BN43: 4 | BO43: 4 | BP43: 4 | BQ43: 4 | BR43: 5 | BS43: 6 | BT43: 6 | BU43: 6 | BV43: 6 | BW43: 6 | BX43: 6 | BY43: 6 | BZ43: 6 | CA43: 6 | CB43: 6 | CC43: 6 | CE43: =+CE42 -> 0 | CF43: =+CE43+CF42 -> 0 | CG43: 0 | CH43: 0 | CI43: 0 | CJ43: 0 | CK43: 0 | CL43: 0 | CM43: 0 | CN43: 0 | CO43: 0 | CP43: 0 | CQ43: 0 | CR43: 0 | CS43: 0 | CT43: 0 | CU43: 0 | CV43: 0 | CW43: 0 | CX43: 0 | CY43: 0 | CZ43: 0 | DA43: 0 | DB43: 0 | DC43: 0 | DD43: 0 | DE43: 0 | DF43: 0 | DG43: 0 | DH43: 0 | DI43: 0 | DK43: =+DK42 -> 0 | DL43: =+DK43+DL42 -> 0 | DM43: 0 | DN43: 0 | DO43: 0 | DP43: 0 | DQ43: 0 | DR43: 0 | DS43: 0 | DT43: 0 | DU43: 0 | DV43: 0 | DW43: 0 | DX43: 0 | DY43: 0 | DZ43: 0 | EA43: 0 | EB43: 0 | EC43: 0 | ED43: 0 | EE43: 0 | EF43: 0 | EG43: 0 | EH43: 0 | EI43: 0 | EJ43: 0 | EK43: 0 | EL43: 0 | EM43: 0 | EN43: 0 | EO43: 0
B44: 13 | C44: Aumentar Cuota de Mercado en Consumo | D44: 2 | E44: ▪ C03 Win Rate por Clientes | F44: Mensual | G44: 100 | H44: 6.5 | I44: % | J44: Ejecutivos Comerciales | K44: CLIENTE | M44: 39 | N44: ▪ C03 Win Rate por Clientes | O44: =+I44 -> % | P44: META | Q44: =+F44 -> Mensual | R44: ▪ C03 Win Rate por ClientesMETAMensual | S44: 0.065 | T44: =IF(OR(T$5="F",T$5="FD"),0,ROUND($S44/$S45,5)) -> 0.00295 | U44: =IF(OR(U$5="F",U$5="FD"),T44,ROUND($S44/$S45,5)+T44) -> 0.0059 | V44: 0.00885 | W44: 0.0118 | X44: 0.0118 | Y44: 0.0118 | Z44: 0.01475 | AA44: 0.0177 | AB44: 0.02065 | AC44: 0.0236 | AD44: 0.02655 | AE44: 0.02655 | AF44: 0.02655 | AG44: 0.0295 | AH44: 0.03245 | AI44: 0.0354 | AJ44: 0.03835 | AK44: 0.0413 | AL44: 0.0413 | AM44: 0.0413 | AN44: 0.04425 | AO44: 0.0472 | AP44: 0.05015 | AQ44: 0.0531 | AR44: 0.05605 | AS44: 0.05605 | AT44: 0.05605 | AU44: 0.059 | AV44: 0.06195 | AW44: 0.0649 | AX44: 0.0649 | AY44: 0.065 | AZ44: =IF(OR(AZ$5="F",AZ$5="FD"),0,ROUND($AY44/$AY45,5)) -> 0 | BA44: =IF(OR(BA$5="F",BA$5="FD"),AZ44,ROUND($AY44/$AY45,5)+AZ44) -> 0 | BB44: 0 | BC44: 0.00325 | BD44: 0.0065 | BE44: 0.00975 | BF44: 0.013 | BG44: 0.01625 | BH44: 0.01625 | BI44: 0.01625 | BJ44: 0.0195 | BK44: 0.02275 | BL44: 0.026 | BM44: 0.02925 | BN44: 0.0325 | BO44: 0.0325 | BP44: 0.0325 | BQ44: 0.03575 | BR44: 0.039 | BS44: 0.04225 | BT44: 0.0455 | BU44: 0.04875 | BV44: 0.04875 | BW44: 0.04875 | BX44: 0.052 | BY44: 0.05525 | BZ44: 0.0585 | CA44: 0.06175 | CB44: 0.065 | CC44: 0.065 | CD44: 0.065 | CE44: =IF(OR(CE$5="F",CE$5="FD"),0,ROUND($CD44/$CD45,5)) -> 0 | CF44: =IF(OR(CF$5="F",CF$5="FD"),CE44,ROUND($CD44/$CD45,5)+CE44) -> 0.0031 | CG44: 0.0062 | CH44: 0.0093 | CI44: 0.0124 | CJ44: 0.0155 | CK44: 0.0155 | CL44: 0.0155 | CM44: 0.0186 | CN44: 0.0217 | CO44: 0.0248 | CP44: 0.0279 | CQ44: 0.031 | CR44: 0.031 | CS44: 0.031 | CT44: 0.0341 | CU44: 0.0372 | CV44: 0.0403 | CW44: 0.0434 | CX44: 0.0465 | CY44: 0.0465 | CZ44: 0.0465 | DA44: 0.0496 | DB44: 0.0527 | DC44: 0.0527 | DD44: 0.0558 | DE44: 0.0589 | DF44: 0.0589 | DG44: 0.0589 | DH44: 0.062 | DI44: 0.0651 | DJ44: 0.065 | DK44: =IF(OR(DK$5="F",DK$5="FD"),0,ROUND($CD44/$CD45,5)) -> 0 | DL44: =IF(OR(DL$5="F",DL$5="FD"),DK44,ROUND($CD44/$CD45,5)+DK44) -> 0.0031 | DM44: 0.0062 | DN44: 0.0062 | DO44: 0.0062 | DP44: 0.0093 | DQ44: 0.0124 | DR44: 0.0155 | DS44: 0.0186 | DT44: 0.0217 | DU44: 0.0217 | DV44: 0.0217 | DW44: 0.0248 | DX44: 0.0279 | DY44: 0.031 | DZ44: 0.0341 | EA44: 0.0372 | EB44: 0.0372 | EC44: 0.0372 | ED44: 0.0403 | EE44: 0.0434 | EF44: 0.0465 | EG44: 0.0496 | EH44: 0.0527 | EI44: 0.0527 | EJ44: 0.0527 | EK44: 0.0558 | EL44: 0.0589 | EM44: 0.062 | EN44: 0.0651 | EO44: 0.0682
E45: =+E44 -> ▪ C03 Win Rate por Clientes | M45: 40 | N45: ▪ C03 Win Rate por Clientes | P45: ACTUAL | Q45: =+Q44 -> Mensual | R45: ▪ C03 Win Rate por ClientesACTUALMensual | S45: =+S9 -> 22 | T45: 0.00262 | U45: 0.00142 | V45: 0.0027 | W45: 0.00256 | Z45: 0.00161 | AA45: 0.00139 | AB45: 0.00272 | AC45: 0.00231 | AD45: 0.00157 | AG45: 0.00287 | AH45: 0.00199 | AI45: 0.00234 | AJ45: 0.00278 | AK45: 0.00135 | AN45: 0.00286 | AO45: 0.00124 | AP45: 0.00171 | AQ45: 0.00214 | AR45: 0.00261 | AU45: 0.00199 | AV45: 0.00152 | AW45: 0.00224 | AY45: =+AY9 -> 20 | BC45: 0.00256 | BD45: 0.00272 | BE45: 0.00231 | BF45: 0.00161 | BG45: 0.00139 | BJ45: 0.00157 | BK45: 0.00234 | BL45: 0.00278 | BM45: 0.00287 | BN45: 0.00199 | BQ45: 0.00135 | BR45: 0.00261 | BS45: 0.00199 | BT45: 0.00286 | BU45: 0.00124 | CD45: =+CD9 -> 21 | DJ45: =+DJ9 -> 22
E46: =+E45 -> ▪ C03 Win Rate por Clientes | M46: 41 | N46: ▪ C03 Win Rate por Clientes | P46: ACUM | Q46: =+Q45 -> Mensual | R46: ▪ C03 Win Rate por ClientesACUMMensual | S46: =SUM(T45:AX45) -> 0.04654 | T46: =+T45 -> 0.00262 | U46: =+T46+U45 -> 0.00404 | V46: 0.00674 | W46: 0.0093 | X46: 0.0093 | Y46: 0.0093 | Z46: 0.01091 | AA46: 0.0123 | AB46: 0.01502 | AC46: 0.01733 | AD46: 0.0189 | AE46: 0.0189 | AF46: 0.0189 | AG46: 0.02177 | AH46: 0.02376 | AI46: 0.0261 | AJ46: 0.02888 | AK46: 0.03023 | AL46: 0.03023 | AM46: 0.03023 | AN46: 0.03309 | AO46: 0.03433 | AP46: 0.03604 | AQ46: 0.03818 | AR46: 0.04079 | AS46: 0.04079 | AT46: 0.04079 | AU46: 0.04278 | AV46: 0.0443 | AW46: 0.04654 | AX46: =+AV46+AX45 -> 0.0443 | AY46: =SUM(AZ45:CC45) -> 0.03219 | AZ46: =+AZ45 -> 0 | BA46: =+AZ46+BA45 -> 0 | BB46: 0 | BC46: 0.00256 | BD46: 0.00528 | BE46: 0.00759 | BF46: 0.0092 | BG46: 0.01059 | BH46: 0.01059 | BI46: 0.01059 | BJ46: 0.01216 | BK46: 0.0145 | BL46: 0.01728 | BM46: 0.02015 | BN46: 0.02214 | BO46: 0.02214 | BP46: 0.02214 | BQ46: 0.02349 | BR46: 0.0261 | BS46: 0.02809 | BT46: 0.03095 | BU46: 0.03219 | BV46: 0.03219 | BW46: 0.03219 | BX46: 0.03219 | BY46: 0.03219 | BZ46: 0.03219 | CA46: 0.03219 | CB46: 0.03219 | CC46: 0.03219 | CE46: =+CE45 -> 0 | CF46: =+CE46+CF45 -> 0 | CG46: 0 | CH46: 0 | CI46: 0 | CJ46: 0 | CK46: 0 | CL46: 0 | CM46: 0 | CN46: 0 | CO46: 0 | CP46: 0 | CQ46: 0 | CR46: 0 | CS46: 0 | CT46: 0 | CU46: 0 | CV46: 0 | CW46: 0 | CX46: 0 | CY46: 0 | CZ46: 0 | DA46: 0 | DB46: 0 | DC46: 0 | DD46: 0 | DE46: 0 | DF46: 0 | DG46: 0 | DH46: 0 | DI46: 0 | DK46: =+DK45 -> 0 | DL46: =+DK46+DL45 -> 0 | DM46: 0 | DN46: 0 | DO46: 0 | DP46: 0 | DQ46: 0 | DR46: 0 | DS46: 0 | DT46: 0 | DU46: 0 | DV46: 0 | DW46: 0 | DX46: 0 | DY46: 0 | DZ46: 0 | EA46: 0 | EB46: 0 | EC46: 0 | ED46: 0 | EE46: 0 | EF46: 0 | EG46: 0 | EH46: 0 | EI46: 0 | EJ46: 0 | EK46: 0 | EL46: 0 | EM46: 0 | EN46: 0 | EO46: 0
B47: 14 | C47: Aumentar Cuota de Mercado en Consumo | E47: ▪ C04 Win Rate por Monto | F47: Mensual | G47: 100 | H47: 5.3 | I47: % | J47: Ejecutivos Comerciales | K47: CLIENTE | M47: 42 | N47: ▪ C04 Win Rate por Monto | O47: =+I47 -> % | P47: META | Q47: =+F47 -> Mensual | R47: ▪ C04 Win Rate por MontoMETAMensual | S47: 0.053 | T47: =IF(OR(T$5="F",T$5="FD"),0,ROUND($S47/$S48,5)) -> 0.00241 | U47: =IF(OR(U$5="F",U$5="FD"),T47,ROUND($S47/$S48,5)+T47) -> 0.00482 | V47: 0.00723 | W47: 0.00964 | X47: 0.00964 | Y47: 0.00964 | Z47: 0.01205 | AA47: 0.01446 | AB47: 0.01687 | AC47: 0.01928 | AD47: 0.02169 | AE47: 0.02169 | AF47: 0.02169 | AG47: 0.0241 | AH47: 0.02651 | AI47: 0.02892 | AJ47: 0.03133 | AK47: 0.03374 | AL47: 0.03374 | AM47: 0.03374 | AN47: 0.03615 | AO47: 0.03856 | AP47: 0.04097 | AQ47: 0.04338 | AR47: 0.04579 | AS47: 0.04579 | AT47: 0.04579 | AU47: 0.0482 | AV47: 0.05061 | AW47: 0.05302 | AX47: 0.05302 | AY47: 0.053 | AZ47: =IF(OR(AZ$5="F",AZ$5="FD"),0,ROUND($AY47/$AY48,5)) -> 0 | BA47: =IF(OR(BA$5="F",BA$5="FD"),AZ47,ROUND($AY47/$AY48,5)+AZ47) -> 0 | BB47: 0 | BC47: 0.00265 | BD47: 0.0053 | BE47: 0.00795 | BF47: 0.0106 | BG47: 0.01325 | BH47: 0.01325 | BI47: 0.01325 | BJ47: 0.0159 | BK47: 0.01855 | BL47: 0.0212 | BM47: 0.02385 | BN47: 0.0265 | BO47: 0.0265 | BP47: 0.0265 | BQ47: 0.02915 | BR47: 0.0318 | BS47: 0.03445 | BT47: 0.0371 | BU47: 0.03975 | BV47: 0.03975 | BW47: 0.03975 | BX47: 0.0424 | BY47: 0.04505 | BZ47: 0.0477 | CA47: 0.05035 | CB47: 0.053 | CC47: 0.053 | CD47: 0.053 | CE47: =IF(OR(CE$5="F",CE$5="FD"),0,ROUND($CD47/$CD48,5)) -> 0 | CF47: =IF(OR(CF$5="F",CF$5="FD"),CE47,ROUND($CD47/$CD48,5)+CE47) -> 0.00252 | CG47: 0.00504 | CH47: 0.00756 | CI47: 0.01008 | CJ47: 0.0126 | CK47: 0.0126 | CL47: 0.0126 | CM47: 0.01512 | CN47: 0.01764 | CO47: 0.02016 | CP47: 0.02268 | CQ47: 0.0252 | CR47: 0.0252 | CS47: 0.0252 | CT47: 0.02772 | CU47: 0.03024 | CV47: 0.03276 | CW47: 0.03528 | CX47: 0.0378 | CY47: 0.0378 | CZ47: 0.0378 | DA47: 0.04032 | DB47: 0.04284 | DC47: 0.04284 | DD47: 0.04536 | DE47: 0.04788 | DF47: 0.04788 | DG47: 0.04788 | DH47: 0.0504 | DI47: 0.05292 | DJ47: 0.053 | DK47: =IF(OR(DK$5="F",DK$5="FD"),0,ROUND($CD47/$CD48,5)) -> 0 | DL47: =IF(OR(DL$5="F",DL$5="FD"),DK47,ROUND($CD47/$CD48,5)+DK47) -> 0.00252 | DM47: 0.00504 | DN47: 0.00504 | DO47: 0.00504 | DP47: 0.00756 | DQ47: 0.01008 | DR47: 0.0126 | DS47: 0.01512 | DT47: 0.01764 | DU47: 0.01764 | DV47: 0.01764 | DW47: 0.02016 | DX47: 0.02268 | DY47: 0.0252 | DZ47: 0.02772 | EA47: 0.03024 | EB47: 0.03024 | EC47: 0.03024 | ED47: 0.03276 | EE47: 0.03528 | EF47: 0.0378 | EG47: 0.04032 | EH47: 0.04284 | EI47: 0.04284 | EJ47: 0.04284 | EK47: 0.04536 | EL47: 0.04788 | EM47: 0.0504 | EN47: 0.05292 | EO47: 0.05544
E48: =+E47 -> ▪ C04 Win Rate por Monto | M48: 43 | N48: ▪ C04 Win Rate por Monto | P48: ACTUAL | Q48: =+Q47 -> Mensual | R48: ▪ C04 Win Rate por MontoACTUALMensual | S48: =+S9 -> 22 | T48: 0.001 | U48: 0.0012 | V48: 0.0014 | W48: 0.00245 | Z48: 0.00211 | AA48: 0.00275 | AB48: 0.00278 | AC48: 0.0026 | AD48: 0.0019 | AG48: 0.00244 | AH48: 0.00271 | AI48: 0.00277 | AJ48: 0.00263 | AK48: 0.00248 | AN48: 0.0022 | AO48: 0.0023 | AP48: 0.00215 | AQ48: 0.00233 | AR48: 0.00237 | AU48: 0.00276 | AV48: 0.00233 | AW48: 0.00259 | AY48: =+AY9 -> 20 | BC48: 0.00245 | BD48: 0.00278 | BE48: 0.0026 | BF48: 0.00211 | BG48: 0.00275 | BJ48: 0.0019 | BK48: 0.00277 | BL48: 0.00263 | BM48: 0.00244 | BN48: 0.00271 | BQ48: 0.00248 | BR48: 0.00237 | BS48: 0.00276 | BT48: 0.0022 | BU48: 0.0023 | CD48: =+CD9 -> 21 | DJ48: =+DJ9 -> 22
E49: =+E48 -> ▪ C04 Win Rate por Monto | M49: 44 | N49: ▪ C04 Win Rate por Monto | P49: ACUM | Q49: =+Q48 -> Mensual | R49: ▪ C04 Win Rate por MontoACUMMensual | S49: =SUM(T48:AX48) -> 0.05025 | T49: =+T48 -> 0.001 | U49: =+T49+U48 -> 0.0022 | V49: 0.0036 | W49: 0.00605 | X49: 0.00605 | Y49: 0.00605 | Z49: 0.00816 | AA49: 0.01091 | AB49: 0.01369 | AC49: 0.01629 | AD49: 0.01819 | AE49: 0.01819 | AF49: 0.01819 | AG49: 0.02063 | AH49: 0.02334 | AI49: 0.02611 | AJ49: 0.02874 | AK49: 0.03122 | AL49: 0.03122 | AM49: 0.03122 | AN49: 0.03342 | AO49: 0.03572 | AP49: 0.03787 | AQ49: 0.0402 | AR49: 0.04257 | AS49: 0.04257 | AT49: 0.04257 | AU49: 0.04533 | AV49: 0.04766 | AW49: 0.05025 | AX49: =+AV49+AX48 -> 0.04766 | AY49: =SUM(AZ48:CC48) -> 0.03725 | AZ49: =+AZ48 -> 0 | BA49: =+AZ49+BA48 -> 0 | BB49: 0 | BC49: 0.00245 | BD49: 0.00523 | BE49: 0.00783 | BF49: 0.00994 | BG49: 0.01269 | BH49: 0.01269 | BI49: 0.01269 | BJ49: 0.01459 | BK49: 0.01736 | BL49: 0.01999 | BM49: 0.02243 | BN49: 0.02514 | BO49: 0.02514 | BP49: 0.02514 | BQ49: 0.02762 | BR49: 0.02999 | BS49: 0.03275 | BT49: 0.03495 | BU49: 0.03725 | BV49: 0.03725 | BW49: 0.03725 | BX49: 0.03725 | BY49: 0.03725 | BZ49: 0.03725 | CA49: 0.03725 | CB49: 0.03725 | CC49: 0.03725 | CE49: =+CE48 -> 0 | CF49: =+CE49+CF48 -> 0 | CG49: 0 | CH49: 0 | CI49: 0 | CJ49: 0 | CK49: 0 | CL49: 0 | CM49: 0 | CN49: 0 | CO49: 0 | CP49: 0 | CQ49: 0 | CR49: 0 | CS49: 0 | CT49: 0 | CU49: 0 | CV49: 0 | CW49: 0 | CX49: 0 | CY49: 0 | CZ49: 0 | DA49: 0 | DB49: 0 | DC49: 0 | DD49: 0 | DE49: 0 | DF49: 0 | DG49: 0 | DH49: 0 | DI49: 0 | DK49: =+DK48 -> 0 | DL49: =+DK49+DL48 -> 0 | DM49: 0 | DN49: 0 | DO49: 0 | DP49: 0 | DQ49: 0 | DR49: 0 | DS49: 0 | DT49: 0 | DU49: 0 | DV49: 0 | DW49: 0 | DX49: 0 | DY49: 0 | DZ49: 0 | EA49: 0 | EB49: 0 | EC49: 0 | ED49: 0 | EE49: 0 | EF49: 0 | EG49: 0 | EH49: 0 | EI49: 0 | EJ49: 0 | EK49: 0 | EL49: 0 | EM49: 0 | EN49: 0 | EO49: 0
B50: 15 | C50: Realizar Buena Gestión de Hábitos | D50: 2 | E50: ▪ PI01 % Cumplimiento de Hábitos Gestionados | F50: Semanal | G50: 40 | H50: 80 | I50: % | J50: Ejecutivos Comerciales | K50: PROCESOS INTERNOS | M50: 45 | N50: =+E50 -> ▪ PI01 % Cumplimiento de Hábitos Gestionados | O50: =+I50 -> % | P50: META | Q50: =+F50 -> Semanal | R50: =+N50&P50&Q50 -> ▪ PI01 % Cumplimiento de Hábitos GestionadosMETASemanal | S50: 0.8 | T50: =IF(OR(T$5="F",T$5="FD"),0,$S50) -> 0.8 | U50: =IF(OR(U$5="F",U$5="FD"),0,$S50) -> 0.8 | V50: 0.8 | W50: 0.8 | X50: =IF(OR(X$5="F",X$5="FD"),0,$S50) -> 0 | Y50: 0 | Z50: 0.8 | AA50: 0.8 | AB50: 0.8 | AC50: 0.8 | AD50: 0.8 | AE50: 0 | AF50: 0 | AG50: 0.8 | AH50: 0.8 | AI50: 0.8 | AJ50: 0.8 | AK50: 0.8 | AL50: 0 | AM50: 0 | AN50: 0.8 | AO50: 0.8 | AP50: 0.8 | AQ50: 0.8 | AR50: 0.8 | AS50: 0 | AT50: 0 | AU50: 0.8 | AV50: 0.8 | AW50: 0.8 | AX50: 0 | AY50: 0.8 | AZ50: =IF(OR(AZ$5="F",AZ$5="FD"),0,$AY50) -> 0 | BA50: 0 | BB50: 0 | BC50: 0.8 | BD50: 0.8 | BE50: 0.8 | BF50: 0.8 | BG50: 0.8 | BH50: 0 | BI50: 0 | BJ50: 0.8 | BK50: 0.8 | BL50: 0.8 | BM50: 0.8 | BN50: 0.8 | BO50: 0 | BP50: 0 | BQ50: 0.8 | BR50: 0.8 | BS50: 0.8 | BT50: 0.8 | BU50: 0.8 | BV50: 0 | BW50: 0 | BX50: 0.8 | BY50: 0.8 | BZ50: 0.8 | CA50: 0.8 | CB50: 0.8 | CC50: 0 | CD50: 0.8 | CE50: =IF(OR(CE$5="F",CE$5="FD"),0,$CD50) -> 0 | CF50: 0.8 | CG50: 0.8 | CH50: 0.8 | CI50: 0.8 | CJ50: 0.8 | CK50: 0 | CL50: 0 | CM50: 0.8 | CN50: 0.8 | CO50: 0.8 | CP50: 0.8 | CQ50: 0.8 | CR50: 0 | CS50: 0 | CT50: 0.8 | CU50: 0.8 | CV50: 0.8 | CW50: 0.8 | CX50: 0.8 | CY50: 0 | CZ50: 0 | DA50: 0.8 | DB50: 0.8 | DC50: 0 | DD50: 0.8 | DE50: 0.8 | DF50: 0 | DG50: 0 | DH50: 0.8 | DI50: 0.8 | DJ50: 0.8 | DK50: =IF(OR(DK$5="F",DK$5="FD"),0,$CD50) -> 0 | DL50: 0.8 | DM50: 0.8 | DN50: 0 | DO50: 0 | DP50: 0.8 | DQ50: 0.8 | DR50: 0.8 | DS50: 0.8 | DT50: 0.8 | DU50: 0 | DV50: 0 | DW50: 0.8 | DX50: 0.8 | DY50: 0.8 | DZ50: 0.8 | EA50: 0.8 | EB50: 0 | EC50: 0 | ED50: 0.8 | EE50: 0.8 | EF50: 0.8 | EG50: 0.8 | EH50: 0.8 | EI50: 0 | EJ50: 0 | EK50: 0.8 | EL50: 0.8 | EM50: 0.8 | EN50: 0.8 | EO50: 0.8
E51: =+E50 -> ▪ PI01 % Cumplimiento de Hábitos Gestionados | M51: 46 | N51: ▪ PI01 % Cumplimiento de Hábitos Gestionados | P51: ACTUAL | Q51: =+Q50 -> Semanal | R51: ▪ PI01 % Cumplimiento de Hábitos GestionadosACTUALSemanal | S51: =+S9 -> 22 | W51: 0.796 | AD51: 0.854 | AK51: 0.93 | AR51: 0.829 | AU51: 0.875 | AV51: 0.866 | AW51: 0.884 | AY51: =+AY9 -> 20 | BC51: 0.792 | BJ51: 0.877 | BQ51: 0.94 | CD51: =+CD9 -> 21 | DJ51: =+DJ9 -> 22
E52: =+E51 -> ▪ PI01 % Cumplimiento de Hábitos Gestionados | M52: 47 | N52: ▪ PI01 % Cumplimiento de Hábitos Gestionados | P52: ACUM | Q52: =+Q51 -> Semanal | R52: ▪ PI01 % Cumplimiento de Hábitos GestionadosACUMSemanal | S52: =AVERAGE(T51:AX51) -> 0.862 | T52: =+T51 -> 0 | U52: =+U51 -> 0 | V52: 0 | W52: 0.796 | X52: 0 | Y52: 0 | Z52: 0 | AA52: 0 | AB52: 0 | AC52: 0 | AD52: 0.854 | AE52: 0 | AF52: 0 | AG52: 0 | AH52: 0 | AI52: 0 | AJ52: 0 | AK52: 0.93 | AL52: 0 | AM52: 0 | AN52: 0 | AO52: 0 | AP52: 0 | AQ52: 0 | AR52: 0.829 | AS52: 0 | AT52: 0 | AU52: 0.875 | AV52: 0.866 | AW52: 0.884 | AX52: 0 | AY52: =AVERAGE(AZ51:CC51) -> 0.8696666667 | AZ52: =+AZ51 -> 0 | BA52: =+BA51 -> 0 | BB52: 0 | BC52: 0.792 | BD52: 0 | BE52: 0 | BF52: 0 | BG52: 0 | BH52: 0 | BI52: 0 | BJ52: 0.877 | BK52: 0 | BL52: 0 | BM52: 0 | BN52: 0 | BO52: 0 | BP52: 0 | BQ52: 0.94 | BR52: 0 | BS52: 0 | BT52: 0 | BU52: 0 | BV52: 0 | BW52: 0 | BX52: 0 | BY52: 0 | BZ52: 0 | CA52: 0 | CB52: 0 | CC52: 0 | CE52: =+CE51 -> 0 | CF52: =+CF51 -> 0 | CG52: 0 | CH52: 0 | CI52: 0 | CJ52: 0 | CK52: 0 | CL52: 0 | CM52: 0 | CN52: 0 | CO52: 0 | CP52: 0 | CQ52: 0 | CR52: 0 | CS52: 0 | CT52: 0 | CU52: 0 | CV52: 0 | CW52: 0 | CX52: 0 | CY52: 0 | CZ52: 0 | DA52: 0 | DB52: 0 | DC52: 0 | DD52: 0 | DE52: 0 | DF52: 0 | DG52: 0 | DH52: =+DH51 -> 0 | DI52: =+DI51 -> 0 | DK52: =+DK51 -> 0 | DL52: =+DL51 -> 0 | DM52: 0 | DN52: 0 | DO52: 0 | DP52: 0 | DQ52: 0 | DR52: 0 | DS52: 0 | DT52: 0 | DU52: 0 | DV52: 0 | DW52: 0 | DX52: 0 | DY52: 0 | DZ52: 0 | EA52: 0 | EB52: 0 | EC52: 0 | ED52: 0 | EE52: 0 | EF52: 0 | EG52: 0 | EH52: 0 | EI52: 0 | EJ52: 0 | EK52: 0 | EL52: 0 | EM52: 0 | EN52: 0 | EO52: 0
B53: 16 | C53: Realizar Buena Gestión de Hábitos | E53: ▪ PI02 % de Hábitos Gestionados en campaña | F53: Semanal | G53: 60 | H53: 80 | I53: % | J53: Ejecutivos Comerciales | K53: PROCESOS INTERNOS | M53: 48 | N53: ▪ PI02 % de Hábitos Gestionados en campaña | O53: =+I53 -> % | P53: META | Q53: =+F53 -> Semanal | R53: ▪ PI02 % de Hábitos Gestionados en campañaMETASemanal | S53: 0.8 | T53: =IF(OR(T$5="F",T$5="FD"),0,$S53) -> 0.8 | U53: =IF(OR(U$5="F",U$5="FD"),0,$S53) -> 0.8 | V53: 0.8 | W53: 0.8 | X53: =IF(OR(X$5="F",X$5="FD"),0,$S53) -> 0 | Y53: 0 | Z53: 0.8 | AA53: 0.8 | AB53: 0.8 | AC53: 0.8 | AD53: 0.8 | AE53: 0 | AF53: 0 | AG53: 0.8 | AH53: 0.8 | AI53: 0.8 | AJ53: 0.8 | AK53: 0.8 | AL53: 0 | AM53: 0 | AN53: 0.8 | AO53: 0.8 | AP53: 0.8 | AQ53: 0.8 | AR53: 0.8 | AS53: 0 | AT53: 0 | AU53: 0.8 | AV53: 0.8 | AW53: 0.8 | AX53: 0 | AY53: 0.8 | AZ53: =IF(OR(AZ$5="F",AZ$5="FD"),0,$AY53) -> 0 | BA53: 0 | BB53: 0 | BC53: 0.8 | BD53: 0.8 | BE53: 0.8 | BF53: 0.8 | BG53: 0.8 | BH53: 0 | BI53: 0 | BJ53: 0.8 | BK53: 0.8 | BL53: 0.8 | BM53: 0.8 | BN53: 0.8 | BO53: 0 | BP53: 0 | BQ53: 0.8 | BR53: 0.8 | BS53: 0.8 | BT53: 0.8 | BU53: 0.8 | BV53: 0 | BW53: 0 | BX53: 0.8 | BY53: 0.8 | BZ53: 0.8 | CA53: 0.8 | CB53: 0.8 | CC53: 0 | CD53: 0.8 | CE53: =IF(OR(CE$5="F",CE$5="FD"),0,$CD53) -> 0 | CF53: 0.8 | CG53: 0.8 | CH53: 0.8 | CI53: 0.8 | CJ53: 0.8 | CK53: 0 | CL53: 0 | CM53: 0.8 | CN53: 0.8 | CO53: 0.8 | CP53: 0.8 | CQ53: 0.8 | CR53: 0 | CS53: 0 | CT53: 0.8 | CU53: 0.8 | CV53: 0.8 | CW53: 0.8 | CX53: 0.8 | CY53: 0 | CZ53: 0 | DA53: 0.8 | DB53: 0.8 | DC53: 0 | DD53: 0.8 | DE53: 0.8 | DF53: 0 | DG53: 0 | DH53: 0.8 | DI53: 0.8 | DJ53: 0.8 | DK53: =IF(OR(DK$5="F",DK$5="FD"),0,$CD53) -> 0 | DL53: 0.8 | DM53: 0.8 | DN53: 0 | DO53: 0 | DP53: 0.8 | DQ53: 0.8 | DR53: 0.8 | DS53: 0.8 | DT53: 0.8 | DU53: 0 | DV53: 0 | DW53: 0.8 | DX53: 0.8 | DY53: 0.8 | DZ53: 0.8 | EA53: 0.8 | EB53: 0 | EC53: 0 | ED53: 0.8 | EE53: 0.8 | EF53: 0.8 | EG53: 0.8 | EH53: 0.8 | EI53: 0 | EJ53: 0 | EK53: 0.8 | EL53: 0.8 | EM53: 0.8 | EN53: 0.8 | EO53: 0.8
E54: =+E53 -> ▪ PI02 % de Hábitos Gestionados en campaña | M54: 49 | N54: ▪ PI02 % de Hábitos Gestionados en campaña | P54: ACTUAL | Q54: =+Q53 -> Semanal | R54: ▪ PI02 % de Hábitos Gestionados en campañaACTUALSemanal | S54: =+S12 -> 22 | W54: 0.9 | AD54: 0.8 | AK54: 0.93 | AR54: 0.829 | AW54: 0.884 | AY54: =+AY12 -> 20 | BC54: 0.88 | BJ54: 0.8 | BQ54: 0.93 | CD54: =+CD12 -> 21 | DJ54: =+DJ12 -> 22
E55: =+E54 -> ▪ PI02 % de Hábitos Gestionados en campaña | M55: 50 | N55: ▪ PI02 % de Hábitos Gestionados en campaña | P55: ACUM | Q55: =+Q54 -> Semanal | R55: ▪ PI02 % de Hábitos Gestionados en campañaACUMSemanal | S55: =AVERAGE(T54:AX54) -> 0.8686 | T55: =+T54 -> 0 | U55: =+U54 -> 0 | V55: 0 | W55: 0.9 | X55: 0 | Y55: 0 | Z55: 0 | AA55: 0 | AB55: 0 | AC55: 0 | AD55: 0.8 | AE55: 0 | AF55: 0 | AG55: 0 | AH55: 0 | AI55: 0 | AJ55: 0 | AK55: 0.93 | AL55: 0 | AM55: 0 | AN55: 0 | AO55: 0 | AP55: 0 | AQ55: 0 | AR55: 0.829 | AS55: 0 | AT55: 0 | AU55: 0 | AV55: 0 | AW55: 0.884 | AX55: 0 | AY55: =AVERAGE(AZ54:CC54) -> 0.87 | AZ55: =+AZ54 -> 0 | BA55: =+BA54 -> 0 | BB55: 0 | BC55: 0.88 | BD55: 0 | BE55: 0 | BF55: 0 | BG55: 0 | BH55: 0 | BI55: 0 | BJ55: 0.8 | BK55: 0 | BL55: 0 | BM55: 0 | BN55: 0 | BO55: 0 | BP55: 0 | BQ55: 0.93 | BR55: 0 | BS55: 0 | BT55: 0 | BU55: 0 | BV55: 0 | BW55: 0 | BX55: 0 | BY55: 0 | BZ55: 0 | CA55: 0 | CB55: 0 | CC55: 0 | CE55: =+CE54 -> 0 | CF55: =+CF54 -> 0 | CG55: 0 | CH55: 0 | CI55: 0 | CJ55: 0 | CK55: 0 | CL55: 0 | CM55: 0 | CN55: 0 | CO55: 0 | CP55: 0 | CQ55: 0 | CR55: 0 | CS55: 0 | CT55: 0 | CU55: 0 | CV55: 0 | CW55: 0 | CX55: 0 | CY55: 0 | CZ55: 0 | DA55: 0 | DB55: 0 | DC55: 0 | DD55: 0 | DE55: 0 | DF55: 0 | DG55: 0 | DH55: =+DH54 -> 0 | DI55: =+DI54 -> 0 | DK55: =+DK54 -> 0 | DL55: =+DL54 -> 0 | DM55: 0 | DN55: 0 | DO55: 0 | DP55: 0 | DQ55: 0 | DR55: 0 | DS55: 0 | DT55: 0 | DU55: 0 | DV55: 0 | DW55: 0 | DX55: 0 | DY55: 0 | DZ55: 0 | EA55: 0 | EB55: 0 | EC55: 0 | ED55: 0 | EE55: 0 | EF55: 0 | EG55: 0 | EH55: 0 | EI55: 0 | EJ55: 0 | EK55: 0 | EL55: 0 | EM55: 0 | EN55: 0 | EO55: 0
B56: 17 | C56: Responder a tiempo solicitudes de clientes | D56: 1 | E56: ▪ PI03 Eventos Gestionados | F56: Semanal | G56: 100 | H56: 100 | I56: % | J56: Ejecutivos Comerciales | K56: PROCESOS INTERNOS | M56: 51 | N56: ▪ PI03 Eventos Gestionados | O56: =+I56 -> % | P56: META | Q56: =+F56 -> Semanal | R56: ▪ PI03 Eventos GestionadosMETASemanal | S56: 1 | T56: =IF(OR(T$5="F",T$5="FD"),0,$S56) -> 1 | U56: =IF(OR(U$5="F",U$5="FD"),0,$S56) -> 1 | V56: 1 | W56: 1 | X56: =IF(OR(X$5="F",X$5="FD"),0,$S56) -> 0 | Y56: 0 | Z56: 1 | AA56: 1 | AB56: 1 | AC56: 1 | AD56: 1 | AE56: 0 | AF56: 0 | AG56: 1 | AH56: 1 | AI56: 1 | AJ56: 1 | AK56: 1 | AL56: 0 | AM56: 0 | AN56: 1 | AO56: 1 | AP56: 1 | AQ56: 1 | AR56: 1 | AS56: 0 | AT56: 0 | AU56: 1 | AV56: 1 | AW56: 1 | AX56: 0 | AY56: 1 | AZ56: =IF(OR(AZ$5="F",AZ$5="FD"),0,$AY56) -> 0 | BA56: 0 | BB56: 0 | BC56: 1 | BD56: 1 | BE56: 1 | BF56: 1 | BG56: 1 | BH56: 0 | BI56: 0 | BJ56: 1 | BK56: 1 | BL56: 1 | BM56: 1 | BN56: 1 | BO56: 0 | BP56: 0 | BQ56: 1 | BR56: 1 | BS56: 1 | BT56: 1 | BU56: 1 | BV56: 0 | BW56: 0 | BX56: 1 | BY56: 1 | BZ56: 1 | CA56: 1 | CB56: 1 | CC56: 0 | CD56: 1 | CE56: =IF(OR(CE$5="F",CE$5="FD"),0,$CD56) -> 0 | CF56: 1 | CG56: 1 | CH56: 1 | CI56: 1 | CJ56: 1 | CK56: 0 | CL56: 0 | CM56: 1 | CN56: 1 | CO56: 1 | CP56: 1 | CQ56: 1 | CR56: 0 | CS56: 0 | CT56: 1 | CU56: 1 | CV56: 1 | CW56: 1 | CX56: 1 | CY56: 0 | CZ56: 0 | DA56: 1 | DB56: 1 | DC56: 0 | DD56: 1 | DE56: 1 | DF56: 0 | DG56: 0 | DH56: 1 | DI56: 1 | DJ56: 1 | DK56: =IF(OR(DK$5="F",DK$5="FD"),0,$CD56) -> 0 | DL56: 1 | DM56: 1 | DN56: 0 | DO56: 0 | DP56: 1 | DQ56: 1 | DR56: 1 | DS56: 1 | DT56: 1 | DU56: 0 | DV56: 0 | DW56: 1 | DX56: 1 | DY56: 1 | DZ56: 1 | EA56: 1 | EB56: 0 | EC56: 0 | ED56: 1 | EE56: 1 | EF56: 1 | EG56: 1 | EH56: 1 | EI56: 0 | EJ56: 0 | EK56: 1 | EL56: 1 | EM56: 1 | EN56: 1 | EO56: 1
E57: =+E56 -> ▪ PI03 Eventos Gestionados | M57: 52 | N57: ▪ PI03 Eventos Gestionados | P57: ACTUAL | Q57: =+Q56 -> Semanal | R57: ▪ PI03 Eventos GestionadosACTUALSemanal | S57: =+S9 -> 22 | W57: 0.93 | AD57: 0.91 | AK57: 0.85 | AR57: 0.829 | AW57: 0.884 | AY57: =+AY9 -> 20 | BC57: 0.93 | BJ57: 0.96 | BQ57: 0.98 | CD57: =+CD9 -> 21 | DJ57: =+DJ9 -> 22
E58: =+E57 -> ▪ PI03 Eventos Gestionados | M58: 53 | N58: ▪ PI03 Eventos Gestionados | P58: ACUM | Q58: =+Q57 -> Semanal | R58: ▪ PI03 Eventos GestionadosACUMSemanal | S58: =AVERAGE(T57:AX57) -> 0.8806 | T58: =+T57 -> 0 | U58: =+U57 -> 0 | V58: 0 | W58: 0.93 | X58: 0 | Y58: 0 | Z58: 0 | AA58: 0 | AB58: 0 | AC58: 0 | AD58: 0.91 | AE58: 0 | AF58: 0 | AG58: 0 | AH58: 0 | AI58: 0 | AJ58: 0 | AK58: 0.85 | AL58: 0 | AM58: 0 | AN58: 0 | AO58: 0 | AP58: 0 | AQ58: 0 | AR58: 0.829 | AS58: 0 | AT58: 0 | AU58: 0 | AV58: 0 | AW58: 0.884 | AX58: 0 | AY58: =AVERAGE(AZ57:CC57) -> 0.9566666667 | AZ58: =+AZ57 -> 0 | BA58: =+BA57 -> 0 | BB58: 0 | BC58: 0.93 | BD58: 0 | BE58: 0 | BF58: 0 | BG58: 0 | BH58: 0 | BI58: 0 | BJ58: 0.96 | BK58: 0 | BL58: 0 | BM58: 0 | BN58: 0 | BO58: 0 | BP58: 0 | BQ58: 0.98 | BR58: 0 | BS58: 0 | BT58: 0 | BU58: 0 | BV58: 0 | BW58: 0 | BX58: 0 | BY58: 0 | BZ58: 0 | CA58: 0 | CB58: 0 | CC58: 0 | CE58: =+CE57 -> 0 | CF58: =+CF57 -> 0 | CG58: 0 | CH58: 0 | CI58: 0 | CJ58: 0 | CK58: 0 | CL58: 0 | CM58: 0 | CN58: 0 | CO58: 0 | CP58: 0 | CQ58: 0 | CR58: 0 | CS58: 0 | CT58: 0 | CU58: 0 | CV58: 0 | CW58: 0 | CX58: 0 | CY58: 0 | CZ58: 0 | DA58: 0 | DB58: 0 | DC58: 0 | DD58: 0 | DE58: 0 | DF58: 0 | DG58: 0 | DH58: =+DH57 -> 0 | DI58: =+DI57 -> 0 | DK58: =+DK57 -> 0 | DL58: =+DL57 -> 0 | DM58: 0 | DN58: 0 | DO58: 0 | DP58: 0 | DQ58: 0 | DR58: 0 | DS58: 0 | DT58: 0 | DU58: 0 | DV58: 0 | DW58: 0 | DX58: 0 | DY58: 0 | DZ58: 0 | EA58: 0 | EB58: 0 | EC58: 0 | ED58: 0 | EE58: 0 | EF58: 0 | EG58: 0 | EH58: 0 | EI58: 0 | EJ58: 0 | EK58: 0 | EL58: 0 | EM58: 0 | EN58: 0 | EO58: 0
B59: 18 | C59: Generar Tubo de Negocios | D59: 2 | E59: ▪ PI04 N° Operaciones Enviadas (SUC) | F59: Mensual | G59: 100 | H59: 50 | I59: N° | J59: JOF y Ejecutivos | K59: PROCESOS INTERNOS | M59: 54 | N59: ▪ PI04 N° Operaciones Enviadas (SUC) | O59: =+I59 -> N° | P59: META | Q59: =+F59 -> Mensual | R59: ▪ PI04 N° Operaciones Enviadas (SUC)METAMensual | S59: 132 | T59: =IF(OR(T$5="F",T$5="FD"),0,ROUND($S59/$S60,4)) -> 6 | U59: =IF(OR(U$5="F",U$5="FD"),T59,ROUND($S59/$S60,4)+T59) -> 12 | V59: 18 | W59: 24 | X59: 24 | Y59: 24 | Z59: 30 | AA59: 36 | AB59: 42 | AC59: 48 | AD59: 54 | AE59: 54 | AF59: 54 | AG59: 60 | AH59: 66 | AI59: 72 | AJ59: 78 | AK59: 84 | AL59: 84 | AM59: 84 | AN59: 90 | AO59: 96 | AP59: 102 | AQ59: 108 | AR59: 114 | AS59: 114 | AT59: 114 | AU59: 120 | AV59: 126 | AW59: 132 | AX59: 132 | AY59: 132 | AZ59: =IF(OR(AZ$5="F",AZ$5="FD"),0,ROUND($AY59/$AY60,4)) -> 0 | BA59: =IF(OR(BA$5="F",BA$5="FD"),AZ59,ROUND($AY59/$AY60,4)+AZ59) -> 0 | BB59: 0 | BC59: 6.6 | BD59: 13.2 | BE59: 19.8 | BF59: 26.4 | BG59: 33 | BH59: 33 | BI59: 33 | BJ59: 39.6 | BK59: 46.2 | BL59: 52.8 | BM59: 59.4 | BN59: 66 | BO59: 66 | BP59: 66 | BQ59: 72.6 | BR59: 79.2 | BS59: 85.8 | BT59: 92.4 | BU59: 99 | BV59: 99 | BW59: 99 | BX59: 105.6 | BY59: 112.2 | BZ59: 118.8 | CA59: 125.4 | CB59: 132 | CC59: 132 | CD59: 132 | CE59: =IF(OR(CE$5="F",CE$5="FD"),0,ROUND($CD59/$CD60,4)) -> 0 | CF59: =IF(OR(CF$5="F",CF$5="FD"),CE59,ROUND($CD59/$CD60,4)+CE59) -> 6.2857 | CG59: 12.5714 | CH59: 18.8571 | CI59: 25.1428 | CJ59: 31.4285 | CK59: 31.4285 | CL59: 31.4285 | CM59: 37.7142 | CN59: 43.9999 | CO59: 50.2856 | CP59: 56.5713 | CQ59: 62.857 | CR59: 62.857 | CS59: 62.857 | CT59: 69.1427 | CU59: 75.4284 | CV59: 81.7141 | CW59: 87.9998 | CX59: 94.2855 | CY59: 94.2855 | CZ59: 94.2855 | DA59: 100.5712 | DB59: 106.8569 | DC59: 106.8569 | DD59: 113.1426 | DE59: 119.4283 | DF59: 119.4283 | DG59: 119.4283 | DH59: 125.714 | DI59: 131.9997 | DJ59: 160 | DK59: =IF(OR(DK$5="F",DK$5="FD"),0,ROUND($CD59/$CD60,4)) -> 0 | DL59: =IF(OR(DL$5="F",DL$5="FD"),DK59,ROUND($CD59/$CD60,4)+DK59) -> 6.2857 | DM59: 12.5714 | DN59: 12.5714 | DO59: 12.5714 | DP59: 18.8571 | DQ59: 25.1428 | DR59: 31.4285 | DS59: 37.7142 | DT59: 43.9999 | DU59: 43.9999 | DV59: 43.9999 | DW59: 50.2856 | DX59: 56.5713 | DY59: 62.857 | DZ59: 69.1427 | EA59: 75.4284 | EB59: 75.4284 | EC59: 75.4284 | ED59: 81.7141 | EE59: 87.9998 | EF59: 94.2855 | EG59: 100.5712 | EH59: 106.8569 | EI59: 106.8569 | EJ59: 106.8569 | EK59: 113.1426 | EL59: 119.4283 | EM59: 125.714 | EN59: 131.9997 | EO59: 138.2854
E60: =+E59 -> ▪ PI04 N° Operaciones Enviadas (SUC) | M60: 55 | N60: ▪ PI04 N° Operaciones Enviadas (SUC) | P60: ACTUAL | Q60: =+Q59 -> Mensual | R60: =+N60&P60&Q60 -> ▪ PI04 N° Operaciones Enviadas (SUC)ACTUALMensual | S60: =+S9 -> 22 | T60: 0 | U60: 5 | V60: 7 | W60: 6 | Z60: 6 | AA60: 10 | AB60: 8 | AC60: 8 | AD60: 5 | AG60: 8 | AH60: 7 | AI60: 8 | AJ60: 9 | AK60: 6 | AN60: 4 | AO60: 5 | AP60: 8 | AQ60: 8 | AR60: 5 | AU60: 5 | AV60: 7 | AW60: 6 | AY60: =+AY9 -> 20 | BC60: 6 | BD60: 8 | BE60: 8 | BF60: 6 | BG60: 10 | BJ60: 5 | BK60: 8 | BL60: 9 | BM60: 8 | BN60: 7 | BQ60: 6 | BR60: 7 | BS60: 7 | BT60: 4 | BU60: 5 | CD60: =+CD9 -> 21 | DJ60: =+DJ9 -> 22
E61: =+E60 -> ▪ PI04 N° Operaciones Enviadas (SUC) | M61: 56 | N61: =+E61 -> ▪ PI04 N° Operaciones Enviadas (SUC) | P61: ACUM | Q61: =+Q60 -> Mensual | R61: ▪ PI04 N° Operaciones Enviadas (SUC)ACUMMensual | S61: =SUM(T60:AX60) -> 141 | T61: =+T60 -> 0 | U61: =+T61+U60 -> 5 | V61: 12 | W61: 18 | X61: 18 | Y61: 18 | Z61: 24 | AA61: 34 | AB61: 42 | AC61: 50 | AD61: 55 | AE61: 55 | AF61: 55 | AG61: 63 | AH61: 70 | AI61: 78 | AJ61: 87 | AK61: 93 | AL61: 93 | AM61: 93 | AN61: 97 | AO61: 102 | AP61: 110 | AQ61: 118 | AR61: 123 | AS61: 123 | AT61: 123 | AU61: 128 | AV61: 135 | AW61: 141 | AX61: =+AV61+AX60 -> 135 | AY61: =SUM(AZ60:CC60) -> 104 | AZ61: =+AZ60 -> 0 | BA61: =+AZ61+BA60 -> 0 | BB61: 0 | BC61: 6 | BD61: 14 | BE61: 22 | BF61: 28 | BG61: 38 | BH61: 38 | BI61: 38 | BJ61: 43 | BK61: 51 | BL61: 60 | BM61: 68 | BN61: 75 | BO61: 75 | BP61: 75 | BQ61: 81 | BR61: 88 | BS61: 95 | BT61: 99 | BU61: 104 | BV61: 104 | BW61: 104 | BX61: 104 | BY61: 104 | BZ61: 104 | CA61: 104 | CB61: 104 | CC61: 104 | CE61: =+CE60 -> 0 | CF61: =+CE61+CF60 -> 0 | CG61: 0 | CH61: 0 | CI61: 0 | CJ61: 0 | CK61: 0 | CL61: 0 | CM61: 0 | CN61: 0 | CO61: 0 | CP61: 0 | CQ61: 0 | CR61: 0 | CS61: 0 | CT61: 0 | CU61: 0 | CV61: 0 | CW61: 0 | CX61: 0 | CY61: 0 | CZ61: 0 | DA61: 0 | DB61: 0 | DC61: 0 | DD61: 0 | DE61: 0 | DF61: 0 | DG61: 0 | DH61: 0 | DI61: 0 | DK61: =+DK60 -> 0 | DL61: =+DK61+DL60 -> 0 | DM61: 0 | DN61: 0 | DO61: 0 | DP61: 0 | DQ61: 0 | DR61: 0 | DS61: 0 | DT61: 0 | DU61: 0 | DV61: 0 | DW61: 0 | DX61: 0 | DY61: 0 | DZ61: 0 | EA61: 0 | EB61: 0 | EC61: 0 | ED61: 0 | EE61: 0 | EF61: 0 | EG61: 0 | EH61: 0 | EI61: 0 | EJ61: 0 | EK61: 0 | EL61: 0 | EM61: 0 | EN61: 0 | EO61: 0
B62: 19 | C62: Generar Tubo de Negocios | E62: ▪ PI05 Operaciones aprobadas (SUC) | F62: Mensual | G62: 100 | H62: 60 | I62: % | J62: JOF y Ejecutivos | K62: PROCESOS INTERNOS | M62: 57 | N62: ▪ PI05 Operaciones aprobadas (SUC) | O62: =+I62 -> % | P62: META | Q62: =+F62 -> Mensual | R62: ▪ PI05 Operaciones aprobadas (SUC)METAMensual | S62: 0.7 | T62: =IF(OR(T$5="F",T$5="FD"),0,$S62) -> 0.7 | U62: =IF(OR(U$5="F",U$5="FD"),0,$S62) -> 0.7 | V62: 0.7 | W62: 0.7 | X62: =IF(OR(X$5="F",X$5="FD"),0,$S62) -> 0 | Y62: 0 | Z62: 0.7 | AA62: 0.7 | AB62: 0.7 | AC62: 0.7 | AD62: 0.7 | AE62: 0 | AF62: 0 | AG62: 0.7 | AH62: 0.7 | AI62: 0.7 | AJ62: 0.7 | AK62: 0.7 | AL62: 0 | AM62: 0 | AN62: 0.7 | AO62: 0.7 | AP62: 0.7 | AQ62: 0.7 | AR62: 0.7 | AS62: 0 | AT62: 0 | AU62: 0.7 | AV62: 0.7 | AW62: 0.7 | AX62: 0 | AY62: 0.7 | AZ62: =IF(OR(AZ$5="F",AZ$5="FD"),0,$AY62) -> 0 | BA62: 0 | BB62: 0 | BC62: 0.7 | BD62: 0.7 | BE62: 0.7 | BF62: 0.7 | BG62: 0.7 | BH62: 0 | BI62: 0 | BJ62: 0.7 | BK62: 0.7 | BL62: 0.7 | BM62: 0.7 | BN62: 0.7 | BO62: 0 | BP62: 0 | BQ62: 0.7 | BR62: 0.7 | BS62: 0.7 | BT62: 0.7 | BU62: 0.7 | BV62: 0 | BW62: 0 | BX62: 0.7 | BY62: 0.7 | BZ62: 0.7 | CA62: 0.7 | CB62: 0.7 | CC62: 0 | CD62: 0.7 | CE62: =IF(OR(CE$5="F",CE$5="FD"),0,$CD62) -> 0 | CF62: 0.7 | CG62: 0.7 | CH62: 0.7 | CI62: 0.7 | CJ62: 0.7 | CK62: 0 | CL62: 0 | CM62: 0.7 | CN62: 0.7 | CO62: 0.7 | CP62: 0.7 | CQ62: 0.7 | CR62: 0 | CS62: 0 | CT62: 0.7 | CU62: 0.7 | CV62: 0.7 | CW62: 0.7 | CX62: 0.7 | CY62: 0 | CZ62: 0 | DA62: 0.7 | DB62: 0.7 | DC62: 0 | DD62: 0.7 | DE62: 0.7 | DF62: 0 | DG62: 0 | DH62: 0.7 | DI62: 0.7 | DJ62: 0.7 | DK62: =IF(OR(DK$5="F",DK$5="FD"),0,$CD62) -> 0 | DL62: 0.7 | DM62: 0.7 | DN62: 0 | DO62: 0 | DP62: 0.7 | DQ62: 0.7 | DR62: 0.7 | DS62: 0.7 | DT62: 0.7 | DU62: 0 | DV62: 0 | DW62: 0.7 | DX62: 0.7 | DY62: 0.7 | DZ62: 0.7 | EA62: 0.7 | EB62: 0 | EC62: 0 | ED62: 0.7 | EE62: 0.7 | EF62: 0.7 | EG62: 0.7 | EH62: 0.7 | EI62: 0 | EJ62: 0 | EK62: 0.7 | EL62: 0.7 | EM62: 0.7 | EN62: 0.7 | EO62: 0.7
E63: =+E62 -> ▪ PI05 Operaciones aprobadas (SUC) | M63: 58 | N63: =+E63 -> ▪ PI05 Operaciones aprobadas (SUC) | P63: ACTUAL | Q63: =+Q61 -> Mensual | R63: =+N63&P63&Q63 -> ▪ PI05 Operaciones aprobadas (SUC)ACTUALMensual | S63: =+S9 -> 22 | T63: 0 | U63: 4 | V63: 2 | W63: 6 | Z63: 6 | AA63: 5 | AB63: 8 | AC63: 8 | AD63: 5 | AG63: 8 | AH63: 7 | AI63: 8 | AJ63: 9 | AK63: 6 | AN63: 4 | AO63: 5 | AP63: 8 | AQ63: 8 | AR63: 5 | AU63: 5 | AV63: 7 | AW63: 6 | AY63: =+AY9 -> 20 | BC63: 6 | BD63: 8 | BE63: 8 | BF63: 6 | BG63: 5 | BJ63: 5 | BK63: 8 | BL63: 9 | BM63: 8 | BN63: 7 | BQ63: 6 | BR63: 8 | BS63: 8 | BT63: 4 | BU63: 5 | CD63: =+CD9 -> 21 | DJ63: =+DJ9 -> 22
E64: =+E62 -> ▪ PI05 Operaciones aprobadas (SUC) | M64: 59 | N64: =+N63 -> ▪ PI05 Operaciones aprobadas (SUC) | P64: ACUM | Q64: =+Q63 -> Mensual | R64: =+R63 -> ▪ PI05 Operaciones aprobadas (SUC)ACTUALMensual | S64: =SUM(T63:AX63) -> 130 | T64: =+T63 -> 0 | U64: =+U63+T64 -> 4 | V64: =+V63+U64 -> 6 | W64: 12 | X64: 12 | Y64: 12 | Z64: 18 | AA64: 23 | AB64: 31 | AC64: 39 | AD64: 44 | AE64: 44 | AF64: 44 | AG64: 52 | AH64: 59 | AI64: 67 | AJ64: 76 | AK64: 82 | AL64: 82 | AM64: 82 | AN64: 86 | AO64: 91 | AP64: 99 | AQ64: 107 | AR64: 112 | AS64: 112 | AT64: 112 | AU64: 117 | AV64: 124 | AW64: 130 | AX64: 130 | AY64: =+SUM(AZ63:CC63)/AY61 -> 0.9711538462 | AZ64: =+AZ63 -> 0 | BA64: =+BA63+AZ64 -> 0 | BB64: 0 | BC64: 6 | BD64: 14 | BE64: 22 | BF64: 28 | BG64: 33 | BH64: 33 | BI64: 33 | BJ64: 38 | BK64: 46 | BL64: 55 | BM64: 63 | BN64: 70 | BO64: 70 | BP64: 70 | BQ64: 76 | BR64: 84 | BS64: 92 | BT64: 96 | BU64: 101 | BV64: 101 | BW64: 101 | BX64: 101 | BY64: 101 | BZ64: 101 | CA64: 101 | CB64: 101 | CC64: 101 | CE64: =+CE63 -> 0 | CF64: =+CF63+CE64 -> 0 | CG64: 0 | CH64: 0 | CI64: 0 | CJ64: 0 | CK64: 0 | CL64: 0 | CM64: 0 | CN64: 0 | CO64: 0 | CP64: 0 | CQ64: 0 | CR64: 0 | CS64: 0 | CT64: 0 | CU64: 0 | CV64: 0 | CW64: 0 | CX64: 0 | CY64: 0 | CZ64: 0 | DA64: 0 | DB64: 0 | DC64: 0 | DD64: 0 | DE64: 0 | DF64: 0 | DG64: 0 | DH64: 0 | DI64: 0 | DK64: =+DK63 -> 0 | DL64: =+DL63+DK64 -> 0 | DM64: 0 | DN64: 0 | DO64: 0 | DP64: 0 | DQ64: 0 | DR64: 0 | DS64: 0 | DT64: 0 | DU64: 0 | DV64: 0 | DW64: 0 | DX64: 0 | DY64: 0 | DZ64: 0 | EA64: 0 | EB64: 0 | EC64: 0 | ED64: 0 | EE64: 0 | EF64: 0 | EG64: 0 | EH64: 0 | EI64: 0 | EJ64: 0 | EK64: 0 | EL64: 0 | EM64: 0 | EN64: 0 | EO64: 0
B65: 20 | C65: Efectuar Control de especies | D65: 2 | E65: ▪ PI06 N° Arqueo Físico | F65: Mensual | G65: 50 | H65: 2 | I65: N° | J65: Jefe Servicio al Cliente | K65: PROCESOS INTERNOS | M65: 60 | N65: ▪ PI06 N° Arqueo Físico | O65: =+I65 -> N° | P65: META | Q65: =+F65 -> Mensual | R65: ▪ PI06 N° Arqueo FísicoMETAMensual | S65: 2 | T65: =IF(OR(T$5="F",T$5="FD"),0,ROUND($S65/$S66,4)) -> 0.0909 | U65: =IF(OR(U$5="F",U$5="FD"),T65,ROUND($S65/$S66,4)+T65) -> 0.1818 | V65: 0.2727 | W65: 0.3636 | X65: 0.3636 | Y65: 0.3636 | Z65: 0.4545 | AA65: 0.5454 | AB65: 0.6363 | AC65: 0.7272 | AD65: 0.8181 | AE65: 0.8181 | AF65: 0.8181 | AG65: 0.909 | AH65: 0.9999 | AI65: 1.0908 | AJ65: 1.1817 | AK65: 1.2726 | AL65: 1.2726 | AM65: 1.2726 | AN65: 1.3635 | AO65: 1.4544 | AP65: 1.5453 | AQ65: 1.6362 | AR65: 1.7271 | AS65: 1.7271 | AT65: 1.7271 | AU65: 1.818 | AV65: 1.9089 | AW65: 1.9998 | AX65: 1.9998 | AY65: 2 | AZ65: =IF(OR(AZ$5="F",AZ$5="FD"),0,ROUND($AY65/$AY66,4)) -> 0 | BA65: =IF(OR(BA$5="F",BA$5="FD"),AZ65,ROUND($AY65/$AY66,4)+AZ65) -> 0 | BB65: 0 | BC65: 0.1 | BD65: 0.2 | BE65: 0.3 | BF65: 0.4 | BG65: 0.5 | BH65: 0.5 | BI65: 0.5 | BJ65: 0.6 | BK65: 0.7 | BL65: 0.8 | BM65: 0.9 | BN65: 1 | BO65: 1 | BP65: 1 | BQ65: 1.1 | BR65: 1.2 | BS65: 1.3 | BT65: 1.4 | BU65: 1.5 | BV65: 1.5 | BW65: 1.5 | BX65: 1.6 | BY65: 1.7 | BZ65: 1.8 | CA65: 1.9 | CB65: 2 | CC65: 2 | CD65: 2 | CE65: =IF(OR(CE$5="F",CE$5="FD"),0,ROUND($CD65/$CD66,4)) -> 0 | CF65: =IF(OR(CF$5="F",CF$5="FD"),CE65,ROUND($CD65/$CD66,4)+CE65) -> 0.0952 | CG65: 0.1904 | CH65: 0.2856 | CI65: 0.3808 | CJ65: 0.476 | CK65: 0.476 | CL65: 0.476 | CM65: 0.5712 | CN65: 0.6664 | CO65: 0.7616 | CP65: 0.8568 | CQ65: 0.952 | CR65: 0.952 | CS65: 0.952 | CT65: 1.0472 | CU65: 1.1424 | CV65: 1.2376 | CW65: 1.3328 | CX65: 1.428 | CY65: 1.428 | CZ65: 1.428 | DA65: 1.5232 | DB65: 1.6184 | DC65: 1.6184 | DD65: 1.7136 | DE65: 1.8088 | DF65: 1.8088 | DG65: 1.8088 | DH65: 1.904 | DI65: 1.9992 | DJ65: 3 | DK65: =IF(OR(DK$5="F",DK$5="FD"),0,ROUND($CD65/$CD66,4)) -> 0 | DL65: =IF(OR(DL$5="F",DL$5="FD"),DK65,ROUND($CD65/$CD66,4)+DK65) -> 0.0952 | DM65: 0.1904 | DN65: 0.1904 | DO65: 0.1904 | DP65: 0.2856 | DQ65: 0.3808 | DR65: 0.476 | DS65: 0.5712 | DT65: 0.6664 | DU65: 0.6664 | DV65: 0.6664 | DW65: 0.7616 | DX65: 0.8568 | DY65: 0.952 | DZ65: 1.0472 | EA65: 1.1424 | EB65: 1.1424 | EC65: 1.1424 | ED65: 1.2376 | EE65: 1.3328 | EF65: 1.428 | EG65: 1.5232 | EH65: 1.6184 | EI65: 1.6184 | EJ65: 1.6184 | EK65: 1.7136 | EL65: 1.8088 | EM65: 1.904 | EN65: 1.9992 | EO65: 2.0944
E66: =+E65 -> ▪ PI06 N° Arqueo Físico | M66: 61 | N66: ▪ PI06 N° Arqueo Físico | P66: ACTUAL | Q66: =+Q65 -> Mensual | R66: ▪ PI06 N° Arqueo FísicoACTUALMensual | S66: =+S15 -> 22 | T66: 0 | U66: 0 | V66: 0 | W66: 0 | Z66: 0 | AA66: 0 | AB66: 0 | AC66: 0 | AD66: 1 | AG66: 0 | AH66: 0 | AI66: 0 | AJ66: 0 | AK66: 0 | AN66: 0 | AO66: 0 | AP66: 0 | AQ66: 0 | AR66: 0 | AU66: 1 | AV66: 0 | AW66: 0 | AY66: =+AY15 -> 20 | BC66: 0 | BD66: 0 | BE66: 0 | BF66: 0 | BG66: 0 | BJ66: 1 | BK66: 0 | BL66: 0 | BM66: 0 | BN66: 0 | BQ66: 0 | BR66: 0 | BS66: 0 | BT66: 0 | BU66: 0 | CD66: =+CD15 -> 21 | DJ66: =+DJ15 -> 22
E67: =+E66 -> ▪ PI06 N° Arqueo Físico | M67: 62 | N67: ▪ PI06 N° Arqueo Físico | P67: ACUM | Q67: =+Q66 -> Mensual | R67: ▪ PI06 N° Arqueo FísicoACUMMensual | S67: =SUM(T66:AX66) -> 2 | T67: =+T66 -> 0 | U67: =+T67+U66 -> 0 | V67: 0 | W67: 0 | X67: 0 | Y67: 0 | Z67: 0 | AA67: 0 | AB67: 0 | AC67: 0 | AD67: 1 | AE67: 1 | AF67: 1 | AG67: 1 | AH67: 1 | AI67: 1 | AJ67: 1 | AK67: 1 | AL67: 1 | AM67: 1 | AN67: 1 | AO67: 1 | AP67: 1 | AQ67: 1 | AR67: 1 | AS67: 1 | AT67: 1 | AU67: 2 | AV67: 2 | AW67: 2 | AX67: =+AV67+AX66 -> 2 | AY67: =SUM(AZ66:CC66) -> 1 | AZ67: =+AZ66 -> 0 | BA67: =+AZ67+BA66 -> 0 | BB67: 0 | BC67: 0 | BD67: 0 | BE67: 0 | BF67: 0 | BG67: 0 | BH67: 0 | BI67: 0 | BJ67: 1 | BK67: 1 | BL67: 1 | BM67: 1 | BN67: 1 | BO67: 1 | BP67: 1 | BQ67: 1 | BR67: 1 | BS67: 1 | BT67: 1 | BU67: 1 | BV67: 1 | BW67: 1 | BX67: 1 | BY67: 1 | BZ67: 1 | CA67: 1 | CB67: 1 | CC67: 1 | CE67: =+CE66 -> 0 | CF67: =+CE67+CF66 -> 0 | CG67: 0 | CH67: 0 | CI67: 0 | CJ67: 0 | CK67: 0 | CL67: 0 | CM67: 0 | CN67: 0 | CO67: 0 | CP67: 0 | CQ67: 0 | CR67: 0 | CS67: 0 | CT67: 0 | CU67: 0 | CV67: 0 | CW67: 0 | CX67: 0 | CY67: 0 | CZ67: 0 | DA67: 0 | DB67: 0 | DC67: 0 | DD67: 0 | DE67: 0 | DF67: 0 | DG67: 0 | DH67: 0 | DI67: 0 | DK67: =+DK66 -> 0 | DL67: =+DK67+DL66 -> 0 | DM67: 0 | DN67: 0 | DO67: 0 | DP67: 0 | DQ67: 0 | DR67: 0 | DS67: 0 | DT67: 0 | DU67: 0 | DV67: 0 | DW67: 0 | DX67: 0 | DY67: 0 | DZ67: 0 | EA67: 0 | EB67: 0 | EC67: 0 | ED67: 0 | EE67: 0 | EF67: 0 | EG67: 0 | EH67: 0 | EI67: 0 | EJ67: 0 | EK67: 0 | EL67: 0 | EM67: 0 | EN67: 0 | EO67: 0
B68: 20 | C68: Efectuar Control de especies | E68: ▪ PI07 Diferencia de Caja | F68: Mensual | G68: 50 | H68: 20000 | I68: $ | J68: Jefe Servicio al Cliente, Tesorero | K68: PROCESOS INTERNOS | M68: 63 | N68: =+E68 -> ▪ PI07 Diferencia de Caja | O68: =+I68 -> $ | P68: META | Q68: =+F68 -> Mensual | R68: =+N68&P68&Q68 -> ▪ PI07 Diferencia de CajaMETAMensual | S68: 20000 | T68: =IF(OR(T$5="F",T$5="FD"),0,ROUND($S68/$S69,4)) -> 909.0909 | U68: =IF(OR(U$5="F",U$5="FD"),T68,ROUND($S68/$S69,4)+T68) -> 1818.1818 | V68: 2727.2727 | W68: 3636.3636 | X68: 3636.3636 | Y68: 3636.3636 | Z68: 4545.4545 | AA68: 5454.5454 | AB68: 6363.6363 | AC68: 7272.7272 | AD68: 8181.8181 | AE68: 8181.8181 | AF68: 8181.8181 | AG68: 9090.909 | AH68: 9999.9999 | AI68: 10909.0908 | AJ68: 11818.1817 | AK68: 12727.2726 | AL68: 12727.2726 | AM68: 12727.2726 | AN68: 13636.3635 | AO68: 14545.4544 | AP68: 15454.5453 | AQ68: 16363.6362 | AR68: 17272.7271 | AS68: 17272.7271 | AT68: 17272.7271 | AU68: 18181.818 | AV68: 19090.9089 | AW68: 19999.9998 | AX68: 19999.9998 | AY68: 20000 | AZ68: =IF(OR(AZ$5="F",AZ$5="FD"),0,ROUND($AY68/$AY69,4)) -> 0 | BA68: =IF(OR(BA$5="F",BA$5="FD"),AZ68,ROUND($AY68/$AY69,4)+AZ68) -> 0 | BB68: 0 | BC68: 1000 | BD68: 2000 | BE68: 3000 | BF68: 4000 | BG68: 5000 | BH68: 5000 | BI68: 5000 | BJ68: 6000 | BK68: 7000 | BL68: 8000 | BM68: 9000 | BN68: 10000 | BO68: 10000 | BP68: 10000 | BQ68: 11000 | BR68: 12000 | BS68: 13000 | BT68: 14000 | BU68: 15000 | BV68: 15000 | BW68: 15000 | BX68: 16000 | BY68: 17000 | BZ68: 18000 | CA68: 19000 | CB68: 20000 | CC68: 20000 | CD68: 20000 | CE68: =IF(OR(CE$5="F",CE$5="FD"),0,ROUND($CD68/$CD69,4)) -> 0 | CF68: =IF(OR(CF$5="F",CF$5="FD"),CE68,ROUND($CD68/$CD69,4)+CE68) -> 952.381 | CG68: 1904.762 | CH68: 2857.143 | CI68: 3809.524 | CJ68: 4761.905 | CK68: 4761.905 | CL68: 4761.905 | CM68: 5714.286 | CN68: 6666.667 | CO68: 7619.048 | CP68: 8571.429 | CQ68: 9523.81 | CR68: 9523.81 | CS68: 9523.81 | CT68: 10476.191 | CU68: 11428.572 | CV68: 12380.953 | CW68: 13333.334 | CX68: 14285.715 | CY68: 14285.715 | CZ68: 14285.715 | DA68: 15238.096 | DB68: 16190.477 | DC68: 16190.477 | DD68: 17142.858 | DE68: 18095.239 | DF68: 18095.239 | DG68: 18095.239 | DH68: 19047.62 | DI68: 20000.001 | DJ68: 20000 | DK68: =IF(OR(DK$5="F",DK$5="FD"),0,ROUND($CD68/$CD69,4)) -> 0 | DL68: =IF(OR(DL$5="F",DL$5="FD"),DK68,ROUND($CD68/$CD69,4)+DK68) -> 952.381 | DM68: 1904.762 | DN68: 1904.762 | DO68: 1904.762 | DP68: 2857.143 | DQ68: 3809.524 | DR68: 4761.905 | DS68: 5714.286 | DT68: 6666.667 | DU68: 6666.667 | DV68: 6666.667 | DW68: 7619.048 | DX68: 8571.429 | DY68: 9523.81 | DZ68: 10476.191 | EA68: 11428.572 | EB68: 11428.572 | EC68: 11428.572 | ED68: 12380.953 | EE68: 13333.334 | EF68: 14285.715 | EG68: 15238.096 | EH68: 16190.477 | EI68: 16190.477 | EJ68: 16190.477 | EK68: 17142.858 | EL68: 18095.239 | EM68: 19047.62 | EN68: 20000.001 | EO68: 20952.382
E69: =+E68 -> ▪ PI07 Diferencia de Caja | M69: 64 | N69: =+E69 -> ▪ PI07 Diferencia de Caja | P69: ACTUAL | Q69: =+Q68 -> Mensual | R69: =+N69&P69&Q69 -> ▪ PI07 Diferencia de CajaACTUALMensual | S69: =+S9 -> 22 | T69: 690 | U69: 0 | V69: 0 | W69: 3000 | Z69: 823 | AA69: 0 | AB69: 5000 | AC69: 700 | AD69: 1200 | AG69: 814 | AH69: 481 | AI69: 294 | AJ69: 1500 | AK69: 289 | AN69: 531 | AO69: 989 | AP69: 2000 | AQ69: 657 | AR69: 893 | AU69: 1156 | AV69: 1182 | AW69: 709 | AY69: =+AY9 -> 20 | BC69: 573 | BD69: 988 | BE69: 1354 | BF69: 1398 | BG69: 1075 | BJ69: 583 | BK69: 1920 | BL69: 606 | BM69: 1918 | BN69: 1504 | BQ69: 1216 | BR69: 1010 | BS69: 1231 | BT69: 1178 | BU69: 1730 | CD69: =+CD9 -> 21 | DJ69: =+DJ9 -> 22
E70: =+E69 -> ▪ PI07 Diferencia de Caja | M70: 65 | N70: =+E70 -> ▪ PI07 Diferencia de Caja | P70: ACUM | Q70: =+Q69 -> Mensual | R70: =+N70&P70&Q70 -> ▪ PI07 Diferencia de CajaACUMMensual | S70: =SUM(T69:AX69) -> 22908 | T70: =+T69 -> 690 | U70: =+T70+U69 -> 690 | V70: 690 | W70: 3690 | X70: 3690 | Y70: 3690 | Z70: 4513 | AA70: 4513 | AB70: 9513 | AC70: 10213 | AD70: 11413 | AE70: 11413 | AF70: 11413 | AG70: 12227 | AH70: 12708 | AI70: 13002 | AJ70: 14502 | AK70: 14791 | AL70: 14791 | AM70: 14791 | AN70: 15322 | AO70: 16311 | AP70: 18311 | AQ70: 18968 | AR70: 19861 | AS70: 19861 | AT70: 19861 | AU70: 21017 | AV70: 22199 | AW70: 22908 | AX70: =+AV70+AX69 -> 22199 | AY70: =SUM(AZ69:CC69) -> 18284 | AZ70: =+AZ69 -> 0 | BA70: =+AZ70+BA69 -> 0 | BB70: 0 | BC70: 573 | BD70: 1561 | BE70: 2915 | BF70: 4313 | BG70: 5388 | BH70: 5388 | BI70: 5388 | BJ70: 5971 | BK70: 7891 | BL70: 8497 | BM70: 10415 | BN70: 11919 | BO70: 11919 | BP70: 11919 | BQ70: 13135 | BR70: 14145 | BS70: 15376 | BT70: 16554 | BU70: 18284 | BV70: 18284 | BW70: 18284 | BX70: 18284 | BY70: 18284 | BZ70: 18284 | CA70: 18284 | CB70: 18284 | CC70: 18284 | CE70: =+CE69 -> 0 | CF70: =+CE70+CF69 -> 0 | CG70: 0 | CH70: 0 | CI70: 0 | CJ70: 0 | CK70: 0 | CL70: 0 | CM70: 0 | CN70: 0 | CO70: 0 | CP70: 0 | CQ70: 0 | CR70: 0 | CS70: 0 | CT70: 0 | CU70: 0 | CV70: 0 | CW70: 0 | CX70: 0 | CY70: 0 | CZ70: 0 | DA70: 0 | DB70: 0 | DC70: 0 | DD70: 0 | DE70: 0 | DF70: 0 | DG70: 0 | DH70: 0 | DI70: 0 | DK70: =+DK69 -> 0 | DL70: =+DK70+DL69 -> 0 | DM70: 0 | DN70: 0 | DO70: 0 | DP70: 0 | DQ70: 0 | DR70: 0 | DS70: 0 | DT70: 0 | DU70: 0 | DV70: 0 | DW70: 0 | DX70: 0 | DY70: 0 | DZ70: 0 | EA70: 0 | EB70: 0 | EC70: 0 | ED70: 0 | EE70: 0 | EF70: 0 | EG70: 0 | EH70: 0 | EI70: 0 | EJ70: 0 | EK70: 0 | EL70: 0 | EM70: 0 | EN70: 0 | EO70: 0
B71: 21 | C71: Fortalecer las competencias laborales de los colaboradores | D71: 1 | E71: ▪ AC01 N° de colaboradores que asisten a cursos de formación profesional | F71: Semestral | G71: 100 | H71: 2 | I71: N° | J71: JOF | K71: APRENDIZAJE Y CRECIMIENTO | M71: 66 | N71: ▪ AC01 N° de colaboradores que asisten a cursos de formación profesional | O71: =+I71 -> N° | P71: META | Q71: =+F71 -> Semestral | R71: ▪ AC01 N° de colaboradores que asisten a cursos de formación profesionalMETASemestral | S71: 2 | AY71: 2 | CD71: 2 | DJ71: 3
E72: =+E71 -> ▪ AC01 N° de colaboradores que asisten a cursos de formación profesional | M72: 67 | N72: ▪ AC01 N° de colaboradores que asisten a cursos de formación profesional | P72: ACTUAL | Q72: =+Q71 -> Semestral | R72: ▪ AC01 N° de colaboradores que asisten a cursos de formación profesionalACTUALSemestral | S72: =+S21 -> 22 | AY72: =+AY21 -> 20 | BF72: 2 | CD72: =+CD21 -> 21 | CK72: 2 | DJ72: =+DJ21 -> 22 | DQ72: 2
E73: =+E72 -> ▪ AC01 N° de colaboradores que asisten a cursos de formación profesional | M73: 68 | N73: ▪ AC01 N° de colaboradores que asisten a cursos de formación profesional | P73: ACUM | Q73: =+Q72 -> Semestral | R73: ▪ AC01 N° de colaboradores que asisten a cursos de formación profesionalACUMSemestral | S73: =SUM(T72:AX72) -> 0 | T73: =+T72 -> 0 | U73: =+T73+U72 -> 0 | V73: 0 | W73: 0 | X73: 0 | Y73: 0 | Z73: 0 | AA73: 0 | AB73: 0 | AC73: 0 | AD73: 0 | AE73: 0 | AF73: 0 | AG73: 0 | AH73: 0 | AI73: 0 | AJ73: 0 | AK73: 0 | AL73: 0 | AM73: 0 | AN73: 0 | AO73: 0 | AP73: 0 | AQ73: 0 | AR73: 0 | AS73: 0 | AT73: 0 | AU73: 0 | AV73: 0 | AW73: 0 | AX73: =+AV73+AX72 -> 0 | AY73: =SUM(AZ72:CC72) -> 2 | AZ73: =+AZ72 -> 0 | BA73: =+AZ73+BA72 -> 0 | BB73: 0 | BC73: 0 | BD73: 0 | BE73: 0 | BF73: 2 | BG73: 2 | BH73: 2 | BI73: 2 | BJ73: 2 | BK73: 2 | BL73: 2 | BM73: 2 | BN73: 2 | BO73: 2 | BP73: 2 | BQ73: 2 | BR73: 2 | BS73: 2 | BT73: 2 | BU73: 2 | BV73: 2 | BW73: 2 | BX73: 2 | BY73: 2 | BZ73: 2 | CA73: 2 | CB73: 2 | CC73: 2 | CE73: =+CE72 -> 0 | CF73: =+CE73+CF72 -> 0 | CG73: 0 | CH73: 0 | CI73: 0 | CJ73: 0 | CK73: 2 | CL73: 2 | CM73: 2 | CN73: 2 | CO73: 2 | CP73: 2 | CQ73: 2 | CR73: 2 | CS73: 2 | CT73: 2 | CU73: 2 | CV73: 2 | CW73: 2 | CX73: 2 | CY73: 2 | CZ73: 2 | DA73: 2 | DB73: 2 | DC73: 2 | DD73: 2 | DE73: 2 | DF73: 2 | DG73: 2 | DH73: 2 | DI73: 2 | DK73: =+DK72 -> 0 | DL73: =+DK73+DL72 -> 0 | DM73: 0 | DN73: 0 | DO73: 0 | DP73: 0 | DQ73: 2 | DR73: 2 | DS73: 2 | DT73: 2 | DU73: 2 | DV73: 2 | DW73: 2 | DX73: 2 | DY73: 2 | DZ73: 2 | EA73: 2 | EB73: 2 | EC73: 2 | ED73: 2 | EE73: 2 | EF73: 2 | EG73: 2 | EH73: 2 | EI73: 2 | EJ73: 2 | EK73: 2 | EL73: 2 | EM73: 2 | EN73: 2 | EO73: 2
B74: 22 | C74: Fomentar la participación en la mejora continua,Innovación y creatividad. | D74: 1 | E74: ▪ AC02 N° Ideas presentadas [concurso] | F74: Semestral | G74: 100 | H74: 6 | I74: N° | J74: JOF | K74: APRENDIZAJE Y CRECIMIENTO | M74: 69 | N74: ▪ AC02 N° Ideas presentadas [concurso] | O74: =+I74 -> N° | P74: META | Q74: =+F74 -> Semestral | R74: ▪ AC02 N° Ideas presentadas [concurso]METASemestral | S74: 6 | AY74: 6 | AZ74: 6 | BA74: 6 | BB74: 6 | BC74: 6 | BD74: 6 | BE74: 6 | BF74: 6 | BG74: 6 | BH74: 6 | BI74: 6 | BJ74: 6 | BK74: 6 | BL74: 6 | BM74: 6 | BN74: 6 | BO74: 6 | BP74: 6 | BQ74: 6 | BR74: 6 | BS74: 6 | BT74: 6 | BU74: 6 | BV74: 6 | BW74: 6 | BX74: 6 | BY74: 6 | BZ74: 6 | CA74: 6 | CB74: 6 | CC74: 6 | CD74: 6 | CE74: 6 | CF74: 6 | CG74: 6 | CH74: 6 | CI74: 6 | CJ74: 6 | CK74: 6 | CL74: 6 | CM74: 6 | CN74: 6 | CO74: 6 | CP74: 6 | CQ74: 6 | CR74: 6 | CS74: 6 | CT74: 6 | CU74: 6 | CV74: 6 | CW74: 6 | CX74: 6 | CY74: 6 | CZ74: 6 | DA74: 6 | DB74: 6 | DC74: 6 | DD74: 6 | DE74: 6 | DF74: 6 | DG74: 6 | DH74: 6 | DI74: 7 | DJ74: 8 | DK74: 6 | DL74: 6 | DM74: 6 | DN74: 6 | DO74: 6 | DP74: 6 | DQ74: 6 | DR74: 6 | DS74: 6 | DT74: 6 | DU74: 6 | DV74: 6 | DW74: 6 | DX74: 6 | DY74: 6 | DZ74: 6 | EA74: 6 | EB74: 6 | EC74: 6 | ED74: 6 | EE74: 6 | EF74: 6 | EG74: 6 | EH74: 6 | EI74: 6 | EJ74: 6 | EK74: 6 | EL74: 6 | EM74: 6 | EN74: 6 | EO74: 7
E75: =+E74 -> ▪ AC02 N° Ideas presentadas [concurso] | M75: 70 | N75: ▪ AC02 N° Ideas presentadas [concurso] | P75: ACTUAL | Q75: =+Q74 -> Semestral | R75: ▪ AC02 N° Ideas presentadas [concurso]ACTUALSemestral | S75: =+S24 -> 22 | AY75: =+AY24 -> 20 | BE75: 1 | BJ75: 1 | CD75: =+CD24 -> 21 | DJ75: =+DJ24 -> 22
E76: =+E75 -> ▪ AC02 N° Ideas presentadas [concurso] | M76: 71 | N76: ▪ AC02 N° Ideas presentadas [concurso] | P76: ACUM | Q76: =+Q75 -> Semestral | R76: ▪ AC02 N° Ideas presentadas [concurso]ACUMSemestral | S76: =SUM(T75:AX75) -> 0 | T76: =+T75 -> 0 | U76: =+T76+U75 -> 0 | V76: 0 | W76: 0 | X76: 0 | Y76: 0 | Z76: 0 | AA76: 0 | AB76: 0 | AC76: 0 | AD76: 0 | AE76: 0 | AF76: 0 | AG76: 0 | AH76: 0 | AI76: 0 | AJ76: 0 | AK76: 0 | AL76: 0 | AM76: 0 | AN76: 0 | AO76: 0 | AP76: 0 | AQ76: 0 | AR76: 0 | AS76: 0 | AT76: 0 | AU76: 0 | AV76: 0 | AW76: 0 | AX76: =+AV76+AX75 -> 0 | AY76: =SUM(AZ75:CC75) -> 2 | AZ76: =+AZ75 -> 0 | BA76: =+AZ76+BA75 -> 0 | BB76: 0 | BC76: 0 | BD76: 0 | BE76: 1 | BF76: 1 | BG76: 1 | BH76: 1 | BI76: 1 | BJ76: 2 | BK76: 2 | BL76: 2 | BM76: 2 | BN76: 2 | BO76: 2 | BP76: 2 | BQ76: 2 | BR76: 2 | BS76: 2 | BT76: 2 | BU76: 2 | BV76: 2 | BW76: 2 | BX76: 2 | BY76: 2 | BZ76: 2 | CA76: 2 | CB76: 2 | CC76: 2 | CE76: =+CE75 -> 0 | CF76: =+CE76+CF75 -> 0 | CG76: 0 | CH76: 0 | CI76: 0 | CJ76: 0 | CK76: 0 | CL76: 0 | CM76: 0 | CN76: 0 | CO76: 0 | CP76: 0 | CQ76: 0 | CR76: 0 | CS76: 0 | CT76: 0 | CU76: 0 | CV76: 0 | CW76: 0 | CX76: 0 | CY76: 0 | CZ76: 0 | DA76: 0 | DB76: 0 | DC76: 0 | DD76: 0 | DE76: 0 | DF76: 0 | DG76: 0 | DH76: 0 | DI76: 0 | DK76: =+DK75 -> 0 | DL76: =+DK76+DL75 -> 0 | DM76: 0 | DN76: 0 | DO76: 0 | DP76: 0 | DQ76: 0 | DR76: 0 | DS76: 0 | DT76: 0 | DU76: 0 | DV76: 0 | DW76: 0 | DX76: 0 | DY76: 0 | DZ76: 0 | EA76: 0 | EB76: 0 | EC76: 0 | ED76: 0 | EE76: 0 | EF76: 0 | EG76: 0 | EH76: 0 | EI76: 0 | EJ76: 0 | EK76: 0 | EL76: 0 | EM76: 0 | EN76: 0 | EO76: 0
B77: 23 | C77: Mantener un buen clima laboral | D77: 1 | E77: ▪ AC03 % de satisfacción del clima laboral | F77: Anual | G77: 100 | H77: 80 | I77: % | J77: JOF | K77: APRENDIZAJE Y CRECIMIENTO | M77: 72 | N77: ▪ AC03 % de satisfacción del clima laboral | O77: =+I77 -> % | P77: META | Q77: =+F77 -> Anual | R77: ▪ AC03 % de satisfacción del clima laboralMETAAnual | S77: 0.9 | AY77: 0.9 | AZ77: 0.8 | BA77: 0.8 | BB77: 0.8 | BC77: 0.8 | BD77: 0.8 | BE77: 0.8 | BF77: 0.8 | BG77: 0.8 | BH77: 0.8 | BI77: 0.8 | BJ77: 0.8 | BK77: 0.8 | BL77: 0.8 | BM77: 0.8 | BN77: 0.8 | BO77: 0.8 | BP77: 0.8 | BQ77: 0.8 | BR77: 0.8 | BS77: 0.8 | BT77: 0.8 | BU77: 0.8 | BV77: 0.8 | BW77: 0.8 | BX77: 0.8 | BY77: 0.8 | BZ77: 0.8 | CA77: 0.8 | CB77: 0.8 | CC77: 0.8 | CD77: 0.9 | CE77: 0.8 | CF77: 0.8 | CG77: 0.8 | CH77: 0.8 | CI77: 0.8 | CJ77: 0.8 | CK77: 0.8 | CL77: 0.8 | CM77: 0.8 | CN77: 0.8 | CO77: 0.8 | CP77: 0.8 | CQ77: 0.8 | CR77: 0.8 | CS77: 0.8 | CT77: 0.8 | CU77: 0.8 | CV77: 0.8 | CW77: 0.8 | CX77: 0.8 | CY77: 0.8 | CZ77: 0.8 | DA77: 0.8 | DB77: 0.8 | DC77: 0.8 | DD77: 0.8 | DE77: 0.8 | DF77: 0.8 | DG77: 0.8 | DH77: 0.8 | DI77: 1.8 | DJ77: 0.9 | DK77: 0.8 | DL77: 0.8 | DM77: 0.8 | DN77: 0.8 | DO77: 0.8 | DP77: 0.8 | DQ77: 0.8 | DR77: 0.8 | DS77: 0.8 | DT77: 0.8 | DU77: 0.8 | DV77: 0.8 | DW77: 0.8 | DX77: 0.8 | DY77: 0.8 | DZ77: 0.8 | EA77: 0.8 | EB77: 0.8 | EC77: 0.8 | ED77: 0.8 | EE77: 0.8 | EF77: 0.8 | EG77: 0.8 | EH77: 0.8 | EI77: 0.8 | EJ77: 0.8 | EK77: 0.8 | EL77: 0.8 | EM77: 0.8 | EN77: 0.8 | EO77: 1.8
E78: =+E77 -> ▪ AC03 % de satisfacción del clima laboral | M78: 73 | N78: ▪ AC03 % de satisfacción del clima laboral | P78: ACTUAL | Q78: =+Q77 -> Anual | R78: ▪ AC03 % de satisfacción del clima laboralACTUALAnual | S78: =+S27 -> 22 | AY78: =+AY27 -> 20 | BT78: 0.783 | CD78: =+CD27 -> 21 | DJ78: =+DJ27 -> 22
E79: =+E78 -> ▪ AC03 % de satisfacción del clima laboral | M79: 74 | N79: ▪ AC03 % de satisfacción del clima laboral | P79: ACUM | Q79: =+Q78 -> Anual | R79: ▪ AC03 % de satisfacción del clima laboralACUMAnual | S79: =SUM(T78:AX78) -> 0 | T79: =+T78 -> 0 | U79: =+T79+U78 -> 0 | V79: 0 | W79: 0 | X79: 0 | Y79: 0 | Z79: 0 | AA79: 0 | AB79: 0 | AC79: 0 | AD79: 0 | AE79: 0 | AF79: 0 | AG79: 0 | AH79: 0 | AI79: 0 | AJ79: 0 | AK79: 0 | AL79: 0 | AM79: 0 | AN79: 0 | AO79: 0 | AP79: 0 | AQ79: 0 | AR79: 0 | AS79: 0 | AT79: 0 | AU79: 0 | AV79: 0 | AW79: 0 | AX79: =+AV79+AX78 -> 0 | AY79: =SUM(AZ78:CC78) -> 0.783 | AZ79: =+AZ78 -> 0 | BA79: =+AZ79+BA78 -> 0 | BB79: 0 | BC79: 0 | BD79: 0 | BE79: 0 | BF79: 0 | BG79: 0 | BH79: 0 | BI79: 0 | BJ79: 0 | BK79: 0 | BL79: 0 | BM79: 0 | BN79: 0 | BO79: 0 | BP79: 0 | BQ79: 0 | BR79: 0 | BS79: 0 | BT79: 0.783 | BU79: 0.783 | BV79: 0.783 | BW79: 0.783 | BX79: 0.783 | BY79: 0.783 | BZ79: 0.783 | CA79: 0.783 | CB79: 0.783 | CC79: 0.783 | CE79: =+CE78 -> 0 | CF79: =+CE79+CF78 -> 0 | CG79: 0 | CH79: 0 | CI79: 0 | CJ79: 0 | CK79: 0 | CL79: 0 | CM79: 0 | CN79: 0 | CO79: 0 | CP79: 0 | CQ79: 0 | CR79: 0 | CS79: 0 | CT79: 0 | CU79: 0 | CV79: 0 | CW79: 0 | CX79: 0 | CY79: 0 | CZ79: 0 | DA79: 0 | DB79: 0 | DC79: 0 | DD79: 0 | DE79: 0 | DF79: 0 | DG79: 0 | DH79: 0 | DI79: 0 | DK79: =+DK78 -> 0 | DL79: =+DK79+DL78 -> 0 | DM79: 0 | DN79: 0 | DO79: 0 | DP79: 0 | DQ79: 0 | DR79: 0 | DS79: 0 | DT79: 0 | DU79: 0 | DV79: 0 | DW79: 0 | DX79: 0 | DY79: 0 | DZ79: 0 | EA79: 0 | EB79: 0 | EC79: 0 | ED79: 0 | EE79: 0 | EF79: 0 | EG79: 0 | EH79: 0 | EI79: 0 | EJ79: 0 | EK79: 0 | EL79: 0 | EM79: 0 | EN79: 0 | EO79: 0
B80: 24 | C80: Verificar que los colaboradores están alineados con la estrategia | D80: 1 | E80: ▪ AC04 % Resultados Encuesta de Ejecución | F80: Anual | G80: 100 | H80: 75 | I80: % | J80: JOF | K80: APRENDIZAJE Y CRECIMIENTO | M80: 75 | N80: ▪ AC04 % Resultados Encuesta de Ejecución | O80: =+I80 -> % | P80: META | Q80: =+F80 -> Anual | R80: ▪ AC04 % Resultados Encuesta de EjecuciónMETAAnual | S80: 0.7 | AY80: 0.7 | AZ80: 0.75 | BA80: 0.75 | BB80: 0.75 | BC80: 0.75 | BD80: 0.75 | BE80: 0.75 | BF80: 0.75 | BG80: 0.75 | BH80: 0.75 | BI80: 0.75 | BJ80: 0.75 | BK80: 0.75 | BL80: 0.75 | BM80: 0.75 | BN80: 0.75 | BO80: 0.75 | BP80: 0.75 | BQ80: 0.75 | BR80: 0.75 | BS80: 0.75 | BT80: 0.75 | BU80: 0.75 | BV80: 0.75 | BW80: 0.75 | BX80: 0.75 | BY80: 0.75 | BZ80: 0.75 | CA80: 0.75 | CB80: 0.75 | CC80: 0.8 | CD80: 0.7 | CE80: 0.75 | CF80: 0.75 | CG80: 0.75 | CH80: 0.75 | CI80: 0.75 | CJ80: 0.75 | CK80: 0.75 | CL80: 0.75 | CM80: 0.75 | CN80: 0.75 | CO80: 0.75 | CP80: 0.75 | CQ80: 0.75 | CR80: 0.75 | CS80: 0.75 | CT80: 0.75 | CU80: 0.75 | CV80: 0.75 | CW80: 0.75 | CX80: 0.75 | CY80: 0.75 | CZ80: 0.75 | DA80: 0.75 | DB80: 0.75 | DC80: 0.75 | DD80: 0.75 | DE80: 0.75 | DF80: 0.75 | DG80: 0.75 | DH80: 0.75 | DI80: 1.75 | DJ80: 0.7 | DK80: 0.75 | DL80: 0.75 | DM80: 0.75 | DN80: 0.75 | DO80: 0.75 | DP80: 0.75 | DQ80: 0.75 | DR80: 0.75 | DS80: 0.75 | DT80: 0.75 | DU80: 0.75 | DV80: 0.75 | DW80: 0.75 | DX80: 0.75 | DY80: 0.75 | DZ80: 0.75 | EA80: 0.75 | EB80: 0.75 | EC80: 0.75 | ED80: 0.75 | EE80: 0.75 | EF80: 0.75 | EG80: 0.75 | EH80: 0.75 | EI80: 0.75 | EJ80: 0.75 | EK80: 0.75 | EL80: 0.75 | EM80: 0.75 | EN80: 0.75 | EO80: 1.75
E81: =+E80 -> ▪ AC04 % Resultados Encuesta de Ejecución | M81: 76 | N81: ▪ AC04 % Resultados Encuesta de Ejecución | P81: ACTUAL | Q81: =+Q80 -> Anual | R81: ▪ AC04 % Resultados Encuesta de EjecuciónACTUALAnual | S81: =+S30 -> 22 | AY81: =+AY30 -> 20 | BT81: 0.82 | CD81: =+CD30 -> 21 | DJ81: =+DJ30 -> 22
E82: =+E81 -> ▪ AC04 % Resultados Encuesta de Ejecución | M82: 77 | N82: ▪ AC04 % Resultados Encuesta de Ejecución | P82: ACUM | Q82: =+Q81 -> Anual | R82: ▪ AC04 % Resultados Encuesta de EjecuciónACUMAnual | S82: =SUM(T81:AX81) -> 0 | T82: =+T81 -> 0 | U82: =+T82+U81 -> 0 | V82: 0 | W82: 0 | X82: 0 | Y82: 0 | Z82: 0 | AA82: 0 | AB82: 0 | AC82: 0 | AD82: 0 | AE82: 0 | AF82: 0 | AG82: 0 | AH82: 0 | AI82: 0 | AJ82: 0 | AK82: 0 | AL82: 0 | AM82: 0 | AN82: 0 | AO82: 0 | AP82: 0 | AQ82: 0 | AR82: 0 | AS82: 0 | AT82: 0 | AU82: 0 | AV82: 0 | AW82: 0 | AX82: =+AV82+AX81 -> 0 | AY82: =SUM(AZ81:CC81) -> 0.82 | AZ82: =+AZ81 -> 0 | BA82: =+AZ82+BA81 -> 0 | BB82: 0 | BC82: 0 | BD82: 0 | BE82: 0 | BF82: 0 | BG82: 0 | BH82: 0 | BI82: 0 | BJ82: 0 | BK82: 0 | BL82: 0 | BM82: 0 | BN82: 0 | BO82: 0 | BP82: 0 | BQ82: 0 | BR82: 0 | BS82: 0 | BT82: 0.82 | BU82: 0.82 | BV82: 0.82 | BW82: 0.82 | BX82: 0.82 | BY82: 0.82 | BZ82: 0.82 | CA82: 0.82 | CB82: 0.82 | CC82: 0.82 | CE82: =+CE81 -> 0 | CF82: =+CE82+CF81 -> 0 | CG82: 0 | CH82: 0 | CI82: 0 | CJ82: 0 | CK82: 0 | CL82: 0 | CM82: 0 | CN82: 0 | CO82: 0 | CP82: 0 | CQ82: 0 | CR82: 0 | CS82: 0 | CT82: 0 | CU82: 0 | CV82: 0 | CW82: 0 | CX82: 0 | CY82: 0 | CZ82: 0 | DA82: 0 | DB82: 0 | DC82: 0 | DD82: 0 | DE82: 0 | DF82: 0 | DG82: 0 | DH82: 0 | DI82: 0 | DK82: =+DK81 -> 0 | DL82: =+DK82+DL81 -> 0 | DM82: 0 | DN82: 0 | DO82: 0 | DP82: 0 | DQ82: 0 | DR82: 0 | DS82: 0 | DT82: 0 | DU82: 0 | DV82: 0 | DW82: 0 | DX82: 0 | DY82: 0 | DZ82: 0 | EA82: 0 | EB82: 0 | EC82: 0 | ED82: 0 | EE82: 0 | EF82: 0 | EG82: 0 | EH82: 0 | EI82: 0 | EJ82: 0 | EK82: 0 | EL82: 0 | EM82: 0 | EN82: 0 | EO82: 0
C86: ▪ F02 Ventas Netas Créditos de Consumo | E86: ▪ F07 Volumen de Inversiones [FFMM,LAP,DAP] | F86: ▪ PI01 % Cumplimiento de Hábitos Gestionados | G86: ▪ PI04 N° Operaciones Enviadas (SUC) | H86: ▪ C01 SNEX Área Comercial (Encuesta de Satisfacción) | I86: ▪ PI06 N° Arqueo Físico | J86: ▪ C03 Win Rate por Clientes
C87: ▪ F03 Ventas Netas Tarjetas de Crédito (TC) | E87: ▪ F08 Venta Bruta de Seguros (Indiv.+Vinc.) | F87: ▪ PI02 % de Hábitos Gestionados en campaña | G87: ▪ PI05 Operaciones aprobadas (SUC) | H87: ▪ C02 SNEX Área Operativa (Encuesta de Satisfacción) | I87: ▪ PI07 Diferencia de Caja | J87: ▪ C04 Win Rate por Monto
C88: ▪ F04 N° Aperturas de Cuentas Corrientes (CCT)
C89: ▪ F05 Ventas Netas Cred. Hipotecario (CHIP)
B94: 1 | C94: [ F ] Obtener Rentabilidad Operativa para Sucursal Bancaria | F94: =LEN(C94) -> 61
B95: 2 | C95: [ F ] Lograr Crecimiento en las Ventas | F95: =LEN(C95) -> 39
B96: 3 | C96: [ F ] Mantener la Cartera de Clientes al Día | F96: 45
B97: 4 | C97: [ F ] Incrementar Utilidad por Filiales | F97: 40
B98: 1 | C98: [ C ] Lograr Satisfacción del cliente | F98: 38
B99: 2 | C99: [ C ] Aumentar Cuota de Mercado en Consumo | F99: 44
B100: 3 | C100: [ C ] Fidelizar actuales CCT | F100: 29
B101: 1 | C101: [ PI ] Realizar Buena Gestión de Hábitos | F101: =LEN(C101) -> 40
B102: 2 | C102: [ PI ] Responder a tiempo solicitudes de clientes | F102: 49
B103: 3 | C103: [ PI ] Generar Tubo de Negocios | F103: 31
B104: 4 | C104: [ PI ] Efectuar Control de especies | F104: 35
B105: 1 | C105: [ AC ] Fortalecer las competencias laborales de los colaboradores | F105: 65
B106: 2 | C106: [ AC ] Fomentar la participación en la mejora continua,Innovación y creatividad. | F106: 80
B107: 3 | C107: [ AC ] Mantener un buen clima laboral | F107: 37
B108: 4 | C108: [ AC ] Verificar que los colaboradores están alineados con la estrategia | F108: 73
C111: Unidad de Negocios | D111: Meses | F111: Trimestre | G111: Semestre
C112: Unidad 2 | D112: Enero | E112: 1 | F112: T1 | H112: 2013 | I112: 1er Semestre | J112: Trimestre 1
C113: Unidad 3 | D113: Febrero | E113: 2 | F113: T1 | H113: 2014 | I113: 2do Semestre | J113: Trimestre 2
C114: Unidad 4 | D114: Marzo | E114: 3 | F114: T1 | H114: 2015 | J114: Trimestre 3
D115: Abril | E115: 4 | F115: T2 | H115: 2016 | J115: Trimestre 4
D116: Mayo | E116: 5 | F116: T2
D117: Junio | E117: 6 | F117: T2
D118: Julio | E118: 7 | F118: T3
D119: Agosto | E119: 8
D120: Septiembre | E120: 9
D121: Octubre | E121: 10
D122: Noviembre | E122: 11
D123: Diciembre | E123: 12
D125: año | F125: posicion | G125: posicionT | H125: posicionS
C126: Enero | D126: 2013 | E126: =+C126&D126 -> Enero2013 | F126: 1 | G126: 13 | H126: 17 | I126: Para Calculo desde OBJETIVOS ESTRATEGICOS
C127: Febrero | D127: =+D126 -> 2013 | E127: =+C127&D127 -> Febrero2013 | F127: 2 | G127: 13 | H127: 17 | I127: =+OBJ_Global!P4 -> Enero | J127: =+OBJ_Global!R4 -> 2014 | K127: <--- de la selección Mes y Año
C128: Marzo | D128: =+D127 -> 2013 | E128: Marzo2013 | F128: 3 | G128: 13 | H128: 17
C129: Abril | D129: 2013 | E129: Abril2013 | F129: 4 | G129: 14 | H129: 17 | I129: Mes | J129: =VLOOKUP($I$127&$J$127,$E$126:$H$173,2,FALSE) -> 18
C130: Mayo | D130: 2013 | E130: Mayo2013 | F130: 5 | G130: 14 | H130: 17 | I130: Trimestre | J130: =VLOOKUP($I$127&$J$127,$E$126:$H$173,3,FALSE) -> 29
C131: Junio | D131: 2013 | E131: Junio2013 | F131: 6 | G131: 14 | H131: 17 | I131: Semestre | J131: =VLOOKUP($I$127&$J$127,$E$126:$H$173,4,FALSE) -> 34
C132: Julio | D132: 2013 | E132: Julio2013 | F132: 7 | G132: 15 | H132: 18
C133: Agosto | D133: 2013 | E133: Agosto2013 | F133: 8 | G133: 15 | H133: 18
C134: Septiembre | D134: 2013 | E134: Septiembre2013 | F134: 9 | G134: 15 | H134: 18 | I134: Para Calculo desde INDICADORES POR OBJETIVO
C135: Octubre | D135: 2013 | E135: Octubre2013 | F135: 10 | G135: 16 | H135: 18
C136: Noviembre | D136: 2013 | E136: Noviembre2013 | F136: 11 | G136: 16 | H136: 18
C137: Diciembre | D137: 2013 | E137: Diciembre2013 | F137: 12 | G137: 16 | H137: 18 | I137: =+Detalle_Objetivos!T4 -> Noviembre | J137: =+Detalle_Objetivos!V4 -> 2013 | K137: <--- de la selección Mes y Año
C138: Enero | D138: 2014 | E138: Enero2014 | F138: =+H137 -> 18 | G138: =+F149 -> 29 | H138: =+F138+16 -> 34
C139: Febrero | D139: =+D138 -> 2014 | E139: Febrero2014 | F139: =+F138+1 -> 19 | G139: =+G138 -> 29 | H139: =+H138 -> 34 | I139: Mes | J139: =VLOOKUP($I$137&$J$137,$E$126:$H$173,2,FALSE) -> 11
C140: Marzo | D140: =+D139 -> 2014 | E140: Marzo2014 | F140: =+F139+1 -> 20 | G140: =+G139 -> 29 | H140: =+H139 -> 34 | I140: Trimestre | J140: =VLOOKUP($I$137&$J$137,$E$126:$H$173,3,FALSE) -> 16
C141: Abril | D141: 2014 | E141: Abril2014 | F141: 21 | G141: =+G140+1 -> 30 | H141: =+H140 -> 34 | I141: Semestre | J141: =VLOOKUP($I$137&$J$137,$E$126:$H$173,4,FALSE) -> 18
C142: Mayo | D142: 2014 | E142: Mayo2014 | F142: 22 | G142: =+G141 -> 30 | H142: =+H141 -> 34
C143: Junio | D143: 2014 | E143: Junio2014 | F143: 23 | G143: =+G142 -> 30 | H143: =+H142 -> 34
C144: Julio | D144: 2014 | E144: Julio2014 | F144: 24 | G144: =+G143+1 -> 31 | H144: =+H143+1 -> 35 | I144: Mes Anterior | J144: =IF(I137<>"Enero",J139-1,J139-6) -> 10
C145: Agosto | D145: 2014 | E145: Agosto2014 | F145: 25 | G145: =+G144 -> 31 | H145: =+H144 -> 35 | I145: Trimestre | J145: =IF(I137<>"Enero",VLOOKUP($I$137&$J$137,$E$126:$H$173,3,FALSE),VLOOKUP($I$137&$J$137,$E$126:$H$173,3,FALSE)-13) -> 16
C146: Septiembre | D146: 2014 | E146: Septiembre2014 | F146: 26 | G146: 31 | H146: 35 | I146: Semestre | J146: =IF(I137<>"Enero",VLOOKUP($I$137&$J$137,$E$126:$H$173,4,FALSE),VLOOKUP($I$137&$J$137,$E$126:$H$173,4,FALSE)-16) -> 18
C147: Octubre | D147: 2014 | E147: Octubre2014 | F147: 27 | G147: =+G146+1 -> 32 | H147: 35
C148: Noviembre | D148: 2014 | E148: Noviembre2014 | F148: 28 | G148: =+G147 -> 32 | H148: 35
C149: Diciembre | D149: 2014 | E149: Diciembre2014 | F149: 29 | G149: =+G148 -> 32 | H149: 35
C150: Enero | D150: 2015 | E150: =+C150&D150 -> Enero2015 | F150: =+H137 -> 18 | G150: =+F161 -> 29 | H150: =+F150+16 -> 34
C151: Febrero | D151: =+D150 -> 2015 | E151: Febrero2015 | F151: =+F150+1 -> 19 | G151: =+G150 -> 29 | H151: =+H150 -> 34
C152: Marzo | D152: =+D151 -> 2015 | E152: Marzo2015 | F152: =+F151+1 -> 20 | G152: =+G151 -> 29 | H152: =+H151 -> 34
C153: Abril | D153: 2015 | E153: Abril2015 | F153: 21 | G153: =+G152+1 -> 30 | H153: =+H152 -> 34
C154: Mayo | D154: 2015 | E154: Mayo2015 | F154: 22 | G154: =+G153 -> 30 | H154: =+H153 -> 34
C155: Junio | D155: 2015 | E155: Junio2015 | F155: 23 | G155: =+G154 -> 30 | H155: =+H154 -> 34
C156: Julio | D156: 2015 | E156: Julio2015 | F156: 24 | G156: 31 | H156: =+H155+1 -> 35
C157: Agosto | D157: 2015 | E157: Agosto2015 | F157: 25 | G157: =+G156 -> 31 | H157: =+H156 -> 35
C158: Septiembre | D158: 2015 | E158: Septiembre2015 | F158: 26 | G158: 31 | H158: 35
C159: Octubre | D159: 2015 | E159: Octubre2015 | F159: 27 | G159: 32 | H159: 35
C160: Noviembre | D160: 2015 | E160: Noviembre2015 | F160: 28 | G160: =+G159 -> 32 | H160: 35
C161: Diciembre | D161: 2015 | E161: Diciembre2015 | F161: 29 | G161: =+G160 -> 32 | H161: 35
C162: Enero | D162: 2016 | E162: Enero2016 | F162: =+H149 -> 35 | G162: =+F173 -> 46 | H162: =+F162+16 -> 51
C163: Febrero | D163: =+D162 -> 2016 | E163: Febrero2016 | F163: =+F162+1 -> 36 | G163: =+G162 -> 46 | H163: =+H162 -> 51
C164: Marzo | D164: =+D163 -> 2016 | E164: Marzo2016 | F164: =+F163+1 -> 37 | G164: =+G163 -> 46 | H164: =+H163 -> 51
C165: Abril | D165: 2016 | E165: Abril2016 | F165: 38 | G165: =+G164+1 -> 47 | H165: =+H164 -> 51
C166: Mayo | D166: 2016 | E166: Mayo2016 | F166: 39 | G166: =+G165 -> 47 | H166: =+H165 -> 51
C167: Junio | D167: 2016 | E167: Junio2016 | F167: 40 | G167: =+G166 -> 47 | H167: =+H166 -> 51
C168: Julio | D168: 2016 | E168: Julio2016 | F168: 41 | G168: =+G167+1 -> 48 | H168: =+H167+1 -> 52
C169: Agosto | D169: 2016 | E169: Agosto2016 | F169: 42 | G169: =+G168 -> 48 | H169: =+H168 -> 52
C170: Septiembre | D170: 2016 | E170: Septiembre2016 | F170: 43 | G170: =+G169 -> 48 | H170: =+H169 -> 52
C171: Octubre | D171: 2016 | E171: Octubre2016 | F171: 44 | G171: =+G170+1 -> 49 | H171: =+H170 -> 52
C172: Noviembre | D172: 2016 | E172: Noviembre2016 | F172: 45 | G172: =+G171 -> 49 | H172: =+H171 -> 52
C173: Diciembre | D173: 2016 | E173: Diciembre2016 | F173: 46 | G173: =+G172 -> 49 | H173: =+H172 -> 52

Sheet Hoja6 (hidden)
A1: Etiquetas de fila | B1: Cuenta de 2
A2: 1 | B2: 2
A3: Total general | B3: 2
E25: MM$
A26: mes | B26: ejecutivo | C26: dia | D26: TC | E26: CHIP
A27: Enero | B27: CAZAMOR | C27: 1 | D27: =RANDBETWEEN(0,4) -> 2 | E27: =RANDBETWEEN(10,40)/10 -> 1.5
A28: Enero | B28: CAZAMOR | C28: 2 | D28: =RANDBETWEEN(0,4) -> 1 | E28: =RANDBETWEEN(10,40)/10 -> 2.9
A29: Enero | B29: CAZAMOR | C29: 3 | D29: 4 | E29: =RANDBETWEEN(10,40)/10 -> 2.5
A30: Enero | B30: CAZAMOR | C30: 4 | D30: 2 | E30: 3.4
A31: Enero | B31: CAZAMOR | C31: 5 | D31: 4 | E31: 2.1 | H31: Etiquetas de columna
A32: Enero | B32: CAZAMOR | C32: 6 | D32: 1 | E32: 2.4 | H32: Suma de TC | L32: Suma de CHIP | P32: Total Suma de TC | Q32: Total Suma de CHIP
A33: Enero | B33: CAZAMOR | C33: 7 | D33: 3 | E33: 2.9 | G33: Etiquetas de fila | H33: CAZAMOR | I33: EMUNOZB | J33: LALARU | K33: MSANHUI | L33: CAZAMOR | M33: EMUNOZB | N33: LALARU | O33: MSANHUI
A34: Enero | B34: CAZAMOR | C34: 8 | D34: 2 | E34: 3.6 | G34: 1 | H34: 3 | I34: 4 | J34: 3 | K34: 4 | L34: 1.6 | M34: 1.4 | N34: 1.9 | O34: 3.4 | P34: 14 | Q34: 8.3
A35: Enero | B35: CAZAMOR | C35: 9 | D35: 1 | E35: 2.6 | G35: 2 | H35: 3 | I35: 2 | J35: 2 | K35: 1 | L35: 3.7 | M35: 2.3 | N35: 3.8 | O35: 4 | P35: 8 | Q35: 13.8
A36: Enero | B36: CAZAMOR | C36: 10 | D36: 1 | E36: 2.6 | G36: 3 | H36: 3 | I36: 4 | J36: 4 | K36: 0 | L36: 2.4 | M36: 1.6 | N36: 2.4 | O36: 1.5 | P36: 11 | Q36: 7.9
A37: Enero | B37: CAZAMOR | C37: 11 | D37: 3 | E37: 2.1 | G37: 4 | H37: 3 | I37: 0 | J37: 0 | K37: 1 | L37: 3.8 | M37: 3.3 | N37: 1.9 | O37: 2.3 | P37: 4 | Q37: 11.3
A38: Enero | B38: CAZAMOR | C38: 12 | D38: 0 | E38: 1.9 | G38: 5 | H38: 0 | I38: 0 | J38: 3 | K38: 4 | L38: 1.8 | M38: 3.5 | N38: 1.3 | O38: 3.5 | P38: 7 | Q38: 10.1
A39: Enero | B39: CAZAMOR | C39: 13 | D39: 0 | E39: 1.7 | G39: 6 | H39: 0 | I39: 0 | J39: 3 | K39: 1 | L39: 2.6 | M39: 1 | N39: 3.9 | O39: 2.5 | P39: 4 | Q39: 10
A40: Enero | B40: CAZAMOR | C40: 14 | D40: 4 | E40: 3.8 | G40: 7 | H40: 4 | I40: 4 | J40: 0 | K40: 2 | L40: 1.6 | M40: 1.1 | N40: 2.8 | O40: 2.6 | P40: 10 | Q40: 8.1
A41: Enero | B41: CAZAMOR | C41: 15 | D41: 1 | E41: 3.7 | G41: 8 | H41: 3 | I41: 2 | J41: 3 | K41: 1 | L41: 2.7 | M41: 2.6 | N41: 2.8 | O41: 1.8 | P41: 9 | Q41: 9.9
A42: Enero | B42: CAZAMOR | C42: 16 | D42: 3 | E42: 2.3 | G42: 9 | H42: 3 | I42: 1 | J42: 3 | K42: 3 | L42: 2.1 | M42: 1.6 | N42: 1 | O42: 2.6 | P42: 10 | Q42: 7.3
A43: Enero | B43: CAZAMOR | C43: 17 | D43: 4 | E43: 1 | G43: 10 | H43: 0 | I43: 2 | J43: 1 | K43: 2 | L43: 1.8 | M43: 2.4 | N43: 3.1 | O43: 3.3 | P43: 5 | Q43: 10.6
A44: Enero | B44: CAZAMOR | C44: 18 | D44: 4 | E44: 2.2 | G44: 11 | H44: 4 | I44: 4 | J44: 2 | K44: 0 | L44: 2.3 | M44: 3.6 | N44: 1.7 | O44: 2.5 | P44: 10 | Q44: 10.1
A45: Enero | B45: CAZAMOR | C45: 19 | D45: 2 | E45: 3.2 | G45: 12 | H45: 2 | I45: 1 | J45: 1 | K45: 2 | L45: 1.1 | M45: 1.6 | N45: 4 | O45: 3.2 | P45: 6 | Q45: 9.9
A46: Enero | B46: CAZAMOR | C46: 20 | D46: 2 | E46: 3.9 | G46: 13 | H46: 2 | I46: 1 | J46: 2 | K46: 2 | L46: 2.2 | M46: 1.1 | N46: 1.7 | O46: 1.1 | P46: 7 | Q46: 6.1
A47: Enero | B47: CAZAMOR | C47: 21 | D47: 1 | E47: 3.6 | G47: 14 | H47: 1 | I47: 2 | J47: 1 | K47: 4 | L47: 3.9 | M47: 3.7 | N47: 1.8 | O47: 2.6 | P47: 8 | Q47: 12
A48: Enero | B48: CAZAMOR | C48: 22 | D48: 4 | E48: 1 | G48: 15 | H48: 1 | I48: 3 | J48: 0 | K48: 1 | L48: 4 | M48: 2.1 | N48: 3.8 | O48: 3.7 | P48: 5 | Q48: 13.6
A49: Enero | B49: CAZAMOR | C49: 23 | D49: =RANDBETWEEN(0,4) -> 1 | E49: 2 | G49: 16 | H49: 4 | I49: 1 | J49: 4 | K49: 4 | L49: 2.8 | M49: 1.2 | N49: 2.3 | O49: 3.9 | P49: 13 | Q49: 10.2
A50: Enero | B50: CAZAMOR | C50: 24 | D50: 2 | E50: 2.1 | G50: 17 | H50: 1 | I50: 4 | J50: 4 | K50: 0 | L50: 1.7 | M50: 3.4 | N50: 2.7 | O50: 3.9 | P50: 9 | Q50: 11.7
A51: Enero | B51: CAZAMOR | C51: 25 | D51: 0 | E51: 1.4 | G51: 18 | H51: 4 | I51: 0 | J51: 4 | K51: 1 | L51: 2.8 | M51: 3.6 | N51: 1 | O51: 2.4 | P51: 9 | Q51: 9.8
A52: Enero | B52: CAZAMOR | C52: 26 | D52: 2 | E52: 1.9 | G52: 19 | H52: 0 | I52: 2 | J52: 4 | K52: 3 | L52: 2 | M52: 2.1 | N52: 3.7 | O52: 3.9 | P52: 9 | Q52: 11.7
A53: Enero | B53: CAZAMOR | C53: 27 | D53: 1 | E53: 3.6 | G53: 20 | H53: 4 | I53: 2 | J53: 3 | K53: 2 | L53: 3 | M53: 3.5 | N53: 1.6 | O53: 1.7 | P53: 11 | Q53: 9.8
A54: Enero | B54: CAZAMOR | C54: 28 | D54: 0 | E54: 3 | G54: 21 | H54: 3 | I54: 1 | J54: 1 | K54: 2 | L54: 3.7 | M54: 3.9 | N54: 1 | O54: 2.7 | P54: 7 | Q54: 11.3
A55: Enero | B55: CAZAMOR | C55: 29 | D55: 3 | E55: 3.1 | G55: 22 | H55: 1 | I55: 2 | J55: 2 | K55: 4 | L55: 3 | M55: 1 | N55: 2.1 | O55: 3.3 | P55: 9 | Q55: 9.4
A56: Enero | B56: CAZAMOR | C56: 30 | D56: 4 | E56: 3.3 | G56: 23 | H56: 1 | I56: 1 | J56: 0 | K56: 1 | L56: 3.1 | M56: 2.3 | N56: 3.9 | O56: 1.1 | P56: 3 | Q56: 10.4
A57: Enero | B57: CAZAMOR | C57: 31 | D57: 4 | E57: 3.5 | G57: 24 | H57: 4 | I57: 3 | J57: 0 | K57: 4 | L57: 3.4 | M57: 3.1 | N57: 2.5 | O57: 1.4 | P57: 11 | Q57: 10.4
A58: Enero | B58: LALARU | C58: 1 | D58: =RANDBETWEEN(0,4) -> 1 | E58: 1.5 | G58: 25 | H58: 1 | I58: 4 | J58: 2 | K58: 0 | L58: 1.4 | M58: 2.2 | N58: 2.2 | O58: 3 | P58: 7 | Q58: 8.8
A59: Enero | B59: LALARU | C59: 2 | D59: 2 | E59: 1.5 | G59: 26 | H59: 4 | I59: 3 | J59: 1 | K59: 0 | L59: 3.5 | M59: 1.9 | N59: 3.1 | O59: 3.5 | P59: 8 | Q59: 12
A60: Enero | B60: LALARU | C60: 3 | D60: 2 | E60: 3.7 | G60: 27 | H60: 0 | I60: 2 | J60: 2 | K60: 2 | L60: 2.1 | M60: 2.9 | N60: 2.2 | O60: 1.8 | P60: 6 | Q60: 9
A61: Enero | B61: LALARU | C61: 4 | D61: 2 | E61: 2.7 | G61: 28 | H61: 2 | I61: 2 | J61: 0 | K61: 2 | L61: 3.7 | M61: 3.5 | N61: 1.9 | O61: 1.4 | P61: 6 | Q61: 10.5
A62: Enero | B62: LALARU | C62: 5 | D62: 4 | E62: 3.3 | G62: 29 | H62: 0 | I62: 1 | J62: 3 | K62: 1 | L62: 2.4 | M62: 3 | N62: 2.6 | O62: 3.9 | P62: 5 | Q62: 11.9
A63: Enero | B63: LALARU | C63: 6 | D63: 0 | E63: 1.2 | G63: 30 | H63: 3 | I63: 3 | J63: 0 | K63: 4 | L63: 1.3 | M63: 1.3 | N63: 2.8 | O63: 3 | P63: 10 | Q63: 8.4
A64: Enero | B64: LALARU | C64: 7 | D64: 3 | E64: 3 | G64: 31 | H64: 2 | I64: 0 | J64: 3 | K64: 4 | L64: 3.5 | M64: 1.7 | N64: 1.7 | O64: 3.3 | P64: 9 | Q64: 10.2
A65: Enero | B65: LALARU | C65: 8 | D65: 3 | E65: 2 | G65: Total general | H65: 66 | I65: 61 | J65: 61 | K65: 62 | L65: 81 | M65: 73.5 | N65: 75.2 | O65: 84.8 | P65: 250 | Q65: 314.5
A66: Enero | B66: LALARU | C66: 9 | D66: 3 | E66: 1.7
A67: Enero | B67: LALARU | C67: 10 | D67: 1 | E67: 1.8
A68: Enero | B68: LALARU | C68: 11 | D68: 0 | E68: 2
A69: Enero | B69: LALARU | C69: 12 | D69: 0 | E69: 1.3
A70: Enero | B70: LALARU | C70: 13 | D70: 3 | E70: 1.4
A71: Enero | B71: LALARU | C71: 14 | D71: 2 | E71: 4
A72: Enero | B72: LALARU | C72: 15 | D72: 4 | E72: 1.7
A73: Enero | B73: LALARU | C73: 16 | D73: 2 | E73: 3.4
A74: Enero | B74: LALARU | C74: 17 | D74: 1 | E74: 2.4
A75: Enero | B75: LALARU | C75: 18 | D75: 1 | E75: 3.6
A76: Enero | B76: LALARU | C76: 19 | D76: 2 | E76: 1
A77: Enero | B77: LALARU | C77: 20 | D77: 0 | E77: 2.8
A78: Enero | B78: LALARU | C78: 21 | D78: 3 | E78: 3.7
A79: Enero | B79: LALARU | C79: 22 | D79: 2 | E79: 1.4
A80: Enero | B80: LALARU | C80: 23 | D80: =RANDBETWEEN(0,4) -> 1 | E80: 1.9
A81: Enero | B81: LALARU | C81: 24 | D81: 4 | E81: 2.5
A82: Enero | B82: LALARU | C82: 25 | D82: 2 | E82: 2.7
A83: Enero | B83: LALARU | C83: 26 | D83: 4 | E83: 1.5
A84: Enero | B84: LALARU | C84: 27 | D84: 0 | E84: 4
A85: Enero | B85: LALARU | C85: 28 | D85: 3 | E85: 4
A86: Enero | B86: LALARU | C86: 29 | D86: 0 | E86: 3.6
A87: Enero | B87: LALARU | C87: 30 | D87: 4 | E87: 3.1
A88: Enero | B88: LALARU | C88: 31 | D88: 0 | E88: 1.4
A89: Enero | B89: MSANHUI | C89: 1 | D89: =RANDBETWEEN(0,4) -> 2 | E89: 1.4
A90: Enero | B90: MSANHUI | C90: 2 | D90: 1 | E90: 1.2
A91: Enero | B91: MSANHUI | C91: 3 | D91: 2 | E91: 3.2
A92: Enero | B92: MSANHUI | C92: 4 | D92: =RANDBETWEEN(0,4) -> 4 | E92: 1.4
A93: Enero | B93: MSANHUI | C93: 5 | D93: 4 | E93: =RANDBETWEEN(10,40)/10 -> 2.3
A94: Enero | B94: MSANHUI | C94: 6 | D94: 2 | E94: 3.8
A95: Enero | B95: MSANHUI | C95: 7 | D95: 0 | E95: 2.1
A96: Enero | B96: MSANHUI | C96: 8 | D96: 2 | E96: 2.1
A97: Enero | B97: MSANHUI | C97: 9 | D97: 4 | E97: 2.1
A98: Enero | B98: MSANHUI | C98: 10 | D98: 3 | E98: 2.8
A99: Enero | B99: MSANHUI | C99: 11 | D99: 3 | E99: 3.5
A100: Enero | B100: MSANHUI | C100: 12 | D100: 1 | E100: 3.7
A101: Enero | B101: MSANHUI | C101: 13 | D101: 2 | E101: 3.7
A102: Enero | B102: MSANHUI | C102: 14 | D102: 2 | E102: 1.2
A103: Enero | B103: MSANHUI | C103: 15 | D103: 3 | E103: 3.4
A104: Enero | B104: MSANHUI | C104: 16 | D104: 1 | E104: 1.7
A105: Enero | B105: MSANHUI | C105: 17 | D105: 1 | E105: 1.2
A106: Enero | B106: MSANHUI | C106: 18 | D106: 0 | E106: 1.9
A107: Enero | B107: MSANHUI | C107: 19 | D107: 4 | E107: 1
A108: Enero | B108: MSANHUI | C108: 20 | D108: 0 | E108: 3.6
A109: Enero | B109: MSANHUI | C109: 21 | D109: 4 | E109: 3.8
A110: Enero | B110: MSANHUI | C110: 22 | D110: 1 | E110: 2.6
A111: Enero | B111: MSANHUI | C111: 23 | D111: =RANDBETWEEN(0,4) -> 0 | E111: 1.2
A112: Enero | B112: MSANHUI | C112: 24 | D112: 3 | E112: 2.8
A113: Enero | B113: MSANHUI | C113: 25 | D113: 4 | E113: 1.3
A114: Enero | B114: MSANHUI | C114: 26 | D114: 1 | E114: 1.8
A115: Enero | B115: MSANHUI | C115: 27 | D115: 4 | E115: 1.8
A116: Enero | B116: MSANHUI | C116: 28 | D116: 4 | E116: 3
A117: Enero | B117: MSANHUI | C117: 29 | D117: 2 | E117: 1.9
A118: Enero | B118: MSANHUI | C118: 30 | D118: 0 | E118: 3.7
A119: Enero | B119: MSANHUI | C119: 31 | D119: 3 | E119: 1.5
A120: Enero | B120: EMUNOZB | C120: 1 | D120: =RANDBETWEEN(0,4) -> 1 | E120: 3.5
A121: Enero | B121: EMUNOZB | C121: 2 | D121: =RANDBETWEEN(0,4) -> 2 | E121: 1.7
A122: Enero | B122: EMUNOZB | C122: 3 | D122: 3 | E122: 2.4
A123: Enero | B123: EMUNOZB | C123: 4 | D123: 0 | E123: 1.6
A124: Enero | B124: EMUNOZB | C124: 5 | D124: 4 | E124: 4
A125: Enero | B125: EMUNOZB | C125: 6 | D125: 2 | E125: 3.5
A126: Enero | B126: EMUNOZB | C126: 7 | D126: 4 | E126: 3.2
A127: Enero | B127: EMUNOZB | C127: 8 | D127: 3 | E127: 3.9
A128: Enero | B128: EMUNOZB | C128: 9 | D128: 0 | E128: 3.5
A129: Enero | B129: EMUNOZB | C129: 10 | D129: 0 | E129: 1.1
A130: Enero | B130: EMUNOZB | C130: 11 | D130: 1 | E130: 1.4
A131: Enero | B131: EMUNOZB | C131: 12 | D131: 4 | E131: 3.1
A132: Enero | B132: EMUNOZB | C132: 13 | D132: 2 | E132: 3
A133: Enero | B133: EMUNOZB | C133: 14 | D133: 2 | E133: 2.7
A134: Enero | B134: EMUNOZB | C134: 15 | D134: 2 | E134: 2.9
A135: Enero | B135: EMUNOZB | C135: 16 | D135: 4 | E135: 4
A136: Enero | B136: EMUNOZB | C136: 17 | D136: 3 | E136: 2.5
A137: Enero | B137: EMUNOZB | C137: 18 | D137: 0 | E137: 2
A138: Enero | B138: EMUNOZB | C138: 19 | D138: 4 | E138: 1.9
A139: Enero | B139: EMUNOZB | C139: 20 | D139: 3 | E139: 3.2
A140: Enero | B140: EMUNOZB | C140: 21 | D140: 2 | E140: 3.1
A141: Enero | B141: EMUNOZB | C141: 22 | D141: 0 | E141: 1.4
A142: Enero | B142: EMUNOZB | C142: 23 | D142: =RANDBETWEEN(0,4) -> 4 | E142: 3.6
A143: Enero | B143: EMUNOZB | C143: 24 | D143: 0 | E143: 1.6
A144: Enero | B144: EMUNOZB | C144: 25 | D144: 0 | E144: 1.8
A145: Enero | B145: EMUNOZB | C145: 26 | D145: 2 | E145: 1.8
A146: Enero | B146: EMUNOZB | C146: 27 | D146: 2 | E146: 2.4
A147: Enero | B147: EMUNOZB | C147: 28 | D147: 0 | E147: 1.8
A148: Enero | B148: EMUNOZB | C148: 29 | D148: 0 | E148: 1.7
A149: Enero | B149: EMUNOZB | C149: 30 | D149: 0 | E149: 2
A150: Enero | B150: EMUNOZB | C150: 31 | D150: 1 | E150: 2.9
A151: Enero | B151: Oficina | C151: 1 | D151: =+D27+D58+D89+D120 -> 6 | E151: 7.9
A152: Enero | B152: Oficina | C152: 2 | D152: 6 | E152: 7.3
A153: Enero | B153: Oficina | C153: 3 | D153: 11 | E153: 11.8
A154: Enero | B154: Oficina | C154: 4 | D154: 8 | E154: 9.1
A155: Enero | B155: Oficina | C155: 5 | D155: 16 | E155: 11.7
A156: Enero | B156: Oficina | C156: 6 | D156: 5 | E156: 10.9
A157: Enero | B157: Oficina | C157: 7 | D157: 10 | E157: 11.2
A158: Enero | B158: Oficina | C158: 8 | D158: 10 | E158: 11.6
A159: Enero | B159: Oficina | C159: 9 | D159: 8 | E159: 9.9
A160: Enero | B160: Oficina | C160: 10 | D160: 5 | E160: 8.3
A161: Enero | B161: Oficina | C161: 11 | D161: 7 | E161: 9
A162: Enero | B162: Oficina | C162: 12 | D162: 5 | E162: 10
A163: Enero | B163: Oficina | C163: 13 | D163: 7 | E163: 9.8
A164: Enero | B164: Oficina | C164: 14 | D164: 10 | E164: 11.7
A165: Enero | B165: Oficina | C165: 15 | D165: 10 | E165: 11.7
A166: Enero | B166: Oficina | C166: 16 | D166: 10 | E166: 11.4
A167: Enero | B167: Oficina | C167: 17 | D167: 9 | E167: 7.1
A168: Enero | B168: Oficina | C168: 18 | D168: 5 | E168: 9.7
A169: Enero | B169: Oficina | C169: 19 | D169: 12 | E169: 7.1
A170: Enero | B170: Oficina | C170: 20 | D170: 5 | E170: 13.5
A171: Enero | B171: Oficina | C171: 21 | D171: 10 | E171: 14.2
A172: Enero | B172: Oficina | C172: 22 | D172: 7 | E172: 6.4
A173: Enero | B173: Oficina | C173: 23 | D173: 6 | E173: 8.7
A174: Enero | B174: Oficina | C174: 24 | D174: 9 | E174: 9
A175: Enero | B175: Oficina | C175: 25 | D175: 6 | E175: 7.2
A176: Enero | B176: Oficina | C176: 26 | D176: 9 | E176: 7
A177: Enero | B177: Oficina | C177: 27 | D177: 7 | E177: 11.8
A178: Enero | B178: Oficina | C178: 28 | D178: 7 | E178: 11.8
A179: Enero | B179: Oficina | C179: 29 | D179: 5 | E179: 10.3
A180: Enero | B180: Oficina | C180: 30 | D180: 8 | E180: 12.1
A181: Enero | B181: Oficina | C181: 31 | D181: 8 | E181: 9.3
A182: Febrero | B182: CAZAMOR | C182: 1 | D182: =RANDBETWEEN(0,4) -> 0 | E182: =RANDBETWEEN(10,40)/10 -> 3.7
A183: Febrero | B183: CAZAMOR | C183: 2 | D183: =RANDBETWEEN(0,4) -> 1 | E183: =RANDBETWEEN(10,40)/10 -> 1.9
A184: Febrero | B184: CAZAMOR | C184: 3 | D184: 4 | E184: =RANDBETWEEN(10,40)/10 -> 1.6
A185: Febrero | B185: CAZAMOR | C185: 4 | D185: 2 | E185: 2.8
A186: Febrero | B186: CAZAMOR | C186: 5 | D186: 1 | E186: 3.3
A187: Febrero | B187: CAZAMOR | C187: 6 | D187: 1 | E187: 1.3
A188: Febrero | B188: CAZAMOR | C188: 7 | D188: 4 | E188: 2.8
A189: Febrero | B189: CAZAMOR | C189: 8 | D189: 2 | E189: 3.7
A190: Febrero | B190: CAZAMOR | C190: 9 | D190: 4 | E190: 2.9
A191: Febrero | B191: CAZAMOR | C191: 10 | D191: 2 | E191: 2.4
A192: Febrero | B192: CAZAMOR | C192: 11 | D192: 3 | E192: 2.6
A193: Febrero | B193: CAZAMOR | C193: 12 | D193: 4 | E193: 2.1
A194: Febrero | B194: CAZAMOR | C194: 13 | D194: 3 | E194: 4
A195: Febrero | B195: CAZAMOR | C195: 14 | D195: 2 | E195: 3.1
A196: Febrero | B196: CAZAMOR | C196: 15 | D196: 4 | E196: 1.4
A197: Febrero | B197: CAZAMOR | C197: 16 | D197: 4 | E197: 3.5
A198: Febrero | B198: CAZAMOR | C198: 17 | D198: 4 | E198: 2.7
A199: Febrero | B199: CAZAMOR | C199: 18 | D199: 2 | E199: 3
A200: Febrero | B200: CAZAMOR | C200: 19 | D200: 3 | E200: 2.6
A201: Febrero | B201: CAZAMOR | C201: 20 | D201: 4 | E201: 2.1
A202: Febrero | B202: CAZAMOR | C202: 21 | D202: 4 | E202: 3.5
A203: Febrero | B203: CAZAMOR | C203: 22 | D203: 2 | E203: 1.7
A204: Febrero | B204: CAZAMOR | C204: 23 | D204: =RANDBETWEEN(0,4) -> 2 | E204: 3.8
A205: Febrero | B205: CAZAMOR | C205: 24 | D205: 1 | E205: 2
A206: Febrero | B206: CAZAMOR | C206: 25 | D206: 1 | E206: 1
A207: Febrero | B207: CAZAMOR | C207: 26 | D207: 3 | E207: 3.2
A208: Febrero | B208: CAZAMOR | C208: 27 | D208: 4 | E208: 2.2
A209: Febrero | B209: CAZAMOR | C209: 28 | D209: 1 | E209: 1.8
A210: Febrero | B210: CAZAMOR | C210: 29 | D210: 3 | E210: 1.7
A211: Febrero | B211: CAZAMOR | C211: 30 | D211: 3 | E211: 3.1
A212: Febrero | B212: CAZAMOR | C212: 31 | D212: 3 | E212: 4
A213: Febrero | B213: LALARU | C213: 1 | D213: =RANDBETWEEN(0,4) -> 3 | E213: 1.5
A214: Febrero | B214: LALARU | C214: 2 | D214: 1 | E214: 2.4
A215: Febrero | B215: LALARU | C215: 3 | D215: 3 | E215: 3.1
A216: Febrero | B216: LALARU | C216: 4 | D216: 1 | E216: 1.8
A217: Febrero | B217: LALARU | C217: 5 | D217: 4 | E217: 4
A218: Febrero | B218: LALARU | C218: 6 | D218: 2 | E218: 2.1
A219: Febrero | B219: LALARU | C219: 7 | D219: 3 | E219: 3.2
A220: Febrero | B220: LALARU | C220: 8 | D220: 4 | E220: 3.9
A221: Febrero | B221: LALARU | C221: 9 | D221: 4 | E221: 3.7
... 208 more rows

Sheet Hoja7 (hidden)
B34: Suma de TC | C34: Etiquetas de columna
C35: Marzo | D35: Total Marzo | E35: Total general
B36: Etiquetas de fila | C36: CAZAMOR
B37: 1 | C37: 0 | D37: 0 | E37: 0
B38: 2 | C38: 3 | D38: 3 | E38: 3
B39: 3 | C39: 2 | D39: 2 | E39: 2
B40: 4 | C40: 3 | D40: 3 | E40: 3
B41: 5 | C41: 4 | D41: 4 | E41: 4
B42: 6 | C42: 2 | D42: 2 | E42: 2
B43: 7 | C43: 0 | D43: 0 | E43: 0
B44: 8 | C44: 4 | D44: 4 | E44: 4
B45: 9 | C45: 2 | D45: 2 | E45: 2
B46: 10 | C46: 1 | D46: 1 | E46: 1
B47: 11 | C47: 2 | D47: 2 | E47: 2
B48: 12 | C48: 1 | D48: 1 | E48: 1
B49: 13 | C49: 0 | D49: 0 | E49: 0
B50: 14 | C50: 3 | D50: 3 | E50: 3
B51: 15 | C51: 3 | D51: 3 | E51: 3
B52: 16 | C52: 0 | D52: 0 | E52: 0
B53: 17 | C53: 3 | D53: 3 | E53: 3
B54: 18 | C54: 1 | D54: 1 | E54: 1
B55: 19 | C55: 0 | D55: 0 | E55: 0
B56: 20 | C56: 0 | D56: 0 | E56: 0
B57: 21 | C57: 2 | D57: 2 | E57: 2
B58: 22 | C58: 0 | D58: 0 | E58: 0
B59: 23 | C59: 1 | D59: 1 | E59: 1
B60: 24 | C60: 1 | D60: 1 | E60: 1
B61: 25 | C61: 0 | D61: 0 | E61: 0
B62: 26 | C62: 0 | D62: 0 | E62: 0
B63: 27 | C63: 1 | D63: 1 | E63: 1
B64: 28 | C64: 2 | D64: 2 | E64: 2
B65: 29 | C65: 1 | D65: 1 | E65: 1
B66: 30 | C66: 4 | D66: 4 | E66: 4
B67: 31 | C67: 3 | D67: 3 | E67: 3
B68: Total general | C68: 49 | D68: 49 | E68: 49

Sheet F02 (hidden)
A1: ▪ Ventas Netas Cred. Consumo | B1: VENTAS DIARIAS REALES | AB1: ▪ Ventas Netas Tarjetas de Crédito (TC) | AC1: VENTAS DIARIAS REALES | BB1: ▪ N° Cuentas Corrientes Aperturadas | BC1: VENTAS DIARIAS REALES
B2: 2013 | N2: 2014 | AC2: 2013 | AO2: 2014 | BC2: 2013 | BO2: 2014
B3: 1 | C3: 2 | D3: 3 | E3: 4 | F3: 5 | G3: 6 | H3: 7 | I3: 8 | J3: 9 | K3: 10 | L3: 11 | M3: 12 | N3: 1 | O3: 2 | P3: 3 | Q3: 4 | R3: 5 | S3: 6 | T3: 7 | U3: 8 | V3: 9 | W3: 10 | X3: 11 | Y3: 12 | AC3: 1 | AD3: 2 | AE3: 3 | AF3: 4 | AG3: 5 | AH3: 6 | AI3: 7 | AJ3: 8 | AK3: 9 | AL3: 10 | AM3: 11 | AN3: 12 | AO3: 1 | AP3: 2 | AQ3: 3 | AR3: 4 | AS3: 5 | AT3: 6 | AU3: 7 | AV3: 8 | AW3: 9 | AX3: 10 | AY3: 11 | AZ3: 12 | BC3: 1 | BD3: 2 | BE3: 3 | BF3: 4 | BG3: 5 | BH3: 6 | BI3: 7 | BJ3: 8 | BK3: 9 | BL3: 10 | BM3: 11 | BN3: 12 | BO3: 1 | BP3: 2 | BQ3: 3 | BR3: 4 | BS3: 5 | BT3: 6 | BU3: 7 | BV3: 8 | BW3: 9 | BX3: 10 | BY3: 11 | BZ3: 12
B4: Enero | C4: Febrero | D4: Marzo | E4: Abril | F4: Mayo | G4: Junio | H4: Julio | I4: Agosto | J4: Septiembre | K4: Octubre | L4: Noviembre | M4: Diciembre | N4: Enero | O4: Febrero | P4: Marzo | Q4: Abril | R4: Mayo | S4: Junio | T4: Julio | U4: Agosto | V4: Septiembre | W4: Octubre | X4: Noviembre | Y4: Diciembre | AC4: Enero | AD4: Febrero | AE4: Marzo | AF4: Abril | AG4: Mayo | AH4: Junio | AI4: Julio | AJ4: Agosto | AK4: Septiembre | AL4: Octubre | AM4: Noviembre | AN4: Diciembre | AO4: Enero | AP4: Febrero | AQ4: Marzo | AR4: Abril | AS4: Mayo | AT4: Junio | AU4: Julio | AV4: Agosto | AW4: Septiembre | AX4: Octubre | AY4: Noviembre | AZ4: Diciembre | BC4: Enero | BD4: Febrero | BE4: Marzo | BF4: Abril | BG4: Mayo | BH4: Junio | BI4: Julio | BJ4: Agosto | BK4: Septiembre | BL4: Octubre | BM4: Noviembre | BN4: Diciembre | BO4: Enero | BP4: Febrero | BQ4: Marzo | BR4: Abril | BS4: Mayo | BT4: Junio | BU4: Julio | BV4: Agosto | BW4: Septiembre | BX4: Octubre | BY4: Noviembre | BZ4: Diciembre
B5: =+"2013"&B4 -> 2013Enero | C5: 2013Febrero | D5: 2013Marzo | E5: 2013Abril | F5: 2013Mayo | G5: 2013Junio | H5: 2013Julio | I5: 2013Agosto | J5: 2013Septiembre | K5: 2013Octubre | L5: 2013Noviembre | M5: 2013Diciembre | N5: =+"2014"&N4 -> 2014Enero | O5: 2014Febrero | P5: 2014Marzo | Q5: 2014Abril | R5: 2014Mayo | S5: 2014Junio | T5: 2014Julio | U5: 2014Agosto | V5: 2014Septiembre | W5: 2014Octubre | X5: 2014Noviembre | Y5: 2014Diciembre | AC5: =+"2013"&AC4 -> 2013Enero | AD5: 2013Febrero | AE5: 2013Marzo | AF5: 2013Abril | AG5: 2013Mayo | AH5: 2013Junio | AI5: 2013Julio | AJ5: 2013Agosto | AK5: 2013Septiembre | AL5: 2013Octubre | AM5: 2013Noviembre | AN5: 2013Diciembre | AO5: =+"2014"&AO4 -> 2014Enero | AP5: 2014Febrero | AQ5: 2014Marzo | AR5: 2014Abril | AS5: 2014Mayo | AT5: 2014Junio | AU5: 2014Julio | AV5: 2014Agosto | AW5: 2014Septiembre | AX5: 2014Octubre | AY5: 2014Noviembre | AZ5: 2014Diciembre | BC5: =+"2013"&BC4 -> 2013Enero | BD5: 2013Febrero | BE5: 2013Marzo | BF5: 2013Abril | BG5: 2013Mayo | BH5: 2013Junio | BI5: 2013Julio | BJ5: 2013Agosto | BK5: 2013Septiembre | BL5: 2013Octubre | BM5: 2013Noviembre | BN5: 2013Diciembre | BO5: =+"2014"&BO4 -> 2014Enero | BP5: 2014Febrero | BQ5: 2014Marzo | BR5: 2014Abril | BS5: 2014Mayo | BT5: 2014Junio | BU5: 2014Julio | BV5: 2014Agosto | BW5: 2014Septiembre | BX5: 2014Octubre | BY5: 2014Noviembre | BZ5: 2014Diciembre
A6: 1 | B6: =RANDBETWEEN(10,180)/100 -> 0.64 | C6: =RANDBETWEEN(10,180)/100 -> 1.63 | D6: 0.28 | E6: 1.53 | F6: 0.91 | G6: 1.7 | H6: 1.39 | I6: 0.2 | J6: 1.13 | K6: 0.79 | L6: 1.41 | M6: 0.58 | N6: =RANDBETWEEN(10,180)/100 -> 1.78 | O6: 0.74 | P6: 0.13 | Q6: 1.12 | R6: 0.94 | S6: 0.71 | T6: 0.69 | U6: 1.25 | V6: 0.75 | W6: 0.77 | X6: 0.9 | Y6: 0.24 | AB6: 1 | AC6: =ROUND(RANDBETWEEN(10,180)/100,0) -> 0 | AD6: =ROUND(RANDBETWEEN(10,180)/100,0) -> 2 | AE6: 2 | AF6: =ROUND(RANDBETWEEN(10,200)/100,0) -> 1 | AG6: 1 | AH6: 1 | AI6: 1 | AJ6: 1 | AK6: 0 | AL6: 1 | AM6: 1 | AN6: 1 | AO6: =ROUND(RANDBETWEEN(10,180)/100,0) -> 0 | AP6: 1 | AQ6: 1 | AR6: =ROUND(RANDBETWEEN(10,200)/100,0) -> 1 | AS6: 2 | AT6: 0 | AU6: 1 | AV6: 1 | AW6: 1 | AX6: 1 | AY6: 1 | AZ6: 1 | BB6: 1 | BC6: =RANDBETWEEN(1,2) -> 2 | BD6: =RANDBETWEEN(1,2) -> 2 | BE6: 1 | BF6: 2 | BG6: 2 | BH6: 1 | BI6: 1 | BJ6: 1 | BK6: 2 | BL6: 2 | BM6: 1 | BN6: 2 | BO6: =RANDBETWEEN(1,2) -> 1 | BP6: 1 | BQ6: 2 | BR6: 1 | BS6: 1 | BT6: 1 | BU6: 1 | BV6: 1 | BW6: 2 | BX6: 2 | BY6: 2 | BZ6: =RANDBETWEEN(1,2) -> 2
A7: 2 | B7: =RANDBETWEEN(10,180)/100 -> 1.71 | C7: 0.82 | D7: 1.22 | E7: 0.74 | F7: 0.7 | G7: 1.56 | H7: 0.95 | I7: 1.35 | J7: 1.58 | K7: 1.57 | L7: 0.74 | M7: 1.38 | N7: =RANDBETWEEN(10,180)/100 -> 1.54 | O7: 0.34 | P7: 1.78 | Q7: 1.09 | R7: 1.77 | S7: 1.51 | T7: 0.72 | U7: 0.78 | V7: 1.66 | W7: 1.8 | X7: 0.9 | Y7: 0.58 | AB7: 2 | AC7: =ROUND(RANDBETWEEN(10,180)/100,0) -> 1 | AD7: 2 | AE7: 0 | AF7: =ROUND(RANDBETWEEN(10,200)/100,0) -> 0 | AG7: 0 | AH7: 2 | AI7: 1 | AJ7: 1 | AK7: 1 | AL7: 0 | AM7: 1 | AN7: 1 | AO7: =ROUND(RANDBETWEEN(10,180)/100,0) -> 0 | AP7: 1 | AQ7: 1 | AR7: =ROUND(RANDBETWEEN(10,200)/100,0) -> 1 | AS7: 1 | AT7: 2 | AU7: 1 | AV7: 1 | AW7: 1 | AX7: 1 | AY7: 1 | AZ7: 1 | BB7: 2 | BC7: =RANDBETWEEN(1,2) -> 2 | BD7: =RANDBETWEEN(1,2) -> 1 | BE7: 1 | BF7: 2 | BG7: 1 | BH7: 2 | BI7: 1 | BJ7: 2 | BK7: 1 | BL7: 1 | BM7: 1 | BN7: 1 | BO7: =RANDBETWEEN(1,2) -> 1 | BP7: 1 | BQ7: 1 | BR7: 1 | BS7: 1 | BT7: 2 | BU7: 2 | BV7: 2 | BW7: 2 | BX7: 1 | BY7: 2 | BZ7: =RANDBETWEEN(1,2) -> 2
A8: 3 | B8: 0.83 | C8: 0.68 | D8: 0.3 | E8: 0.29 | F8: 1.48 | G8: 1.16 | H8: 1.35 | I8: 0.11 | J8: 1.1 | K8: 1.13 | L8: 1.64 | M8: 0.67 | N8: 1.15 | O8: 0.94 | P8: 0.98 | Q8: 1.52 | R8: 0.4 | S8: 1.02 | T8: 1.11 | U8: 0.77 | V8: 0.13 | W8: 1.34 | X8: 1.46 | Y8: 1.32 | AB8: 3 | AC8: 2 | AD8: 0 | AE8: 2 | AF8: 1 | AG8: 0 | AH8: 1 | AI8: 0 | AJ8: 1 | AK8: 1 | AL8: 1 | AM8: 0 | AN8: 1 | AO8: 1 | AP8: 2 | AQ8: 1 | AR8: 1 | AS8: 1 | AT8: 2 | AU8: 1 | AV8: 2 | AW8: 1 | AX8: 1 | AY8: 1 | AZ8: 1 | BB8: 3 | BC8: 1 | BD8: 2 | BE8: 2 | BF8: 1 | BG8: 2 | BH8: 2 | BI8: 1 | BJ8: 2 | BK8: 2 | BL8: 1 | BM8: 2 | BN8: 2 | BO8: 1 | BP8: 1 | BQ8: 1 | BR8: 1 | BS8: 2 | BT8: 2 | BU8: 1 | BV8: 1 | BW8: 1 | BX8: 1 | BY8: 1 | BZ8: 2
A9: 4 | B9: 1.58 | C9: 1.09 | D9: 1.13 | E9: 0.62 | F9: 0.98 | G9: 0.89 | H9: 1.77 | I9: 1.45 | J9: 0.76 | K9: 0.62 | L9: 0.29 | M9: 0.25 | N9: 1.12 | O9: 1.07 | P9: 0.75 | Q9: 1.61 | R9: 0.55 | S9: 1.55 | T9: 0.26 | U9: 0.83 | V9: 1.53 | W9: 1.68 | X9: 0.93 | Y9: 0.35 | AB9: 4 | AC9: 2 | AD9: 1 | AE9: 0 | AF9: 2 | AG9: 1 | AH9: 1 | AI9: 0 | AJ9: 1 | AK9: 1 | AL9: 2 | AM9: 2 | AN9: 1 | AO9: 0 | AP9: 1 | AQ9: 1 | AR9: 1 | AS9: 1 | AT9: 0 | AU9: 1 | AV9: 1 | AW9: 1 | AX9: 2 | AY9: 0 | AZ9: 1 | BB9: 4 | BC9: 2 | BD9: 1 | BE9: 1 | BF9: 1 | BG9: 2 | BH9: 1 | BI9: 1 | BJ9: 1 | BK9: 2 | BL9: 1 | BM9: 2 | BN9: 2 | BO9: 2 | BP9: 1 | BQ9: 1 | BR9: 1 | BS9: 1 | BT9: 2 | BU9: 1 | BV9: 2 | BW9: 1 | BX9: 1 | BY9: 2 | BZ9: 2
A10: 5 | B10: 1.78 | C10: 1.68 | D10: 0.62 | E10: 1.8 | F10: 0.74 | G10: 1.66 | H10: 1.47 | I10: 0.6 | J10: 1.49 | K10: 1.01 | L10: 0.72 | M10: 1.75 | N10: 1.58 | O10: 1.27 | P10: 1.64 | Q10: 0.79 | R10: 0.46 | S10: 0.88 | T10: 1.49 | U10: 0.11 | V10: 1.65 | W10: 0.15 | X10: 1.43 | Y10: 0.84 | AB10: 5 | AC10: 0 | AD10: 1 | AE10: 1 | AF10: 2 | AG10: 1 | AH10: 2 | AI10: 1 | AJ10: 0 | AK10: 1 | AL10: 0 | AM10: 0 | AN10: 1 | AO10: 0 | AP10: 1 | AQ10: 1 | AR10: 0 | AS10: 2 | AT10: 1 | AU10: 1 | AV10: 1 | AW10: 1 | AX10: 2 | AY10: 0 | AZ10: 1 | BB10: 5 | BC10: 2 | BD10: 2 | BE10: 2 | BF10: 1 | BG10: 1 | BH10: 2 | BI10: 1 | BJ10: 1 | BK10: 2 | BL10: 1 | BM10: 1 | BN10: 2 | BO10: 2 | BP10: 1 | BQ10: 1 | BR10: 2 | BS10: 2 | BT10: 1 | BU10: 2 | BV10: 2 | BW10: 2 | BX10: 1 | BY10: 1 | BZ10: 1
A11: 6 | B11: 0.63 | C11: 1.01 | D11: 1.74 | E11: 0.72 | F11: 1.05 | G11: 0.48 | H11: 1.29 | I11: 0.47 | J11: 0.1 | K11: 0.88 | L11: 0.72 | M11: 1.02 | N11: 1.72 | O11: 0.16 | P11: 0.88 | Q11: 1.78 | R11: 0.15 | S11: 0.16 | T11: 0.63 | U11: 0.3 | V11: 1 | W11: 1.6 | X11: 1.6 | Y11: 1.69 | AB11: 6 | AC11: 1 | AD11: 0 | AE11: 1 | AF11: 1 | AG11: 1 | AH11: 0 | AI11: 1 | AJ11: 2 | AK11: 1 | AL11: 1 | AM11: 0 | AN11: 0 | AO11: 0 | AP11: 0 | AQ11: 0 | AR11: 1 | AS11: 1 | AT11: 0 | AU11: 0 | AV11: 1 | AW11: 1 | AX11: 1 | AY11: 1 | AZ11: 1 | BB11: 6 | BC11: 2 | BD11: 1 | BE11: 2 | BF11: 1 | BG11: 1 | BH11: 1 | BI11: 2 | BJ11: 2 | BK11: 1 | BL11: 2 | BM11: 1 | BN11: 1 | BO11: 2 | BP11: 2 | BQ11: 2 | BR11: 2 | BS11: 2 | BT11: 2 | BU11: 2 | BV11: 2 | BW11: 2 | BX11: 2 | BY11: 1 | BZ11: 2
A12: 7 | B12: 1.52 | C12: 0.83 | D12: 1.46 | E12: 0.96 | F12: 0.77 | G12: 0.88 | H12: 0.53 | I12: 0.7 | J12: 0.92 | K12: 1.02 | L12: 1.52 | M12: 0.32 | N12: 0.58 | O12: 1.54 | P12: 1.29 | Q12: 0.19 | R12: 1.71 | S12: 1.5 | T12: 1.03 | U12: 1.66 | V12: 0.42 | W12: 1.42 | X12: 1.03 | Y12: 1.05 | AB12: 7 | AC12: 0 | AD12: 0 | AE12: 2 | AF12: 2 | AG12: 0 | AH12: 1 | AI12: 2 | AJ12: 1 | AK12: 0 | AL12: 1 | AM12: 1 | AN12: 0 | AO12: 1 | AP12: 2 | AQ12: 1 | AR12: 2 | AS12: 1 | AT12: 0 | AU12: 0 | AV12: 1 | AW12: 2 | AX12: 2 | AY12: 1 | AZ12: 1 | BB12: 7 | BC12: 2 | BD12: 2 | BE12: 1 | BF12: 1 | BG12: 1 | BH12: 1 | BI12: 1 | BJ12: 2 | BK12: 1 | BL12: 2 | BM12: 2 | BN12: 1 | BO12: 2 | BP12: 1 | BQ12: 1 | BR12: 1 | BS12: 1 | BT12: 1 | BU12: 1 | BV12: 2 | BW12: 2 | BX12: 2 | BY12: 2 | BZ12: 2
A13: 8 | B13: 1.39 | C13: 0.28 | D13: 0.38 | E13: 0.59 | F13: 1.06 | G13: 1.77 | H13: 0.59 | I13: 0.43 | J13: 0.41 | K13: 1.34 | L13: 1.53 | M13: 0.86 | N13: 1.42 | O13: 0.82 | P13: 1.14 | Q13: 0.12 | R13: 1.78 | S13: 1.19 | T13: 1.62 | U13: 1.59 | V13: 0.61 | W13: 0.67 | X13: 1.62 | Y13: 1.02 | AB13: 8 | AC13: 1 | AD13: 1 | AE13: 0 | AF13: 2 | AG13: 1 | AH13: 0 | AI13: 1 | AJ13: 1 | AK13: 1 | AL13: 0 | AM13: 0 | AN13: 1 | AO13: 1 | AP13: 1 | AQ13: 0 | AR13: 1 | AS13: 0 | AT13: 1 | AU13: 2 | AV13: 1 | AW13: 1 | AX13: 0 | AY13: 1 | AZ13: 1 | BB13: 8 | BC13: 1 | BD13: 1 | BE13: 2 | BF13: 1 | BG13: 1 | BH13: 1 | BI13: 1 | BJ13: 1 | BK13: 2 | BL13: 1 | BM13: 2 | BN13: 1 | BO13: 2 | BP13: 2 | BQ13: 1 | BR13: 1 | BS13: 2 | BT13: 1 | BU13: 2 | BV13: 1 | BW13: 2 | BX13: 2 | BY13: 1 | BZ13: 1
A14: 9 | B14: 1.72 | C14: 0.26 | D14: 0.81 | E14: 1.56 | F14: 0.3 | G14: 0.28 | H14: 0.18 | I14: 0.41 | J14: 1.47 | K14: 0.75 | L14: 1.45 | M14: 1.41 | N14: 1.1 | O14: 1.13 | P14: 1.52 | Q14: 1.2 | R14: 1.07 | S14: 0.18 | T14: 1.05 | U14: 1.21 | V14: 1.28 | W14: 0.2 | X14: 1.55 | Y14: 0.44 | AB14: 9 | AC14: 0 | AD14: 0 | AE14: 1 | AF14: 0 | AG14: 1 | AH14: 2 | AI14: 1 | AJ14: 2 | AK14: 0 | AL14: 1 | AM14: 2 | AN14: 1 | AO14: 0 | AP14: 1 | AQ14: 2 | AR14: 1 | AS14: 0 | AT14: 1 | AU14: 2 | AV14: 2 | AW14: 1 | AX14: 1 | AY14: 0 | AZ14: 1 | BB14: 9 | BC14: 1 | BD14: 1 | BE14: 1 | BF14: 2 | BG14: 1 | BH14: 1 | BI14: 1 | BJ14: 2 | BK14: 2 | BL14: 1 | BM14: 2 | BN14: 2 | BO14: 2 | BP14: 2 | BQ14: 2 | BR14: 1 | BS14: 2 | BT14: 2 | BU14: 2 | BV14: 2 | BW14: 2 | BX14: 1 | BY14: 1 | BZ14: 2
A15: 10 | B15: 0.19 | C15: 1.13 | D15: 1.03 | E15: 1.6 | F15: 0.89 | G15: 0.1 | H15: 1.76 | I15: 1.48 | J15: 0.62 | K15: 0.19 | L15: 0.76 | M15: 0.21 | N15: 0.14 | O15: 0.75 | P15: 1.04 | Q15: 1.3 | R15: 1.73 | S15: 0.49 | T15: 0.4 | U15: 1.04 | V15: 0.13 | W15: 0.65 | X15: 0.39 | Y15: 1.07 | AB15: 10 | AC15: 2 | AD15: 0 | AE15: 2 | AF15: 2 | AG15: 1 | AH15: 2 | AI15: 1 | AJ15: 1 | AK15: 0 | AL15: 2 | AM15: 1 | AN15: 2 | AO15: 2 | AP15: 1 | AQ15: 1 | AR15: 1 | AS15: 1 | AT15: 2 | AU15: 1 | AV15: 2 | AW15: 1 | AX15: 1 | AY15: 1 | AZ15: 1 | BB15: 10 | BC15: 2 | BD15: 2 | BE15: 2 | BF15: 2 | BG15: 2 | BH15: 2 | BI15: 1 | BJ15: 2 | BK15: 1 | BL15: 2 | BM15: 1 | BN15: 2 | BO15: 1 | BP15: 1 | BQ15: 1 | BR15: 2 | BS15: 1 | BT15: 2 | BU15: 2 | BV15: 1 | BW15: 1 | BX15: 2 | BY15: 2 | BZ15: 1
A16: 11 | B16: 1.32 | C16: 1.56 | D16: 1.71 | E16: 1.71 | F16: 1.01 | G16: 1.15 | H16: 1.71 | I16: 1.74 | J16: 0.32 | K16: 0.49 | L16: 1.31 | M16: 1.39 | N16: 0.92 | O16: 0.28 | P16: 1.67 | Q16: 1.52 | R16: 1.01 | S16: 1.21 | T16: 0.68 | U16: 1.26 | V16: 0.75 | W16: 0.12 | X16: 0.23 | Y16: 1.4 | AB16: 11 | AC16: 1 | AD16: 0 | AE16: 1 | AF16: 2 | AG16: 0 | AH16: 1 | AI16: 1 | AJ16: 1 | AK16: 0 | AL16: 0 | AM16: 1 | AN16: 2 | AO16: 1 | AP16: 0 | AQ16: 1 | AR16: 2 | AS16: 1 | AT16: 2 | AU16: 2 | AV16: 1 | AW16: 1 | AX16: 1 | AY16: 1 | AZ16: 1 | BB16: 11 | BC16: 1 | BD16: 1 | BE16: 1 | BF16: 1 | BG16: 1 | BH16: 2 | BI16: 2 | BJ16: 1 | BK16: 1 | BL16: 1 | BM16: 1 | BN16: 2 | BO16: 1 | BP16: 1 | BQ16: 1 | BR16: 2 | BS16: 1 | BT16: 1 | BU16: 2 | BV16: 2 | BW16: 2 | BX16: 2 | BY16: 1 | BZ16: 2
A17: 12 | B17: 0.32 | C17: 1.38 | D17: 1.06 | E17: 1.58 | F17: 1.58 | G17: 0.93 | H17: 0.11 | I17: 1.54 | J17: 1.66 | K17: 0.37 | L17: 1.43 | M17: 0.76 | N17: 0.23 | O17: 1.04 | P17: 1.31 | Q17: 1.06 | R17: 1.55 | S17: 1.24 | T17: 0.44 | U17: 0.22 | V17: 1.03 | W17: 0.22 | X17: 1.5 | Y17: 1.43 | AB17: 12 | AC17: 2 | AD17: 1 | AE17: 1 | AF17: 2 | AG17: 1 | AH17: 2 | AI17: 0 | AJ17: 1 | AK17: 1 | AL17: 1 | AM17: 1 | AN17: 0 | AO17: 2 | AP17: 1 | AQ17: 1 | AR17: 1 | AS17: 1 | AT17: 1 | AU17: 1 | AV17: 2 | AW17: 0 | AX17: 2 | AY17: 1 | AZ17: 1 | BB17: 12 | BC17: 2 | BD17: 2 | BE17: 1 | BF17: 1 | BG17: 1 | BH17: 1 | BI17: 1 | BJ17: 1 | BK17: 2 | BL17: 1 | BM17: 2 | BN17: 2 | BO17: 1 | BP17: 1 | BQ17: 1 | BR17: 2 | BS17: 2 | BT17: 2 | BU17: 2 | BV17: 1 | BW17: 2 | BX17: 1 | BY17: 2 | BZ17: 1
A18: 13 | B18: 1.63 | C18: 1.33 | D18: 1.25 | E18: 0.45 | F18: 0.95 | G18: 1.33 | H18: 1.25 | I18: 0.59 | J18: 0.57 | K18: 1.34 | L18: 1.28 | M18: 0.24 | N18: 0.36 | O18: 1.63 | P18: 1.59 | Q18: 0.18 | R18: 0.71 | S18: 0.27 | T18: 0.48 | U18: 1.71 | V18: 0.83 | W18: 0.63 | X18: 1.07 | Y18: 1.08 | AB18: 13 | AC18: 1 | AD18: 1 | AE18: 2 | AF18: 1 | AG18: 0 | AH18: 1 | AI18: 1 | AJ18: 1 | AK18: 1 | AL18: 1 | AM18: 1 | AN18: 0 | AO18: 1 | AP18: 1 | AQ18: 0 | AR18: 0 | AS18: 1 | AT18: 1 | AU18: 1 | AV18: 0 | AW18: 2 | AX18: 1 | AY18: 2 | AZ18: 1 | BB18: 13 | BC18: 2 | BD18: 2 | BE18: 1 | BF18: 2 | BG18: 1 | BH18: 1 | BI18: 1 | BJ18: 1 | BK18: 2 | BL18: 2 | BM18: 1 | BN18: 1 | BO18: 2 | BP18: 1 | BQ18: 2 | BR18: 1 | BS18: 1 | BT18: 2 | BU18: 1 | BV18: 2 | BW18: 2 | BX18: 2 | BY18: 1 | BZ18: 2
A19: 14 | B19: 0.6 | C19: 1.23 | D19: 0.27 | E19: 1.24 | F19: 1.41 | G19: 0.63 | H19: 0.52 | I19: 1.57 | J19: 1.16 | K19: 0.78 | L19: 0.54 | M19: 1.17 | N19: 1.77 | O19: 0.4 | P19: 1.64 | Q19: 1.25 | R19: 1.18 | S19: 0.48 | T19: 0.93 | U19: 0.5 | V19: 1.07 | W19: 1.5 | X19: 1.69 | Y19: 0.39 | AB19: 14 | AC19: 0 | AD19: 1 | AE19: 1 | AF19: 0 | AG19: 1 | AH19: 1 | AI19: 0 | AJ19: 0 | AK19: 1 | AL19: 1 | AM19: 1 | AN19: 1 | AO19: 1 | AP19: 0 | AQ19: 0 | AR19: 2 | AS19: 1 | AT19: 1 | AU19: 1 | AV19: 0 | AW19: 1 | AX19: 1 | AY19: 1 | AZ19: 1 | BB19: 14 | BC19: 1 | BD19: 1 | BE19: 1 | BF19: 1 | BG19: 1 | BH19: 1 | BI19: 2 | BJ19: 1 | BK19: 1 | BL19: 1 | BM19: 2 | BN19: 1 | BO19: 2 | BP19: 1 | BQ19: 1 | BR19: 1 | BS19: 2 | BT19: 2 | BU19: 1 | BV19: 2 | BW19: 1 | BX19: 1 | BY19: 2 | BZ19: 1
A20: 15 | B20: 1.38 | C20: 1.73 | D20: 1.19 | E20: 1.04 | F20: 1.23 | G20: 1.37 | H20: 0.23 | I20: 0.34 | J20: 1.2 | K20: 0.47 | L20: 1.64 | M20: 0.26 | N20: 0.14 | O20: 1.03 | P20: 0.53 | Q20: 1.55 | R20: 0.67 | S20: 1.61 | T20: 1.75 | U20: 0.56 | V20: 1.56 | W20: 0.66 | X20: 0.45 | Y20: 1.11 | AB20: 15 | AC20: 0 | AD20: 1 | AE20: 2 | AF20: 2 | AG20: 1 | AH20: 1 | AI20: 0 | AJ20: 2 | AK20: 1 | AL20: 1 | AM20: 1 | AN20: 1 | AO20: 0 | AP20: 1 | AQ20: 2 | AR20: 2 | AS20: 2 | AT20: 0 | AU20: 1 | AV20: 0 | AW20: 1 | AX20: 1 | AY20: 1 | AZ20: 1 | BB20: 15 | BC20: 1 | BD20: 2 | BE20: 1 | BF20: 2 | BG20: 1 | BH20: 1 | BI20: 1 | BJ20: 1 | BK20: 2 | BL20: 2 | BM20: 1 | BN20: 2 | BO20: 2 | BP20: 1 | BQ20: 2 | BR20: 1 | BS20: 2 | BT20: 2 | BU20: 1 | BV20: 2 | BW20: 1 | BX20: 2 | BY20: 2 | BZ20: 1
A21: 16 | B21: 0.68 | C21: 0.53 | D21: 0.37 | E21: 0.14 | F21: 0.39 | G21: 1.23 | H21: 1.73 | I21: 0.53 | J21: 1.25 | K21: 1.3 | L21: 0.3 | M21: 0.47 | N21: 1.68 | O21: 1.77 | P21: 1.38 | Q21: 1.74 | R21: 1.23 | S21: 1.26 | T21: 0.63 | U21: 1.21 | V21: 0.19 | W21: 0.1 | X21: 0.2 | Y21: 1.16 | AB21: 16 | AC21: 2 | AD21: 2 | AE21: 1 | AF21: 2 | AG21: 0 | AH21: 1 | AI21: 1 | AJ21: 2 | AK21: 2 | AL21: 0 | AM21: 1 | AN21: 2 | AO21: 0 | AP21: 1 | AQ21: 2 | AR21: 0 | AS21: 1 | AT21: 1 | AU21: 1 | AV21: 1 | AW21: 1 | AX21: 1 | AY21: 1 | AZ21: 1 | BB21: 16 | BC21: 2 | BD21: 2 | BE21: 2 | BF21: 1 | BG21: 2 | BH21: 1 | BI21: 1 | BJ21: 2 | BK21: 1 | BL21: 1 | BM21: 2 | BN21: 2 | BO21: 2 | BP21: 1 | BQ21: 2 | BR21: 1 | BS21: 1 | BT21: 2 | BU21: 1 | BV21: 2 | BW21: 1 | BX21: 2 | BY21: 1 | BZ21: 1
A22: 17 | B22: 0.1 | C22: 0.37 | D22: 1.15 | E22: 0.7 | F22: 1.51 | G22: 1.06 | H22: 0.6 | I22: 1.71 | J22: 1.16 | K22: 0.62 | L22: 0.93 | M22: 0.28 | N22: 0.99 | O22: 0.25 | P22: 1.57 | Q22: 1.42 | R22: 0.86 | S22: 1.72 | T22: 1.13 | U22: 1.13 | V22: 0.63 | W22: 0.19 | X22: 0.31 | Y22: 1.2 | AB22: 17 | AC22: 1 | AD22: 0 | AE22: 0 | AF22: 1 | AG22: 1 | AH22: 1 | AI22: 2 | AJ22: 0 | AK22: 1 | AL22: 0 | AM22: 1 | AN22: 2 | AO22: 0 | AP22: 1 | AQ22: 1 | AR22: 1 | AS22: 1 | AT22: 2 | AU22: 1 | AV22: 1 | AW22: 1 | AX22: 0 | AY22: 1 | AZ22: 0 | BB22: 17 | BC22: 2 | BD22: 1 | BE22: 1 | BF22: 2 | BG22: 2 | BH22: 2 | BI22: 1 | BJ22: 2 | BK22: 2 | BL22: 2 | BM22: 2 | BN22: 1 | BO22: 1 | BP22: 2 | BQ22: 2 | BR22: 1 | BS22: 2 | BT22: 1 | BU22: 2 | BV22: 2 | BW22: 1 | BX22: 1 | BY22: 1 | BZ22: 2
A23: 18 | B23: 0.29 | C23: 0.29 | D23: 1.24 | E23: 0.72 | F23: 1.15 | G23: 0.16 | H23: 0.84 | I23: 1.01 | J23: 1.39 | K23: 1.42 | L23: 0.83 | M23: 1.33 | N23: 0.56 | O23: 0.67 | P23: 0.93 | Q23: 0.59 | R23: 0.19 | S23: 0.22 | T23: 0.6 | U23: 1.72 | V23: 0.94 | W23: 0.36 | X23: 0.95 | Y23: 1.46 | AB23: 18 | AC23: 1 | AD23: 1 | AE23: 2 | AF23: 1 | AG23: 1 | AH23: 1 | AI23: 2 | AJ23: 1 | AK23: 0 | AL23: 1 | AM23: 1 | AN23: 1 | AO23: 1 | AP23: 1 | AQ23: 0 | AR23: 1 | AS23: 1 | AT23: 1 | AU23: 1 | AV23: 1 | AW23: 1 | AX23: 1 | AY23: 0 | AZ23: 0 | BB23: 18 | BC23: 1 | BD23: 1 | BE23: 2 | BF23: 2 | BG23: 1 | BH23: 2 | BI23: 1 | BJ23: 1 | BK23: 2 | BL23: 1 | BM23: 2 | BN23: 1 | BO23: 2 | BP23: 2 | BQ23: 1 | BR23: 2 | BS23: 2 | BT23: 2 | BU23: 1 | BV23: 1 | BW23: 1 | BX23: 2 | BY23: 1 | BZ23: 1
A24: 19 | B24: 0.54 | C24: 0.94 | D24: 0.27 | E24: 1.66 | F24: 0.63 | G24: 1.25 | H24: 1.74 | I24: 1.57 | J24: 0.28 | K24: 0.46 | L24: 0.32 | M24: 1.06 | N24: 1.2 | O24: 1.04 | P24: 1.16 | Q24: 0.62 | R24: 1.74 | S24: 1.79 | T24: 1.46 | U24: 1.21 | V24: 0.37 | W24: 0.62 | X24: 0.11 | Y24: 1.72 | AB24: 19 | AC24: 0 | AD24: 0 | AE24: 2 | AF24: 1 | AG24: 1 | AH24: 2 | AI24: 1 | AJ24: 1 | AK24: 1 | AL24: 1 | AM24: 1 | AN24: 2 | AO24: 1 | AP24: 0 | AQ24: 0 | AR24: 1 | AS24: 2 | AT24: 1 | AU24: 1 | AV24: 0 | AW24: 0 | AX24: 1 | AY24: 1 | AZ24: 1 | BB24: 19 | BC24: 2 | BD24: 2 | BE24: 2 | BF24: 1 | BG24: 2 | BH24: 1 | BI24: 1 | BJ24: 2 | BK24: 1 | BL24: 1 | BM24: 2 | BN24: 1 | BO24: 1 | BP24: 1 | BQ24: 1 | BR24: 2 | BS24: 1 | BT24: 1 | BU24: 2 | BV24: 2 | BW24: 1 | BX24: 2 | BY24: 2 | BZ24: 1
A25: 20 | B25: 0.5 | C25: 1.38 | D25: 1.29 | E25: 0.3 | F25: 1.28 | G25: 1.15 | H25: 1.11 | I25: 0.57 | J25: 1 | K25: 1.22 | L25: 1.64 | M25: 1.53 | N25: 1.29 | O25: 0.72 | P25: 1.51 | Q25: 1.51 | R25: 1.4 | S25: 0.19 | T25: 1.02 | U25: 0.96 | V25: 1.12 | W25: 1.53 | X25: 0.81 | Y25: 0.29 | AB25: 20 | AC25: 1 | AD25: 1 | AE25: 1 | AF25: 0 | AG25: 1 | AH25: 1 | AI25: 1 | AJ25: 0 | AK25: 2 | AL25: 0 | AM25: 2 | AN25: 0 | AO25: 2 | AP25: 1 | AQ25: 0 | AR25: 1 | AS25: 0 | AT25: 1 | AU25: 1 | AV25: 0 | AW25: 0 | AX25: 0 | AY25: 1 | AZ25: 1 | BB25: 20 | BC25: 1 | BD25: 1 | BE25: 2 | BF25: 2 | BG25: 2 | BH25: 2 | BI25: 2 | BJ25: 2 | BK25: 2 | BL25: 1 | BM25: 1 | BN25: 1 | BO25: 2 | BP25: 1 | BQ25: 2 | BR25: 2 | BS25: 1 | BT25: 2 | BU25: 2 | BV25: 2 | BW25: 1 | BX25: 1 | BY25: 1 | BZ25: 2
A26: 21 | B26: 0.81 | C26: 1.77 | D26: 0.58 | E26: 1.45 | F26: 1.38 | G26: 0.81 | H26: 1 | I26: 1.13 | J26: 0.72 | K26: 1.04 | L26: 1.59 | M26: 0.61 | N26: 0.25 | O26: 1.64 | P26: 1.02 | Q26: 0.61 | R26: 0.23 | S26: 1.76 | T26: 0.79 | U26: 0.99 | V26: 0.4 | W26: 1.02 | X26: 1.41 | Y26: 0.92 | AB26: 21 | AC26: 2 | AD26: 1 | AE26: 1 | AF26: 2 | AG26: 1 | AH26: 0 | AI26: 2 | AJ26: 1 | AK26: 0 | AL26: 0 | AM26: 1 | AN26: 2 | AO26: 2 | AP26: 0 | AQ26: 1 | AR26: 0 | AS26: 1 | AT26: 2 | AU26: 1 | AV26: 1 | AW26: 2 | AX26: 0 | AY26: 2 | AZ26: 1 | BB26: 21 | BC26: 1 | BD26: 1 | BE26: 1 | BF26: 2 | BG26: 1 | BH26: 1 | BI26: 2 | BJ26: 1 | BK26: 2 | BL26: 1 | BM26: 2 | BN26: 1 | BO26: 2 | BP26: 1 | BQ26: 2 | BR26: 1 | BS26: 2 | BT26: 1 | BU26: 2 | BV26: 1 | BW26: 2 | BX26: 1 | BY26: 2 | BZ26: 2
A27: 22 | B27: 0.96 | C27: 0.24 | D27: 0.23 | E27: 0.9 | F27: 0.75 | G27: 1.79 | H27: =RANDBETWEEN(10,180)/100 -> 1.43 | I27: 0.78 | J27: 0.16 | K27: 1.57 | L27: 0.53 | M27: 0.54 | N27: 1.76 | O27: 0.28 | P27: 1.04 | Q27: 0.62 | R27: 1.37 | S27: 0.41 | T27: 0.52 | U27: 1.05 | V27: 1.59 | W27: 1.14 | X27: 1.33 | Y27: 0.67 | AB27: 22 | AC27: 1 | AD27: 1 | AE27: 2 | AF27: 1 | AG27: 0 | AH27: 1 | AI27: =ROUND(RANDBETWEEN(10,180)/100,0) -> 1 | AJ27: 1 | AK27: 1 | AL27: 1 | AM27: 0 | AN27: 2 | AO27: 1 | AP27: 1 | AQ27: 1 | AR27: 1 | AS27: 1 | AT27: 1 | AU27: 1 | AV27: 1 | AW27: 0 | AX27: 0 | AY27: 2 | AZ27: 1 | BB27: 22 | BC27: 2 | BD27: 1 | BE27: 1 | BF27: 2 | BG27: 2 | BH27: 1 | BI27: =RANDBETWEEN(1,2) -> 2 | BJ27: 2 | BK27: 2 | BL27: 2 | BM27: 2 | BN27: 2 | BO27: 2 | BP27: 2 | BQ27: 2 | BR27: 1 | BS27: 2 | BT27: 2 | BU27: 1 | BV27: 2 | BW27: 1 | BX27: 2 | BY27: 1 | BZ27: 1
A28: 23 | B28: 0.5 | C28: 0.15 | D28: 1.37 | E28: 0.95 | F28: 1.62 | G28: 0.88 | H28: 0.7 | I28: 0.84 | J28: 1.29 | K28: 0.36 | L28: 0.22 | M28: 1.59 | N28: 1.63 | O28: 1.7 | P28: 0.39 | Q28: =RANDBETWEEN(10,180)/100 -> 0.49 | R28: 1.33 | S28: 0.1 | T28: 1.09 | U28: 1.58 | V28: 0.51 | W28: 1.75 | X28: 0.82 | Y28: 0.45 | AB28: 23 | AC28: 0 | AD28: 1 | AE28: 1 | AF28: 2 | AG28: 1 | AH28: 1 | AI28: 0 | AJ28: 1 | AK28: 1 | AL28: 2 | AM28: 1 | AN28: 1 | AO28: 0 | AP28: 0 | AQ28: 0 | AR28: 1 | AS28: 0 | AT28: 1 | AU28: 1 | AV28: 0 | AW28: 1 | AX28: 0 | AY28: 0 | AZ28: 2 | BB28: 23 | BC28: 1 | BD28: 1 | BE28: 2 | BF28: 2 | BG28: 1 | BH28: 2 | BI28: 1 | BJ28: 1 | BK28: 1 | BL28: 1 | BM28: 1 | BN28: 1 | BO28: 1 | BP28: 1 | BQ28: 1 | BR28: 2 | BS28: 2 | BT28: 2 | BU28: 2 | BV28: 1 | BW28: 1 | BX28: 2 | BY28: 2 | BZ28: 1
A29: 24 | B29: 0.12 | C29: 0.76 | D29: 0.16 | E29: 1.46 | F29: 0.12 | G29: 1.01 | H29: 0.46 | I29: 0.97 | J29: 1.41 | K29: 0.91 | L29: 0.15 | M29: 0.61 | N29: 0.87 | O29: 0.12 | P29: 1.77 | Q29: 1.23 | R29: 1.37 | S29: 1.39 | T29: 0.63 | U29: 1.48 | V29: 1.59 | W29: 1.3 | X29: 1.41 | Y29: 1.18 | AB29: 24 | AC29: 2 | AD29: 1 | AE29: 0 | AF29: 0 | AG29: 1 | AH29: 2 | AI29: 1 | AJ29: 2 | AK29: 1 | AL29: 1 | AM29: 1 | AN29: 1 | AO29: 1 | AP29: 1 | AQ29: 1 | AR29: 1 | AS29: 2 | AT29: 1 | AU29: 2 | AV29: 1 | AW29: 1 | AX29: 0 | AY29: 0 | AZ29: 2 | BB29: 24 | BC29: 1 | BD29: 2 | BE29: 2 | BF29: 1 | BG29: 2 | BH29: 2 | BI29: 1 | BJ29: 1 | BK29: 1 | BL29: 1 | BM29: 1 | BN29: 1 | BO29: 2 | BP29: 2 | BQ29: 1 | BR29: 1 | BS29: 1 | BT29: 1 | BU29: 2 | BV29: 1 | BW29: 1 | BX29: 2 | BY29: 1 | BZ29: 1
A30: 25 | B30: 0.46 | C30: 0.81 | D30: 0.39 | E30: 0.28 | F30: 0.53 | G30: 1.02 | H30: 1.45 | I30: 0.53 | J30: 0.79 | K30: 0.14 | L30: 1.57 | M30: 0.96 | N30: 1.01 | O30: 1.64 | P30: 1.29 | Q30: 0.37 | R30: 1.2 | S30: 0.36 | T30: 0.81 | U30: 1.28 | V30: 0.18 | W30: 0.41 | X30: 0.1 | Y30: 1.68 | AB30: 25 | AC30: 2 | AD30: 1 | AE30: 2 | AF30: 1 | AG30: 2 | AH30: 0 | AI30: 1 | AJ30: 1 | AK30: 1 | AL30: 2 | AM30: 0 | AN30: 1 | AO30: 1 | AP30: 0 | AQ30: =ROUND(RANDBETWEEN(10,180)/100,0) -> 0 | AR30: 1 | AS30: 2 | AT30: 1 | AU30: 1 | AV30: 1 | AW30: 1 | AX30: 2 | AY30: 0 | AZ30: 0 | BB30: 25 | BC30: 2 | BD30: 1 | BE30: 2 | BF30: 1 | BG30: 2 | BH30: 1 | BI30: 2 | BJ30: 2 | BK30: 2 | BL30: 2 | BM30: 1 | BN30: 2 | BO30: 1 | BP30: 1 | BQ30: =RANDBETWEEN(1,2) -> 2 | BR30: 2 | BS30: 2 | BT30: 1 | BU30: 1 | BV30: 2 | BW30: 1 | BX30: 1 | BY30: 1 | BZ30: 2
A31: 26 | B31: 1.42 | C31: 1.3 | D31: 1.44 | E31: 1.23 | F31: 0.64 | G31: 0.19 | H31: 0.48 | I31: 1.21 | J31: 0.44 | K31: 0.54 | L31: 1.65 | M31: 1.78 | N31: 1.19 | O31: 1.37 | P31: 0.79 | Q31: 1.19 | R31: 1.28 | S31: 1.42 | T31: 1.35 | U31: 1.22 | V31: 0.61 | W31: 1.66 | X31: 1.37 | Y31: 1.17 | AB31: 26 | AC31: 2 | AD31: 1 | AE31: 1 | AF31: 0 | AG31: 1 | AH31: 0 | AI31: 1 | AJ31: 0 | AK31: 1 | AL31: 1 | AM31: 1 | AN31: 0 | AO31: 0 | AP31: 1 | AQ31: 0 | AR31: 0 | AS31: 1 | AT31: 1 | AU31: 0 | AV31: 2 | AW31: 1 | AX31: 1 | AY31: 0 | AZ31: 0 | BB31: 26 | BC31: 2 | BD31: 1 | BE31: 1 | BF31: 1 | BG31: 1 | BH31: 1 | BI31: 1 | BJ31: 1 | BK31: 2 | BL31: 2 | BM31: 2 | BN31: 2 | BO31: 2 | BP31: 2 | BQ31: 2 | BR31: 2 | BS31: 2 | BT31: 1 | BU31: 1 | BV31: 2 | BW31: 2 | BX31: 1 | BY31: 2 | BZ31: 1
A32: 27 | B32: 0.94 | C32: 0.78 | D32: 1.35 | E32: 1.62 | F32: 0.57 | G32: 1.76 | H32: 1.77 | I32: 0.64 | J32: 1.37 | K32: 0.13 | L32: 1.09 | M32: 0.12 | N32: 1.33 | O32: 0.28 | P32: 1.65 | Q32: 0.25 | R32: 1.66 | S32: 1.46 | T32: 0.62 | U32: 0.16 | V32: 0.36 | W32: 1.49 | X32: 0.84 | Y32: 0.81 | AB32: 27 | AC32: 0 | AD32: 1 | AE32: 1 | AF32: 2 | AG32: 0 | AH32: 0 | AI32: 0 | AJ32: 1 | AK32: 2 | AL32: 1 | AM32: 1 | AN32: 1 | AO32: 1 | AP32: 0 | AQ32: 0 | AR32: 1 | AS32: 1 | AT32: 0 | AU32: 1 | AV32: 2 | AW32: 2 | AX32: 1 | AY32: 0 | AZ32: 1 | BB32: 27 | BC32: 1 | BD32: 2 | BE32: 1 | BF32: 1 | BG32: 1 | BH32: 1 | BI32: 2 | BJ32: 2 | BK32: 1 | BL32: 1 | BM32: 1 | BN32: 1 | BO32: 2 | BP32: 2 | BQ32: 1 | BR32: 2 | BS32: 1 | BT32: 2 | BU32: 1 | BV32: 1 | BW32: 1 | BX32: 2 | BY32: 1 | BZ32: 2
A33: 28 | B33: 0.1 | C33: 1.3 | D33: 0.28 | E33: 1.2 | F33: 0.94 | G33: 1.27 | H33: 1.18 | I33: 0.57 | J33: 1 | K33: 0.82 | L33: 0.21 | M33: 0.82 | N33: 0.12 | O33: 1.68 | P33: 1.11 | Q33: 0.23 | R33: 0.2 | S33: 0.61 | T33: 1.75 | U33: 1.1 | V33: 0.62 | W33: 1.43 | X33: 0.47 | Y33: 1.57 | AB33: 28 | AC33: 1 | AD33: 1 | AE33: 1 | AF33: 2 | AG33: 0 | AH33: 1 | AI33: 1 | AJ33: 0 | AK33: 1 | AL33: 1 | AM33: 0 | AN33: 1 | AO33: 2 | AP33: 1 | AQ33: 1 | AR33: 1 | AS33: 0 | AT33: 1 | AU33: 1 | AV33: 1 | AW33: 1 | AX33: 0 | AY33: 0 | AZ33: 1 | BB33: 28 | BC33: 2 | BD33: 2 | BE33: 2 | BF33: 1 | BG33: 2 | BH33: 2 | BI33: 2 | BJ33: 1 | BK33: 2 | BL33: 1 | BM33: 1 | BN33: 1 | BO33: 2 | BP33: 2 | BQ33: 1 | BR33: 2 | BS33: 2 | BT33: 1 | BU33: 1 | BV33: 2 | BW33: 1 | BX33: 2 | BY33: 2 | BZ33: 1
A34: 29 | B34: 0.66 | C34: 0.5 | D34: 1.56 | E34: 1.21 | F34: 1.4 | G34: 1.67 | H34: 1.41 | I34: 0.18 | J34: 0.68 | K34: 0.21 | L34: 0.54 | M34: 1.35 | N34: 0.29 | O34: 0.86 | P34: 0.49 | Q34: 1.26 | R34: 1.16 | S34: 1.74 | T34: 0.84 | U34: 0.47 | V34: 0.19 | W34: 0.69 | X34: 0.5 | Y34: 0.15 | AB34: 29 | AC34: 1 | AD34: 1 | AE34: 1 | AF34: 2 | AG34: 1 | AH34: 0 | AI34: 1 | AJ34: 1 | AK34: 1 | AL34: 1 | AM34: 1 | AN34: 2 | AO34: 2 | AP34: 2 | AQ34: 2 | AR34: 1 | AS34: 1 | AT34: 1 | AU34: 1 | AV34: 0 | AW34: 1 | AX34: 1 | AY34: 1 | AZ34: 1 | BB34: 29 | BC34: 2 | BD34: 1 | BE34: 1 | BF34: 2 | BG34: 1 | BH34: 2 | BI34: 1 | BJ34: 1 | BK34: 2 | BL34: 1 | BM34: 1 | BN34: 1 | BO34: 1 | BP34: 1 | BQ34: 2 | BR34: 2 | BS34: 1 | BT34: 1 | BU34: 2 | BV34: 2 | BW34: 2 | BX34: 2 | BY34: 2 | BZ34: 2
A35: 30 | B35: 0.71 | C35: 0.33 | D35: 1.14 | E35: 0.4 | F35: 1.43 | G35: 0.62 | H35: 0.47 | I35: 0.88 | J35: 0.23 | K35: 0.66 | L35: 1.77 | M35: 1.58 | N35: 0.15 | O35: 1.55 | P35: 0.14 | Q35: 1.3 | R35: 1.18 | S35: 1.29 | T35: 0.63 | U35: 0.51 | V35: 1.07 | W35: 1.66 | X35: 1.48 | Y35: 0.24 | AB35: 30 | AC35: 1 | AD35: 2 | AE35: 1 | AF35: 1 | AG35: 0 | AH35: 0 | AI35: 1 | AJ35: 1 | AK35: 2 | AL35: 1 | AM35: 1 | AN35: 1 | AO35: 1 | AP35: 0 | AQ35: 1 | AR35: 1 | AS35: 0 | AT35: 1 | AU35: 1 | AV35: 0 | AW35: 0 | AX35: 1 | AY35: 0 | AZ35: 1 | BB35: 30 | BC35: 2 | BD35: 1 | BE35: 1 | BF35: 1 | BG35: 1 | BH35: 2 | BI35: 2 | BJ35: 2 | BK35: 2 | BL35: 2 | BM35: 2 | BN35: 2 | BO35: 2 | BP35: 1 | BQ35: 1 | BR35: 2 | BS35: 2 | BT35: 2 | BU35: 1 | BV35: 1 | BW35: 1 | BX35: 1 | BY35: 2 | BZ35: 1
A36: 31 | B36: 0.38 | C36: 0.62 | D36: 0.51 | E36: 1.55 | F36: 1.64 | G36: 1.15 | H36: 1.28 | I36: 0.44 | J36: 0.4 | K36: 1.17 | L36: 1.42 | M36: 0.72 | N36: 0.84 | O36: 0.12 | P36: 1.74 | Q36: 1.27 | R36: 0.62 | S36: 1.06 | T36: 1.29 | U36: 0.88 | V36: 0.6 | W36: 0.93 | X36: 0.72 | Y36: 1.44 | AB36: 31 | AC36: 1 | AD36: 1 | AE36: 1 | AF36: 0 | AG36: 0 | AH36: 0 | AI36: 0 | AJ36: 0 | AK36: 1 | AL36: 0 | AM36: 1 | AN36: 1 | AO36: 1 | AP36: 2 | AQ36: 2 | AR36: 2 | AS36: 1 | AT36: 1 | AU36: 0 | AV36: 2 | AW36: 2 | AX36: 1 | AY36: 1 | AZ36: 2 | BB36: 31 | BC36: 2 | BD36: 1 | BE36: 2 | BF36: 1 | BG36: 1 | BH36: 2 | BI36: 1 | BJ36: 1 | BK36: 1 | BL36: 2 | BM36: 2 | BN36: 1 | BO36: 1 | BP36: 2 | BQ36: 2 | BR36: 1 | BS36: 1 | BT36: 1 | BU36: 1 | BV36: 1 | BW36: 2 | BX36: 2 | BY36: 1 | BZ36: 1
B37: =SUM(B6:B36) -> 26.41 | C37: =SUM(C6:C36) -> 28.71 | D37: 27.78 | E37: 32.2 | F37: 31.04 | G37: 32.91 | H37: 32.75 | I37: 26.54 | J37: 28.06 | K37: 25.32 | L37: 31.74 | M37: 27.62 | N37: =SUM(N6:N36) -> 30.71 | O37: 28.83 | P37: 35.87 | Q37: 30.98 | R37: 32.7 | S37: 30.78 | T37: 28.44 | U37: 30.74 | V37: 25.37 | W37: 29.69 | X37: 29.58 | Y37: 30.12 | AC37: =SUM(AC6:AC36) -> 31 | AD37: 27 | AE37: 36 | AF37: 38 | AG37: 21 | AH37: 29 | AI37: 27 | AJ37: 29 | AK37: 28 | AL37: 26 | AM37: 27 | AN37: 33 | AO37: 26 | AP37: 26 | AQ37: 25 | AR37: 31 | AS37: 31 | AT37: 31 | AU37: 31 | AV37: 30 | AW37: 31 | AX37: 28 | AY37: 23 | AZ37: 30 | BC37: =SUM(BC6:BC36) -> 50 | BD37: =SUM(BD6:BD36) -> 44 | BE37: 45 | BF37: 44 | BG37: 43 | BH37: 45 | BI37: 41 | BJ37: 45 | BK37: 50 | BL37: 43 | BM37: 47 | BN37: 45 | BO37: =SUM(BO6:BO36) -> 50 | BP37: 42 | BQ37: 45 | BR37: 46 | BS37: 48 | BT37: 48 | BU37: 46 | BV37: 50 | BW37: 45 | BX37: 49 | BY37: 46 | BZ37: 46
A39: =+Detalle_Objetivos!T4 -> Noviembre | B39: =+Detalle_Objetivos!V4 -> 2013 | C39: Mes Anterior | D39: Mes Actual | E39: Mes Anterior | F39: Mes Actual | G39: Mes Anterior | H39: Mes Actual
A40: =VLOOKUP(VLOOKUP($A$39,$A$74:$B$85,2,FALSE)-1,B74:C85,2,FALSE) -> Octubre
A41: 1 | C41: =HLOOKUP($B$39&$A$40,$B$5:$Y$37,$A41+1,FALSE) -> 0.79 | D41: =HLOOKUP($B$39&$A$39,$B$5:$Y$37,$A41+1,FALSE) -> 1.41 | E41: =HLOOKUP($B$39&$A$40,$AC$5:$AZ$37,$A41+1,FALSE) -> 1 | F41: =HLOOKUP($B$39&$A$39,$AC$5:$AZ$37,$A41+1,FALSE) -> 1 | G41: =HLOOKUP($B$39&$A$40,$AZ$5:$BZ$37,$A41+1,FALSE) -> 2 | H41: =HLOOKUP($B$39&$A$39,$BC$5:$BZ$37,$A41+1,FALSE) -> 1
A42: 2 | C42: =HLOOKUP($B$39&$A$40,$B$5:$Y$37,$A42+1,FALSE) -> 1.57 | D42: =HLOOKUP($B$39&$A$39,$B$5:$Y$37,$A42+1,FALSE) -> 0.74 | E42: 0 | F42: 1 | G42: 1 | H42: =HLOOKUP($B$39&$A$39,$BC$5:$BZ$37,$A42+1,FALSE) -> 1
A43: 3 | C43: 1.13 | D43: 1.64 | E43: 1 | F43: 0 | G43: 1 | H43: 2
A44: 4 | C44: 0.62 | D44: 0.29 | E44: 2 | F44: 2 | G44: 1 | H44: 2
A45: 5 | C45: 1.01 | D45: 0.72 | E45: 0 | F45: 0 | G45: 1 | H45: 1
A46: 6 | C46: 0.88 | D46: 0.72 | E46: 1 | F46: 0 | G46: 2 | H46: 1
A47: 7 | C47: 1.02 | D47: 1.52 | E47: 1 | F47: 1 | G47: 2 | H47: 2
A48: 8 | C48: 1.34 | D48: 1.53 | E48: 0 | F48: 0 | G48: 1 | H48: 2
A49: 9 | C49: 0.75 | D49: 1.45 | E49: 1 | F49: 2 | G49: 1 | H49: 2
A50: 10 | C50: 0.19 | D50: 0.76 | E50: 2 | F50: 1 | G50: 2 | H50: 1
A51: 11 | C51: 0.49 | D51: 1.31 | E51: 0 | F51: 1 | G51: 1 | H51: 1
A52: 12 | C52: 0.37 | D52: 1.43 | E52: 1 | F52: 1 | G52: 1 | H52: 2
A53: 13 | C53: 1.34 | D53: 1.28 | E53: 1 | F53: 1 | G53: 2 | H53: 1
A54: 14 | C54: 0.78 | D54: 0.54 | E54: 1 | F54: 1 | G54: 1 | H54: 2
A55: 15 | C55: 0.47 | D55: 1.64 | E55: 1 | F55: 1 | G55: 2 | H55: 1
A56: 16 | C56: 1.3 | D56: 0.3 | E56: 0 | F56: 1 | G56: 1 | H56: 2
A57: 17 | C57: 0.62 | D57: 0.93 | E57: 0 | F57: 1 | G57: 2 | H57: 2
A58: 18 | C58: 1.42 | D58: 0.83 | E58: 1 | F58: 1 | G58: 1 | H58: 2
A59: 19 | C59: 0.46 | D59: 0.32 | E59: 1 | F59: 1 | G59: 1 | H59: 2
A60: 20 | C60: 1.22 | D60: 1.64 | E60: 0 | F60: 2 | G60: 1 | H60: 1
A61: 21 | C61: 1.04 | D61: 1.59 | E61: 0 | F61: 1 | G61: 1 | H61: 2
A62: 22 | C62: 1.57 | D62: 0.53 | E62: 1 | F62: 0 | G62: 2 | H62: 2
A63: 23 | C63: 0.36 | D63: 0.22 | E63: 2 | F63: 1 | G63: 1 | H63: 1
A64: 24 | C64: 0.91 | D64: 0.15 | E64: 1 | F64: 1 | G64: 1 | H64: 1
A65: 25 | C65: 0.14 | D65: 1.57 | E65: 2 | F65: 0 | G65: 2 | H65: 1
A66: 26 | C66: 0.54 | D66: 1.65 | E66: 1 | F66: 1 | G66: 2 | H66: 2
A67: 27 | C67: 0.13 | D67: 1.09 | E67: 1 | F67: 1 | G67: 1 | H67: 1
A68: 28 | C68: 0.82 | D68: 0.21 | E68: 1 | F68: 0 | G68: 1 | H68: 1
A69: 29 | C69: 0.21 | D69: 0.54 | E69: 1 | F69: 1 | G69: 1 | H69: 1
A70: 30 | C70: 0.66 | D70: 1.77 | E70: 1 | F70: 1 | G70: 2 | H70: 2
A71: 31 | C71: 1.17 | D71: 1.42 | E71: 0 | F71: 1 | G71: 2 | H71: 2
A74: Enero | B74: 1 | C74: Enero
A75: Febrero | B75: 2 | C75: Febrero
A76: Marzo | B76: 3 | C76: Marzo
A77: Abril | B77: 4 | C77: Abril
A78: Mayo | B78: 5 | C78: Mayo
A79: Junio | B79: 6 | C79: Junio
A80: Julio | B80: 7 | C80: Julio
A81: Agosto | B81: 8 | C81: Agosto
A82: Septiembre | B82: 9 | C82: Septiembre
A83: Octubre | B83: 10 | C83: Octubre
A84: Noviembre | B84: 11 | C84: Noviembre
A85: Diciembre | B85: 12 | C85: Diciembre

Sheet Obj_Ejecutivos (hidden)
F2: ejecutivo | G2: All
F4: Etiquetas de fila | G4: Suma de Cumplimiento | H4: Suma de Gestion _Campaña | I4: Suma de cumpliento_Visita | J4: Suma de cumpliento _Contacto Efectivo
F5: CAZAMOR | G5: 1 | H5: 0.5217391304 | I5: 0 | J5: 1
F6: EMUNOZB | G6: 1 | H6: 0.9523809524 | I6: 0 | J6: 1
F7: FDIAZME | G7: 0.75 | H7: 1 | I7: 1 | J7: 0.5
F8: GLETELI | G8: 0.8333333333 | H8: 0.2 | I8: 0.6666666667 | J8: 1
F9: LALARRU | G9: 1 | H9: 0.3636363636 | I9: 0 | J9: 1
F10: MGONZTA | G10: 0.2 | H10: 0 | I10: 0 | J10: 0.4
F11: MSANHUI | G11: 1 | H11: 0.5769230769 | I11: 0 | J11: 1
F12: Ñuñoa | G12: 0.8261904762 | H12: 0.5163827891 | I12: 0.5555555556 | J12: 0.8428571429
